{"text_format":"1","workbook":"xlsx","n_sheets":7,"sheets":["Instructions","FY26--SRPOS Verification","POS Funding Examples","Secondary Courses for POS","FY26--SRPOS","FY26--POS Funding","Named Ranges"],"not_rendered":{"charts":0,"images":0,"macros":1,"external_links":0,"defined_names":804,"comments":0,"pivot_tables":0},"unopened":[],"bounds":{"document_bytes":16777216,"sheet_cells":100000,"rows_first":2000,"rows_last":500,"rows_between":2000,"halvings":0,"cell_chars":16384,"cell_head_chars":4096},"cells_cut":0,"cells_raw":0,"read":"whole","date_system":"1900"}

{"sheet":"Instructions","index":0,"n_rows":111,"n_cols":4,"rows_kept":111,"cut":false,"hidden":false,"merged":[[89,0,89,2],[90,0,90,2],[90,3,90,9],[1,0,1,9],[2,0,2,9],[3,0,3,9],[86,0,86,2],[86,3,86,9],[87,0,87,2],[87,3,87,9],[27,0,27,9],[67,0,67,9],[88,0,88,2],[88,3,89,9],[51,0,51,10],[105,0,105,6],[91,0,91,2],[91,3,91,9],[92,0,92,2],[92,3,92,9],[94,0,94,2],[94,3,94,9],[93,0,93,2],[93,3,93,9],[110,0,110,6],[109,0,109,6],[108,0,108,6],[107,0,107,6],[106,0,106,6]]}
[]
["Completing the Program of Study Spreadsheet"]
["July 1, 2025 - June 30, 2026 (FY26)"]
["[NAME] Consortium"]
[]
["There is information to complete on BOTH of the FY26 spreadsheet tabs. You will submit this completed document"]
["as a separate attachment along with your spring consortium plan. NOTE: Using this document in Google Sheets or saving"]
["as an MS Excel document in a format other than the original may disable dropdown menu options."]
[]
["SRPOS Verification tab:",null,"Consortium leaders verify that each of the Programs of Study identified on the \"SRPOS\" tab meet"]
[null,null,"ALL SEVEN of the criteria required for a State-Recognized Program of Study."]
[null,null,"Check the box on row 16 and insert consortium leader signatures on row 19."]
[]
["SRPOS tab:",null,"Consortium leaders may submit up to 15 Programs of Study that they verify below meet all seven"]
[null,null,"criteria for State-Recognized Programs of Study. This information will be posted for the public on"]
[null,null,"the Minnesota State website to meet federal requirements for posting of POS information. Two"]
[null,null,"pathways per POS may be identified. NOTE: Programs of Study that are \"in development\" are "]
[null,null,"not yet Programs of Study and should NOT be listed on this tab.  "]
[]
["POS Funding tab:",null,"Consortium leaders may submit up to 10 Programs of Study for which some level of Perkins"]
[null,null,"funding is identified/requested in the consortium plan. Two pathways per POS may be identified."]
[null,null,"Financial support requested for all POS included on this tab should be included in Narrative 2"]
[null,null,"of the Consortium Plan. Identify the priority of financial support designated (Priority 1 for highest"]
[null,null,"priority, Priority 3 for lowest priority, or Reserve) using the dropdown options in row 11."]
[null,null,"Consortia may wish to identify POS \"in development\" for funding on this tab."]
[]
[]
["Key Instructions: State-Recognized Programs of Study (SRPOS) tab"]
["* Dropdown menus are provided to complete POS information in rows 2 - 4, 6 - 9, and 10."]
["* Changes to any dropdown selections in rows 2 - 4 or 6 - 9 should reset all dropdown options below in that column."]
["* Two columns are provided for each SRPOS, to be used by those consortia who partner with more than one"]
["    postsecondary institution, or who are aligning to more than one career pathway within the selected career cluster."]
["    You can identify two separate postsecondary institutions in the two POS columns along with the specific program"]
["    name(s) offered by each institution. (The second column could also be used to identify a postsecondary partner with"]
["    whom you have a brokering relationship.)"]
[]
["ROWS 2-3: Do NOT manually enter information in row 2-3 cells highlighted in YELLOW--those cells should populate with"]
["    information when you begin entering field, cluster, and pathway information in the first column of each SRPOS."]
[]
["ROW 4: Identify the career pathway for the POS. Note that the pathway cell in the second POS column is shaded BLUE."]
["    If you are working with a second postsecondary partner, or aligning to a second career pathway within the same"]
["    cluster for your primary postsecondary partner, you can select a different \"pathway\" to align the second POS column. "]
["    The postsecondary partners and postsecondary programs to which you can align your POS in rows 6-9 will be based on"]
["    the pathway choices you identify in these two cells."]
[]
["ROW 5: Enter the CTE approved program code number for the programs aligned to each POS, followed by the school "]
["     districts in your consortium with that approved program."]
[]
["ROW 6: A list of Minnesota State postsecondary institutions will appear as dropdown menu options based on the programs they"]
["     offer aligned with the field/cluster/pathways you identify in rows 2-4. If you are partnering with two postsecondary"]
["     institutions, use both columns for the POS to identify one in each column. If only one postsecondary partner, or only one"]
["     career pathway being developed in the POS, leave the 2nd column blank. There is an option \"Institution Not on List (See "]
["     Narrative).\" If the institution that you are partnering with is not on the list, use this option and provide the missing"]
["     institution's name and college program in Narrative 2."]
[]
["ROWS 7-9: From the dropdown menu options of postsecondary programs offered by the institution you selected in row 6,"]
["     identify in rows 7-9 up to THREE programs students prepare for through this POS. NOTE that these options will be "]
["     different in the two POS columns (if you are partnering with two institutions) based on the different programs provided"]
["     at each postsecondary institution."]
[]
["Approved Work-based Learning Programs: S-RPOS MUST include authentic work-based learning at either the"]
["secondary OR postsecondary level. For secondary WBL credentials (row 12), list the approved program-specific or diversified"]
["WBL program codes (and the school districts approved to offer them) through which a student could obtain WBL experience"]
["in that POS. If the consortium does not have any MDE-approved secondary work-based learning programs or postsecondary"]
["WBL opportunities, you may consider listing any embedded experiential learning available in approved CTE classes in the "]
["program of study."]
[]
["Key Instructions: POS Funding tab"]
["* Dropdown menus provided to complete POS information in rows 2 - 4, 6 - 9, 10 - 11, and row 13."]
["* See instructions above (rows 37-38) regarding YELLOW cells."]
["* For any S-RPOS you intend to include on the Funding tab, you can copy/paste the applicable cells from rows 2-9 on the"]
["      S-RPOS tab to  those rows/cells on the Funding tab."]
[]
["Use the same instructions as above for completing information in rows 2-9. "]
[]
["ROW 10: Select \"Yes\" or \"No\" from the dropdown menu to identify whether the POS was identified as a state-recognized"]
["     POS on the SRPOS tab."]
[]
["ROW 11--Funding Priority: Consortium leadership teams should identify the priority spending level of spending requests"]
["made in support of their Programs of Study. Consortia can identify up to TEN (10) POS on this tab. NO MORE THAN"]
["THREE (3) can be identified as Priority 1 (top level), and NO MORE THAN THREE (3) POS can be identified as Priority 2. Note"]
["that POS listed on this tab DO NOT need to be State-Recognized POS to be prioritized for funding; however, Narrative 2"]
["of your consortium plan should clearly describe how this need and priority were identified to align with your CLNA."]
[]
["Use the table below to assist in determining the funding priority level for each Program of Study:"]
[]
["Priority Level",null,null,"Rationale"]
[]
["Priority 1",null,null,"Program of Study represents a high priority workforce need in CLNA findings. These are not necessarily the largest amounts to be spent--simply the highest priorities. The State Team would expect to see these among a consortia's earliest expenditures upon approval of their plan."]
["(no more than THREE POS)"]
["Priority 2",null,null,"Program of Study represents a workforce need for continued support, possibly to provide industry-standard equipment or innovate existing program delivery. The"]
["(no more than THREE POS)",null,null,"State Team would expect to see these expenditures made ahead of Priority 3 items as the consortium team would have determined them to be of higher priority."]
["Priority 3",null,null,"Program of Study represents an established program area in need of supports"]
["(either 3 POS, or 4 if no Reserve)",null,null,"including professional development and supplemental curriculum materials."]
["Reserve Funds (OPTIONAL)",null,null,"Use of Reserve funding to develop a new POS (i.e., development to establish new POS or to develop coordination and alignment of secondary and postsecondary programs which exist at one level but not at the other). If consortium plan does not include use of reserve funds for new POS development, do not identify any POS with this label on the POS funding tab."]
[]
["* [OPTIONAL] Row 12--Interdisciplinary CTE-Related Courses: If one or more schools in the consortium offers an "]
["    introductory course in an approved program area different than the programs listed in row 5 aligned with the"]
["    identified field/cluster/pathway, enter the following: School Name--Alternative Career Field Program #--Course #."]
["    Examples could include: Agribusiness course listed under Business; T&I Welding course listed under Agriculture"]
["    Focus should be on courses that may be included in equipment requests for the primary CTE program in the POS."]
["   (Contact MDE Program Specialists if you have questions on listing courses in these cells.)"]
[]
[]
["RESOURCE LINKS"]
["Minnesota Department of Education—Career and Technical Education"]
["Minnesota Department of Education—Program Approval"]
["Maps of Approved Secondary Programs"]
["Minnesota State—Career and Technical Education"]
["Minnesota State—Consortia Resources"]
["Minnesota State—State-Recognized Programs of Study User Guide"]

{"sheet":"FY26--SRPOS Verification","index":1,"n_rows":20,"n_cols":9,"rows_kept":20,"cut":false,"hidden":false,"merged":[[1,0,1,9],[2,0,2,9],[3,0,3,9],[13,0,13,9],[15,8,16,9],[18,0,18,3],[18,6,18,9],[19,0,19,3],[19,6,19,9],[7,0,7,9],[8,0,8,9],[9,0,9,9],[10,0,10,9],[11,0,11,9],[12,0,12,9]]}
[]
["State-Recognized Program of Study Verification"]
["July 1, 2025 - June 30, 2026 (FY26)"]
["[NAME] Consortium"]
[]
[]
["There are seven minimum criteria that must be met for identification as a State-Recognized Program of Study:"]
["1. Course standards accurately align to the academic, technical, and employability skills learners must master for entry and success in a given career pathway."]
["2. Program of Study incorporates active involvement from an integrated network of partners."]
["3. Secondary program(s) meets MDE program approval requirements and incorporate courses that lead to postsecondary credits/credentials."]
["4. Postsecondary academic program meets Minnesota State board policy and Higher Learning Commission requirements."]
["5. Materials, Equipment and Resources used in the program reflect current workplace, industry, and/or occupational standards."]
["6. Incorporates authentic work experiences at the secondary and/or postsecondary level that are valued by industry."]
["7. Program of Study development, improvement and advocacy are supported by findings from a comprehensive local needs assessment."]
[]
["The State-Recognized Programs of Study submitted by our consortium",null,null,null,null,null,null,null,"[Insert \"X\" in the box to confirm]"]
["meet all seven of the minimum criteria identified above."]
[]
[]
["[Secondary Consortium Leader]",null,null,null,null,null,"[Postsecondary Consortium Leader]"]

{"sheet":"POS Funding Examples","index":2,"n_rows":23,"n_cols":21,"rows_kept":23,"cut":false,"hidden":false,"merged":[[10,11,10,12],[10,13,10,14],[10,15,10,16],[10,17,10,18],[10,19,10,20],[10,1,10,2],[10,3,10,4],[10,5,10,6],[10,7,10,8],[10,9,10,10],[4,13,4,14],[4,15,4,16],[4,17,4,18],[4,19,4,20],[9,1,9,2],[9,3,9,4],[9,5,9,6],[9,7,9,8],[9,9,9,10],[9,11,9,12],[9,13,9,14],[9,15,9,16],[9,17,9,18],[9,19,9,20],[0,13,0,14],[0,15,0,16],[0,17,0,18],[0,19,0,20],[4,1,4,2],[4,3,4,4],[4,5,4,6],[4,7,4,8],[4,9,4,10],[4,11,4,12],[0,1,0,2],[0,3,0,4],[0,5,0,6],[0,7,0,8],[0,9,0,10],[0,11,0,12]]}
[{"$f":"Instructions!A4","v":"[NAME] Consortium"},"POS 1",null,"POS 2",null,"POS 3",null,"POS 4",null,"POS 5",null,"POS 6",null,"POS 7",null,"POS 8",null,"POS 9",null,"POS 10"]
["Career Field","Business_Management_Administration",{"$f":"B2","v":"Business_Management_Administration"},"Agriculture_Food_Natural_Resources",{"$f":"D2","v":"Agriculture_Food_Natural_Resources"},"Health_Science_Technology",{"$f":"F2","v":"Health_Science_Technology"},"Arts_Communications_Information_Systems",{"$f":"H2","v":"Arts_Communications_Information_Systems"},null,{"$f":"J2","v":0},null,{"$f":"L2","v":0},null,{"$f":"N2","v":0},null,{"$f":"P2","v":0},null,{"$f":"R2","v":0},null,{"$f":"T2","v":0}]
["Career Cluster","Business_Management_and_Administration",{"$f":"B3","v":"Business_Management_and_Administration"},"Agriculture_Food_and_Natural_Resources",{"$f":"D3","v":"Agriculture_Food_and_Natural_Resources"},"Health_Science",{"$f":"F3","v":"Health_Science"},"Arts_Audio_Video_Technology_and_Communications",{"$f":"H3","v":"Arts_Audio_Video_Technology_and_Communications"},null,{"$f":"J3","v":0},null,{"$f":"L3","v":0},null,{"$f":"N3","v":0},null,{"$f":"P3","v":0},null,{"$f":"R3","v":0},null,{"$f":"T3","v":0}]
["Career Pathway","General_Management","Operations_Management","Food_Products_and_Processing_Systems","Power_Structural_and_Technical_Systems","Therapeutic_Services","Diagnostic_Services","Journalism_and_Broadcasting","Audio_Video_Technology_and_Film",null,{"$f":"J4","v":0},null,{"$f":"L4","v":0},null,{"$f":"N4","v":0},null,{"$f":"P4","v":0},null,{"$f":"R4","v":0}]
["High Schools & Approved CTE Programs (Table C)","(140710) Aitkin, Bertha-Hewitt, Brainerd, Browerville, Henning, Isle, Little Falls, Pierz Healy, Pillager, Pine River Backus, Sebeka, Verndale, Wadena-Deer Creek",null,"(019901) Caledonia, Cannon Falls, Chatfield, Dover-Eyota, Fillmore Central, Goodhue, Kenyon-Wanamingo, Lake City, Lanesboro, Lewiston-Altura,  Plainview, Red Wing, Rushford-Peterson,  St. Charles, Spring Grove, Winona, Zumbrota-Mazeppa",null,"(070300) Howard Lake-Waverly-Winsted, St. Cloud, Wright Technical Center ",null,"(171502) Grand Rapids"]
["Postsecondary Partner Institutions","Alexandria_Technical_Community_College_025","Northland_Community_Technical_College_049","Riverland_Community_College_023","South_Central_College_054","StCloud_Technical_Community_College_073","StCloud_Technical_Community_College_016","Lake_Superior_College_033","Century_College_006","Please Select...","Please Select...",null,"Please Select...",null,"Please Select...","Please Select...","Please Select...","Please Select...","Please Select...","Please Select...","Please Select..."]
["Postsecondary CTE Program #1","Business Management","Production and Inventory Management","Food Science","Agribusiness Service Technician","Surgical Technology","Cardiovascular Technology","Media Studies and Production","Online Video Content Creator","Please Select...","Please Select...",null,"Please Select...",null,"Please Select...","Please Select...","Please Select...","Please Select...","Please Select...","Please Select...","Please Select..."]
["Postsecondary CTE Program #2","Please Select...","Please Select...","Food Science Technology","Please Select...","Practical Nursing","Please Select...","Please Select...","Please Select...","Please Select...","Please Select...",null,"Please Select...",null,"Please Select...","Please Select...","Please Select...","Please Select...","Please Select...","Please Select...","Please Select..."]
["Postsecondary CTE Program #3","Please Select...","Please Select...","Please Select...","Please Select...","Please Select...","Please Select...","Please Select...","Please Select...","Please Select...","Please Select...",null,"Please Select...",null,"Please Select...","Please Select...","Please Select...","Please Select...","Please Select...","Please Select...","Please Select..."]
["State-Recognized","Yes",null,"No",null,"Yes",null,"No"]
["Funding Priority","Priority 2",null,"Priority 1",null,"Priority 1",null,"Priority 3"]
["Interdisciplinary CTE-Related Courses (optional)","Little Falls--019901--#05",null,"Anoka-Hennepin--090101--#21","Rushford-Peterson--171000--#41\nRed Wing--171710--#31",null,null,"Grand Rapids--140710--#68"]
[]
[]
[]
[]
["Yes"]
["No"]
[]
["Priority 1"]
["Priority 2"]
["Priority 3"]
["Reserve"]

{"sheet":"Secondary Courses for POS","index":3,"n_rows":126,"n_cols":6,"rows_kept":126,"cut":false,"hidden":false,"merged":[[82,0,84,0],[83,1,84,1],[82,4,84,4],[86,0,88,0],[87,1,88,1],[86,4,88,4],[78,0,80,0],[79,1,80,1],[78,4,80,4],[74,0,76,0],[75,1,76,1],[27,1,28,1],[31,1,32,1],[37,0,38,0],[41,1,42,1],[2,0,3,0],[4,0,5,0],[12,0,15,0],[17,0,19,0],[20,0,22,0],[30,0,31,0],[26,0,27,0],[40,0,41,0]]}
["Use This Sheet for Guidance on Identifying Secondary Courses Aligned with Specific Programs of Study. If you have questions or need more information, contact the MDE Career Field Specialist."]
["Program of Study--Field","Program of Study--Cluster","Table C -- MDE Program Area","Table C -- Program Code","Table C--Career Cluster/Pathway","Table C--Secondary Courses to be Offered to Align With This Cluster"]
["Engineering, Manufacturing, Technology","Transportation, Distribution and Logistics","Trade and Industry",170302,"Transportation","#20-#81"]
[null,"Pathway: Facility & Mobile Equipment Maintenance",null,171710,null,"#67-#69"]
["Engineering, Manufacturing, Technology","Transportation, Distribution and Logistics",null,170302,"Transportation","#20-#81"]
[null,"Pathway: Transportation Operations",null,171710,null,"#67-#69"]
[]
["Engineering, Manufacturing, Technology","Architecture and Construction","Trade and Industry",171000,"Construction","#20-#56"]
[]
["Arts, Communications, Information Systems","Arts, Audio Video Technology, and Communications","Trade and Industry",171502,"Communication Technology","#20-#88"]
[]
["Arts, Communications, Information Systems","Information Technology","Trade and Industry",171512,"Computer Science/Information Technology","#01-#36"]
["Engineering, Manufacturing, Technology","Manufacturing",null,170302,"Manufacturing","#01-#12"]
[null,null,null,171000,null,"#01-#12"]
[null,null,null,171502,null,"#01-#12"]
[null,null,null,171710,null,"#01-#12; #66"]
[]
["Engineering, Manufacturing, Technology","Manufacturing","Trade and Industry",171710,"Manufacturing","#01-#71"]
[null,"Pathway: Manufacturing Production Process Development",null,171000,null,"#01-#56"]
[null,null,null,170302,null,"#50-#53"]
["Engineering, Manufacturing, Technology","Manufacturing",null,171710,"Manufacturing - Welding","#30-#33"]
[null,"Pathway: Production",null,171000,null,"#41-#42"]
[null,null,null,170302,null,"#60-#62"]
["Engineering, Manufacturing, Technology","Manufacturing",null,171710,"Manufacturing  ","#20-#71"]
[null,"Pathway: Maintenance, Installation and Repair"]
[]
["Business, Management, and Administration","Marketing","Business and Marketing",140710,"Marketing Communications\nMarketing Management","#45-#51"]
[null,"Pathways: Merchandising, Marketing Management, Marketing Communications, Professional Sales",null,"040800",null,"#01-#12"]
[]
[]
["Business, Management, and Administration","Business Management and Administration","Business and Marketing",140710,"Business Management","#30-#39"]
[null,"Pathways: Operations Management, Business Information Management, Human Resources Management, General Management",null,"040800",null,"#13 & #15"]
[]
[]
["Business, Management, and Administration","Business Management and Administration","Business and Marketing",140710,"Administrative Support","#07-#14"]
[null,"Pathway: Administrative Support"]
[]
["Business, Management, and Administration","Finance","Business and Marketing",140710,"Accounting and Finance","#18-#26"]
[null,"Pathways: Accounting, Business Finance; Securities and Investment",null,"040800",null,"#14"]
[]
["Business, Management, and Administration","Hospitality and Tourism","Business and Marketing",140710,"Hospitality and Tourism Management","#55-#60"]
[null,"Pathways: Lodging; Recreation, Amusements, and Attractions; Restaurants and Food/Beverage Services; Travel and Tourism",null,"040800",null,"#16"]
[]
[]
["Arts, Communications, Information Systems","Information Technology","Business and Marketing",140710,"Information Technology","#74-#80"]
[null,"Pathway: Programming and Software Development"]
["Arts, Communications, Information Systems","Information Technology",null,140710,"Information Technology","#64-#73 & #76-#77"]
[null,"Pathway: Web and Digital Communications"]
[]
["Agriculture, Food, and Natural Resources","Agribusiness Systems","AFNR","019901","Agribusiness Systems","#05-#14"]
[]
["Agriculture, Food, and Natural Resources","Animal Systems","AFNR","019901","Animal Systems","#15-#29"]
[]
["Agriculture, Food, and Natural Resources","Plant Systems","AFNR","019901","Plant Systems","#30-#44"]
[]
["Agriculture, Food, and Natural Resources","Natural Resources Systems","AFNR","019901","Natural Resources, Energy, and Environmental Service Systems","#45-#53"]
[null,"Environmental Service Systems",null,null,null,"#54-#59"]
[]
["Agriculture, Food, and Natural Resources","Power, Structural and Technical Systems","AFNR","019901","Power, Structural, and Technical Systems","#60-#74"]
[null,null,null,null,"Biotechnology Systems","#85-#90"]
[]
["Agriculture, Food, and Natural Resources","Food Products and Processing Systems","AFNR","019901","Food Products and Processing Systems","#75-#84"]
[]
["Health Science","Biotechnology Research and Development","Health Science","070300","Health Science Fundamentals","#01-#04; #08; #10; #11; #15"]
[]
["Health Science","Diagnostic Services","Health Science","070300","Health Science Fundamentals","#01-#04; #08-#11; #13; #17-#18"]
[]
["Health Science","Support Services","Health Science","070300","Allied Health Services","#01-#04; #30-#38"]
[]
["Health Science","Health Informatics","Health Science","070300","Health Science Introduction","#01-#04"]
[]
["Health Science","Therapeutic Services","Health Science","070300","Emergency Medical Services","#01-#04; #08-#14; #16-#18; #24-#28; #40-#45"]
[null,null,null,"070101","Dental Services","#01-#04; #45"]
[]
["Business, Management, and Administration","Hospitality and Tourism","FCS","090101","Culinary/Hospitality/Food Science","#01; #06; #16-28"]
[null,"Pathway: Restaurants and Food/Beverage Services  "]
[null,null,"Service Occupations","090301","Culinary/Hospitality\nHospitality Management\nHospitality Service Careers: Tourism/Recreation","#01-#07\n#08-#12\n#18-#21"]
[]
["Human Services","Education and Training","FCS","090101","Early Childhood Guidance & Education Careers\nEducation & Training Careers","#01; #06; #40-42"]
[null,"Pathways: Professional Support Services; Teaching & Training   ",null,null,null,"#01; #06; #46-48"]
[null,null,"Service Occupations","090201",null,"#01-#07"]
[]
["Engineering, Manufacturing, Technology","Manufacturing","FCS","090101","Fashion, Apparel & Interior Design","#01; #06; #57-74"]
[null,"Pathway: Manufacturing Production and Development  "]
[null,null,"Service Occupations","090204",null,"#05-#11"]
[]
["Engineering, Manufacturing, Technology","Architecture and Construction","FCS","090101","Fashion, Apparel & Interior Design","#01; #06; #57-74"]
[null,"Pathway: Design/Pre-Construction  "]
[null,null,"Service Occupations","090204",null,"#05-#11"]
[]
["Human Services","Human Services Pathway","FCS","090101","Families & Community Service","#01; #06; #34-36"]
[null,"Pathways: Counseling and Mental Health Services; Early Childhood Development and Services; Family and Community Services; Personal Care Services",null,null,"Early Childhood Guidance & Education Careers\nHuman Services & Service Learning","#01; #06; #40-42\n#01; #06; #53-54"]
[]
[]
["Human Services","Human Services Pathway","Service Occupations","090204","Cosmetology","#01-#03"]
[null,"Pathway: Cosmetology"]
[]
["Human Services","Law, Public Safety, Corrections, and Security","Service Occupations","090401","Law Enforcement Careers","#01-#07"]
[null,"Pathway: Law Enforcement Services  ",null,null,"Family & Community Service","#08-#09"]
[]
[]
[]
["The pathways below currently have NO Minnesota State postsecondary programs offered:"]
[]
["CAREER_FIELD","PATHWAY_DESC"]
["Arts, Communications, & Information Systems","Communications_Technology"]
[]
["Business, Management, & Administration","Business_Finance"]
["Business, Management, & Administration","Insurance"]
["Business, Management, & Administration","Marketing_Research"]
["Business, Management, & Administration","Lodging"]
["Business, Management, & Administration","Recreation_Amusements_and_Attractions"]
[]
["Engineering, Manufacturing, & Technology","Sales_and_Services"]
["Engineering, Manufacturing, & Technology","Transportation_Systems_Infrastructure_Planning_Management_and_Regulation"]
["Engineering, Manufacturing, & Technology","Warehousing_and_Distribution_Center_Operations"]
["Engineering, Manufacturing, & Technology","Logistics_and_Inventory_Control"]
["Engineering, Manufacturing, & Technology","Health_Safety_and_Environmental_Assurance"]
[]
["Human Services","Administration_and_Administrative_Support"]
["Human Services","Revenue_and_Taxation"]
["Human Services","Foreign_Service"]
["Human Services","Governance"]
["Human Services","Planning"]
["Human Services","Regulation"]
["Human Services","Consumer_Services"]

{"sheet":"FY26--SRPOS","index":4,"n_rows":27,"n_cols":31,"rows_kept":27,"cut":false,"hidden":false,"merged":[[12,23,12,24],[12,25,12,26],[12,27,12,28],[12,29,12,30],[12,13,12,14],[12,15,12,16],[12,17,12,18],[12,19,12,20],[12,21,12,22],[12,1,12,2],[12,5,12,6],[12,7,12,8],[12,9,12,10],[12,11,12,12],[12,3,12,4],[4,25,4,26],[11,25,11,26],[4,27,4,28],[11,27,11,28],[4,29,4,30],[11,29,11,30],[4,19,4,20],[11,19,11,20],[4,21,4,22],[11,21,11,22],[4,23,4,24],[11,23,11,24],[4,13,4,14],[11,13,11,14],[4,15,4,16],[11,15,11,16],[4,17,4,18],[11,17,11,18],[4,7,4,8],[11,7,11,8],[4,9,4,10],[11,9,11,10],[4,11,4,12],[11,11,11,12],[4,1,4,2],[11,1,11,2],[4,3,4,4],[11,3,11,4],[4,5,4,6],[11,5,11,6],[0,11,0,12],[0,13,0,14],[0,29,0,30],[0,15,0,16],[0,17,0,18],[0,19,0,20],[0,21,0,22],[0,23,0,24],[0,25,0,26],[0,27,0,28],[0,1,0,2],[0,3,0,4],[0,5,0,6],[0,7,0,8],[0,9,0,10]]}
[{"$f":"Instructions!A4","v":"[NAME] Consortium"},"State-Recognized POS 1",null,"State-Recognized POS 2",null,"State-Recognized POS 3",null,"State-Recognized POS 4",null,"State-Recognized POS 5",null,"State-Recognized POS 6",null,"State-Recognized POS 7",null,"State-Recognized POS 8",null,"State-Recognized POS 9",null,"State-Recognized POS 10",null,"State-Recognized POS 11",null,"State-Recognized POS 12",null,"State-Recognized POS 13",null,"State-Recognized POS 14",null,"State-Recognized POS 15"]
["Career Field",null,{"$f":"B2","v":0},null,{"$f":"D2","v":0},null,{"$f":"F2","v":0},null,{"$f":"H2","v":0},null,{"$f":"J2","v":0},null,{"$f":"L2","v":0},null,{"$f":"N2","v":0},null,{"$f":"P2","v":0},null,{"$f":"R2","v":0},null,{"$f":"T2","v":0},null,{"$f":"V2","v":0},null,{"$f":"X2","v":0},null,{"$f":"Z2","v":0},null,{"$f":"AB2","v":0},null,{"$f":"AD2","v":0}]
["Career Cluster",null,{"$f":"B3","v":0},null,{"$f":"D3","v":0},null,{"$f":"F3","v":0},null,{"$f":"H3","v":0},null,{"$f":"J3","v":0},null,{"$f":"L3","v":0},null,{"$f":"N3","v":0},null,{"$f":"P3","v":0},null,{"$f":"R3","v":0},null,{"$f":"T3","v":0},null,{"$f":"V3","v":0},null,{"$f":"X3","v":0},null,{"$f":"Z3","v":0},null,{"$f":"AB3","v":0},null,{"$f":"AD3","v":0}]
["Career Pathway",null,{"$f":"B4","v":0},null,{"$f":"D4","v":0},null,{"$f":"F4","v":0},null,{"$f":"H4","v":0},null,{"$f":"J4","v":0},null,{"$f":"L4","v":0},null,{"$f":"N4","v":0},null,{"$f":"P4","v":0},null,{"$f":"R4","v":0},null,{"$f":"T4","v":0},null,{"$f":"V4","v":0},null,{"$f":"X4","v":0},null,{"$f":"Z4","v":0},null,{"$f":"AB4","v":0},null,{"$f":"AD4","v":0}]
["High Schools & Approved CTE Programs (Table C)"]
["Postsecondary Partner Institutions",null,"Please Select...",null,"Please Select...",null,"Please Select...",null,"Please Select...",null,"Please Select...",null,"Please Select...",null,"Please Select...",null,"Please Select...",null,"Please Select...",null,"Please Select...",null,"Please Select...",null,"Please Select...",null,"Please Select...",null,"Please Select...",null,"Please Select..."]
["Postsecondary CTE Program #1",null,"Please Select...",null,"Please Select...",null,"Please Select...",null,"Please Select...",null,"Please Select...",null,"Please Select...",null,"Please Select...",null,"Please Select...",null,"Please Select...",null,"Please Select...",null,"Please Select...",null,"Please Select...",null,"Please Select...",null,"Please Select...",null,"Please Select..."]
["Postsecondary CTE Program #2",null,"Please Select...",null,"Please Select...",null,"Please Select...",null,"Please Select...",null,"Please Select...",null,"Please Select...",null,"Please Select...",null,"Please Select...",null,"Please Select...",null,"Please Select...",null,"Please Select...",null,"Please Select...",null,"Please Select...",null,"Please Select...",null,"Please Select..."]
["Postsecondary CTE Program #3",null,"Please Select...",null,"Please Select...",null,"Please Select...",null,"Please Select...",null,"Please Select...",null,"Please Select...",null,"Please Select...",null,"Please Select...",null,"Please Select...",null,"Please Select...",null,"Please Select...",null,"Please Select...",null,"Please Select...",null,"Please Select...",null,"Please Select..."]
["Dual Enrollment Opportunities"]
["Recognized Secondary Credentials:"]
["  Approved Work-based Learning Programs"]
["   Certification and Industry Recognized Credential"]
["Recognized Postsecondary Credentials:"]
["   Academic Award"]
["   Work-based Learning"]
["   Licensure, Certifications, and/or Industry Recognized Credentials"]
[]
[]
["Yes"]
["No",null,null,null,null,null,null,null,null,null,null,null,null,null,null,null,null,null,null,null,null,null,null,null,null,null,null,null,null,null,"Yes"]
[null,null,null,null,null,null,null,null,null,null,null,null,null,null,null,null,null,null,null,null,null,null,null,null,null,null,null,null,null,null,"No"]
["Priority 1"]
["Priority 2"]
["Priority 3"]
["Reserve"]
["Not a Funding Priority"]

{"sheet":"FY26--POS Funding","index":5,"n_rows":23,"n_cols":21,"rows_kept":23,"cut":false,"hidden":false,"merged":[[4,11,4,12],[4,13,4,14],[4,15,4,16],[4,17,4,18],[4,19,4,20],[4,1,4,2],[4,3,4,4],[4,5,4,6],[4,7,4,8],[4,9,4,10],[9,11,9,12],[9,13,9,14],[9,15,9,16],[9,17,9,18],[9,19,9,20],[9,1,9,2],[9,3,9,4],[9,5,9,6],[9,7,9,8],[9,9,9,10],[10,11,10,12],[10,13,10,14],[10,15,10,16],[10,17,10,18],[10,19,10,20],[10,1,10,2],[10,3,10,4],[10,5,10,6],[10,7,10,8],[10,9,10,10],[0,1,0,2],[0,19,0,20],[0,17,0,18],[0,15,0,16],[0,13,0,14],[0,11,0,12],[0,9,0,10],[0,7,0,8],[0,5,0,6],[0,3,0,4]]}
[{"$f":"Instructions!A4","v":"[NAME] Consortium"},"POS 1",null,"POS 2",null,"POS 3",null,"POS 4",null,"POS 5",null,"POS 6",null,"POS 7",null,"POS 8",null,"POS 9",null,"POS 10"]
["Career Field",null,{"$f":"B2","v":0},null,{"$f":"D2","v":0},null,{"$f":"F2","v":0},null,{"$f":"H2","v":0},null,{"$f":"J2","v":0},null,{"$f":"L2","v":0},null,{"$f":"N2","v":0},null,{"$f":"P2","v":0},null,{"$f":"R2","v":0},null,{"$f":"T2","v":0}]
["Career Cluster",null,{"$f":"B3","v":0},null,{"$f":"D3","v":0},null,{"$f":"F3","v":0},null,{"$f":"H3","v":0},null,{"$f":"J3","v":0},null,{"$f":"L3","v":0},null,{"$f":"N3","v":0},null,{"$f":"P3","v":0},null,{"$f":"R3","v":0},null,{"$f":"T3","v":0}]
["Career Pathway",null,{"$f":"B4","v":0},null,{"$f":"D4","v":0},null,{"$f":"F4","v":0},null,{"$f":"H4","v":0},null,{"$f":"J4","v":0},null,{"$f":"L4","v":0},null,{"$f":"N4","v":0},null,{"$f":"P4","v":0},null,{"$f":"R4","v":0},null,{"$f":"T4","v":0}]
["High Schools & Approved CTE Programs (Table C)"]
["Postsecondary Partner Institutions",null,"Please Select...",null,"Please Select...",null,"Please Select...",null,"Please Select...",null,"Please Select...",null,"Please Select...",null,"Please Select...",null,"Please Select...",null,"Please Select...",null,"Please Select..."]
["Postsecondary CTE Program #1",null,"Please Select...",null,"Please Select...",null,"Please Select...",null,"Please Select...",null,"Please Select...",null,"Please Select...",null,"Please Select...",null,"Please Select...",null,"Please Select...",null,"Please Select..."]
["Postsecondary CTE Program #2",null,"Please Select...",null,"Please Select...",null,"Please Select...",null,"Please Select...",null,"Please Select...",null,"Please Select...",null,"Please Select...",null,"Please Select...",null,"Please Select...",null,"Please Select..."]
["Postsecondary CTE Program #3",null,"Please Select...",null,"Please Select...",null,"Please Select...",null,"Please Select...",null,"Please Select...",null,"Please Select...",null,"Please Select...",null,"Please Select...",null,"Please Select...",null,"Please Select..."]
["State-Recognized"]
["Funding Priority"]
["Interdisciplinary CTE-Related Courses (optional)"]
[]
[]
[]
[]
["Yes"]
["No"]
[]
["Priority 1"]
["Priority 2"]
["Priority 3"]
["Reserve"]

{"sheet":"Named Ranges","index":6,"n_rows":88,"n_cols":684,"rows_kept":88,"cut":false,"hidden":true,"merged":[]}
["Career_Fields",null,"Agriculture_Food_Natural_Resources","Arts_Communications_Information_Systems","Business_Management_Administration","Engineering_Manufacturing_Technology","Health_Science_Technology","Human_Services"]
["Agriculture_Food_Natural_Resources",null,"Agriculture_Food_and_Natural_Resources","Arts_Audio_Video_Technology_and_Communications","Finance","Transportation_Distribution_and_Logistics","Health_Science","Education_and_Training"]
["Arts_Communications_Information_Systems",null,null,"Information_Technology","Marketing","Architecture_and_Construction",null,"Government_and_Public_Administration"]
["Business_Management_Administration",null,null,null,"Business_Management_and_Administration","Manufacturing",null,"Law_Public_Safety_Corrections_and_Security"]
["Engineering_Manufacturing_Technology",null,null,null,"Hospitality_and_Tourism","STEM",null,"Human_Services_Pathway"]
["Health_Science_Technology"]
["Human_Services"]
[]
[]
[null,null,"Agriculture_Food_and_Natural_Resources","Arts_Audio_Video_Technology_and_Communications","Information_Technology","Finance","Marketing","Business_Management_and_Administration","Hospitality_and_Tourism","Transportation_Distribution_and_Logistics","Architecture_and_Construction","Manufacturing","STEM","Health_Science","Education_and_Training","Government_and_Public_Administration","Law_Public_Safety_Corrections_and_Security","Human_Services_Pathway"]
[null,null,"Animal_Systems","Audio_Video_Technology_and_Film","Information_Support_and_Services","Banking_Services","Merchandising","Administrative_Support","Lodging","Facility_and_Mobile_Equipment_Maintenance","Construction","Production","Engineering_and_Technology","Biotechnology_Research_and_Development","Administration_and_Administrative_Support","Revenue_and_Taxation","Correction_Services","Consumer_Services"]
[null,null,"Agribusiness_Systems","Journalism_and_Broadcasting","Network_Systems","Business_Finance","Marketing_Management","Operations_Management","Recreation_Amusements_and_Attractions","Health_Safety_and_Environmental_Management","Design_PreConstruction","Manufacturing_Production_Process_Development","Science_and_Mathematics","Diagnostic_Services","Professional_Support_Services","Foreign_Service","Emergency_and_Fire_Management_Services","Counseling_and_Mental_Health_Services"]
[null,null,"Environmental_Service_Systems","Performing_Arts","Programming_and_Software_Development","Securities_and_Investment","Marketing_Communications","Business_Information_Management","Restaurants_and_Food_Beverage_Services","Logistics_Planning_and_Management_Services","Maintenance_Operations","Maintenance_Installation_and_Repair",null,"Support_Services","Teaching_Training","Governance","Law_Enforcement_Services","Early_Childhood_Development_and_Services"]
[null,null,"Food_Products_and_Processing_Systems","Printing_Technology","Web_and_Digital_Communications","Accounting","Marketing_Research","Human_Resources_Management","Travel_and_Tourism","Sales_and_Services",null,"Quality_Assurance",null,"Health_Informatics",null,"National_Security","Legal_Services","Family_and_Community_Services"]
[null,null,"Natural_Resources_Systems","Communications_Technology",null,"Insurance","Professional_Sales","General_Management",null,"Transportation_Operations",null,"Logistics_and_Inventory_Control",null,"Therapeutic_Services",null,"Planning","Security_and_Protective_Services","Personal_Care_Services"]
[null,null,"Plant_Systems","Visual_Arts",null,null,null,null,null,"Transportation_Systems_Infrastructure_Planning_Management_and_Regulation",null,"Health_Safety_and_Environmental_Assurance",null,null,null,"Public_Management_and_Administration"]
[null,null,"Power_Structural_and_Technical_Systems",null,null,null,null,null,null,"Warehousing_and_Distribution_Center_Operations",null,null,null,null,null,"Regulation"]
[]
[]
[]
[]
[]
["These are PATHWAYS (from above)",null,"Animal_Systems","Agribusiness_Systems","Environmental_Service_Systems","Food_Products_and_Processing_Systems","Natural_Resources_Systems","Plant_Systems","Power_Structural_and_Technical_Systems","Audio_Video_Technology_and_Film","Journalism_and_Broadcasting","Performing_Arts","Printing_Technology","Communications_Technology","Visual_Arts","Information_Support_and_Services","Network_Systems","Programming_and_Software_Development","Web_and_Digital_Communications","Banking_Services","Business_Finance","Securities_and_Investments","Accounting","Insurance","Merchandising","Marketing_Management","Marketing_Communications","Marketing_Research","Professional_Sales","Administrative_Support","Operations_Management","Business_Information_Management","Human_Resources_Management","General_Management","Lodging","Recreation_Amusements_and_Attractions","Restaurants_and_Food_Beverage_Services","Travel_and_Tourism","Facility_and_Mobile_Equipment_Maintenance","Health_Safety_and_Environmental_Management","Logistics_Planning_and_Management_Services","Sales_and_Services","Transportation_Operations","Transportation_Systems_Infrastructure_Planning_Management_and_Regulation","Warehousing_and_Distribution_Center_Operations","Construction","Design_PreConstruction","Maintenance_Operations","Production","Manufacturing_Production_Process_Development","Maintenance_Installation_and_Repair","Quality_Assurance","Logistics_and_Inventory_Control","Health_Safety_and_Environmental_Assurance","Engineering_and_Technology","Science_and_Mathematics","Biotechnology_Research_and_Development","Diagnostic_Services","Support_Services","Health_Informatics","Therapeutic_Services","Administration_and_Administrative_Support","Professional_Support_Services","Teaching_Training","Revenue_and_Taxation","Foreign_Service","Governance","National_Security","Planning","Public_Management_and_Administration","Regulation","Correction_Services","Emergency_and_Fire_Management_Services","Law_Enforcement_Services","Legal_Services","Security_and_Protective_Services","Consumer_Services","Counseling_and_Mental_Health_Services","Early_Childhood_Development_and_Services","Family_and_Community_Services","Personal_Care_Services"]
[null,null,"Dakota_County_Technical_College_005","Alexandria_Technical_Community_College_004","Hennepin_Technical_College_020","Dakota_County_Technical_College_023","Anoka_Ramsey_Community_College_047","Anoka_Technical_College_053","Northland_Community_Technical_College_054","Century_College_006","Fond_du_Lac_Tribal_Community_College_033","Central_Lakes_College_050","Hennepin_Technical_College_055","[none]","Alexandria_Technical_Community_College_077","Alexandria_Technical_Community_College_031","Alexandria_Technical_Community_College_048","Anoka_Technical_College_059","Anoka_Technical_College_079","North_Hennepin_Community_College_007","[none]","Fond_du_Lac_Tribal_Community_College_068","Alexandria_Technical_Community_College_001","[none]","Alexandria_Technical_Community_College_045","Century_College_043","Anoka_Ramsey_Community_College_042","[none]","Century_College_057","Anoka_Technical_College_003","Dakota_County_Technical_College_049","Dakota_County_Technical_College_010","Anoka_Technical_College_030","Alexandria_Technical_Community_College_025","[none]","[none]","Central_Lakes_College_064","Normandale_Community_College_076","Alexandria_Technical_Community_College_021","Hennepin_Technical_College_028","Dakota_County_Technical_College_038","[none]","Alexandria_Technical_Community_College_074","[none]","[none]","Alexandria_Technical_Community_College_011","Alexandria_Technical_Community_College_015","Century_College_040","Alexandria_Technical_Community_College_056","Alexandria_Technical_Community_College_041","Anoka_Technical_College_039","Anoka_Technical_College_061","[none]","[none]","Alexandria_Technical_Community_College_019","Fond_du_Lac_Tribal_Community_College_067","Alexandria_Technical_Community_College_008","Alexandria_Technical_Community_College_016","Alexandria_Technical_Community_College_070","Alexandria_Technical_Community_College_027","Alexandria_Technical_Community_College_073","[none]","Century_College_058","Alexandria_Technical_Community_College_071","[none]","[none]","[none]","North_Hennepin_Community_College_046","[none]","Dakota_County_Technical_College_060","[none]","Century_College_013","Anoka_Technical_College_018","Alexandria_Technical_Community_College_034","Alexandria_Technical_Community_College_035","Century_College_069","[none]","Anoka_Ramsey_Community_College_014","Central_Lakes_College_017","Alexandria_Technical_Community_College_022","Century_College_051"]
["These are COLLEGES offering these pathways",null,"Minnesota_North_College_005","Central_Lakes_College_004","Minnesota_North_College_020","Minnesota_West_Community_Technical_College_023","Central_Lakes_College_047","Central_Lakes_College_053","Ridgewater_College_054","Hennepin_Technical_College_006","Hennepin_Technical_College_033","Rochester_Community_Technical_College_050","North_Hennepin_Community_College_055",null,"Central_Lakes_College_077","Anoka_Technical_College_031","Anoka_Ramsey_Community_College_048","Anoka_Ramsey_Community_College_059","Century_College_079","StCloud_Technical_Community_College_007",null,"North_Hennepin_Community_College_068","Anoka_Ramsey_Community_College_001",null,"Anoka_Ramsey_Community_College_045","Dakota_County_Technical_College_043","Minnesota_State_Community_Technical_College_042",null,"Dakota_County_Technical_College_057","Anoka_Ramsey_Community_College_003","Northland_Community_Technical_College_049","Lake_Superior_College_010","Anoka_Ramsey_Community_College_030","Anoka_Technical_College_025",null,null,"Hennepin_Technical_College_064","Saint_Paul_College_076","Anoka_Technical_College_021","Minnesota_State_Community_Technical_College_028","Lake_Superior_College_038",null,"Hibbing_Community_College_074",null,null,"Anoka_Technical_College_011","Anoka_Technical_College_015","Dakota_County_Technical_College_040","Anoka_Technical_College_056","Anoka_Technical_College_041","Anoka_Ramsey_Community_College_039","Hennepin_Technical_College_061",null,null,"Anoka_Ramsey_Community_College_019","Minnesota_North_College_067","Anoka_Ramsey_Community_College_008","Central_Lakes_College_016","Anoka_Technical_College_070","Anoka_Technical_College_027","Anoka_Technical_College_073",null,"Minneapolis_Community_Technical_College_058","Anoka_Ramsey_Community_College_071",null,null,null,"Institution Not on List (See Narrrative)",null,"North_Hennepin_Community_College_060",null,"Fond_du_Lac_Tribal_Community_College_013","Central_Lakes_College_018","Central_Lakes_College_034","Anoka_Technical_College_035","Riverland_Community_College_069",null,"Century_College_014","Dakota_County_Technical_College_017","Anoka_Technical_College_022","Minnesota_State_College_Southeast_051"]
[null,null,"Minnesota_West_Community_Technical_College_005","Century_College_004","StCloud_Technical_Community_College_020","Riverland_Community_College_023","Fond_du_Lac_Tribal_Community_College_047","Century_College_053","South_Central_College_054","Minneapolis_Community_Technical_College_006","Inver_Hills_Community_College_033","Institution Not on List (See Narrrative)","South_Central_College_055",null,"Century_College_077","Anoka_Ramsey_Community_College_031","Central_Lakes_Collge_048","Century_College_059","Dakota_County_Technical_College_079","Institution Not on List (See Narrrative)",null,"Saint_Paul_College_068","Central_Lakes_College_001",null,"Inver_Hills_Community_College_045","Normandale_Community_College_043","North_Hennepin_Community_College_042",null,"Hennepin_Technical_College_057","Central_Lakes_College_003","Institution Not on List (See Narrrative)","North_Hennepin_Community_College_010","Dakota_County_Technical_College_030","Anoka_Ramsey_Community_College_025",null,null,"Minnesota_North_College_064","Institution Not on List (See Narrrative)","Central_Lakes_College_021","Institution Not on List (See Narrrative)","Minnesota_State_College_Southeast_038",null,"Lake_Superior_College_074",null,null,"Century_College_011","Century_College_015","Hennepin_Technical_College_040","Central_Lakes_College_056","Central_Lakes_College_041","Dakota_County_Technical_College_039","Lake_Superior_College_061",null,null,"Central_Lakes_College_019","Saint_Paul_College_067","Central_Lakes_College_008","Century_College_016","Anoka_Ramsey_Community_College_070","Dakota_County_Technical_College_027","Anoka_Ramsey_Community_College_073",null,"Minnesota_State_Community_Technical_College_058","Central_Lakes_College_071",null,null,null,null,null,"Institution Not on List (See Narrrative)",null,"Inver_Hills_Community_College_013","Century_College_018","Century_College_034","Dakota_County_Technical_College_035","Institution Not on List (See Narrrative)",null,"Fond_du_Lac_Tribal_Community_College_014","Fond_du_Lac_Tribal_Community_College_017","Anoka_Ramsey_Community_College_022","Minnesota_State_Community_Technical_College_051"]
["Example: Plant Systems is pathway code 053",null,"Northland_Community_Technical_College_005","Hennepin_Technical_College_004","Institution Not on List (See Narrrative)","Institution Not on List (See Narrrative)","Hennepin_Technical_College_047","Hennepin_Technical_College_053","Institution Not on List (See Narrrative)","Institution Not on List (See Narrrative)","Lake_Superior_College_033",null,"Institution Not on List (See Narrrative)",null,"Dakota_County_Technical_College_077","Century_College_031","Century_College_048","Dakota_County_Technical_College_059","Hennepin_Technical_College_079",null,null,"Institution Not on List (See Narrrative)","Century_College_001",null,"Minnesota_State_College_Southeast_045","North_Hennepin_Community_College_043","Institution Not on List (See Narrrative)",null,"Lake_Superior_College_057","Century_College_003",null,"Pine_Technical_Community_College_010","Inver_Hills_Community_College_030","Central_Lakes_College_025",null,null,"Minnesota_State_Community_Technical_College_064",null,"Century_College_021",null,"Northland_Community_Technical_College_038",null,"Minnesota_State_College_Southeast_074",null,null,"Dakota_County_Technical_College_011","Dakota_County_Technical_College_015","Minneapolis_Community_Technical_College_040","Century_College_056","Century_College_041","Hennepin_Technical_College_039","Institution Not on List (See Narrrative)",null,null,"Century_College_019","South_Central_College_067","Century_College_008","Lake_Superior_College_016","Central_Lakes_College_070","Minneapolis_Community_Technical_College_027","Central_Lakes_College_073",null,"Saint_Paul_College_058","Century_College_071",null,null,null,null,null,null,null,"Minnesota_State_Community_Technical_College_013","Hennepin_Technical_College_018","Fond_du_Lac_Tribal_Community_College_034","Inver_Hills_Community_College_035",null,null,"Hennepin_Technical_College_014","Hennepin_Technical_College_017","Central_Lakes_College_022","Minnesota_West_Community_Technical_College_051"]
["Anoka_Technical_College_053",null,"Ridgewater_College_005","Minneapolis_Community_Technical_College_004",null,null,"Inver_Hills_Community_College_047","Minnesota_West_Community_Technical_College_053",null,null,"Minneapolis_Community_Technical_College_033",null,null,null,"Hennepin_Technical_College_077","Dakota_County_Technical_College_031","Hennepin_Technical_College_048","Hennepin_Technical_College_059","Lake_Superior_College_079",null,null,null,"Dakota_County_Technical_College_001",null,"Minnesota_State_Community_Technical_College_045","Ridgewater_College_043",null,null,"Minnesota_State_College_Southeast_057","Dakota_County_Technical_College_003",null,"Riverland_Community_College_010","Minnesota_State_Community_Technical_College_030","Century_College_025",null,null,"Ridgewater_College_064",null,"Dakota_County_Technical_College_021",null,"Saint_Paul_College_038",null,"Riverland_Community_College_074",null,null,"Fond_du_Lac_Tribal_Community_College_011","Hennepin_Technical_College_015","Minnesota_North_College_040","Dakota_County_Technical_College_056","Dakota_County_Technical_College_041","Lake_Superior_College_039",null,null,null,"Dakota_County_Technical_College_019","Institution Not on List (See Narrrative)","Fond_du_Lac_Tribal_Community_College_008","Minneapolis_Community_Technical_College_016","Century_College_070","Minnesota_North_College_027","Century_College_073",null,"Institution Not on List (See Narrrative)","Dakota_County_Technical_College_071",null,null,null,null,null,null,null,"North_Hennepin_Community_College_013","Inver_Hills_Community_College_018","Hennepin_Technical_College_034","Lake_Superior_College_035",null,null,"Inver_Hills_Community_College_014","Inver_Hills_Community_College_017","Century_College_022","Northwest_Technical_College_Bemidji_051"]
["Central_Lakes_College_053",null,"Rochester_Community_Technical_College_005","Minnesota_State_Community_Technical_College_004",null,null,"Minneapolis_Community_Technical_College_047","Northland_Community_Technical_College_053",null,null,"Ridgewater_College_033",null,null,null,"Minneapolis_Community_Technical_College_077","Hennepin_Technical_College_031","Inver_Hills_Community_College_048","Inver_Hills_Community_College_059","Minneapolis_Community_Technical_College_079",null,null,null,"Hennepin_Technical_College_001",null,"North_Hennepin_Community_College_045","Riverland_Community_College_043",null,null,"North_Hennepin_Community_College_057","Hennepin_Technical_College_003",null,"Rochester_Community_Technical_College_010","Normandale_Community_College_030","Dakota_County_Technical_College_025",null,null,"Saint_Paul_College_064",null,"Hennepin_Technical_College_021",null,"Institution Not on List (See Narrrative)",null,"Rochester_Community_Technical_College_074",null,null,"Hennepin_Technical_College_011","Lake_Superior_College_015","Minnesota_State_Community_Technical_College_040","Hennepin_Technical_College_056","Fond_du_Lac_Tribal_Community_College_041","Minnesota_North_College_039",null,null,null,"Hennepin_Technical_College_019",null,"Hennepin_Technical_College_008","Minnesota_North_College_016","Dakota_County_Technical_College_070","Minnesota_State_College_Southeast_027","Dakota_County_Technical_College_073",null,null,"Fond_du_Lac_Tribal_Community_College_071",null,null,null,null,null,null,null,"Riverland_Community_College_013","Lake_Superior_College_018","Inver_Hills_Community_College_034","Minnesota_State_Community_Technical_College_035",null,null,"Minneapolis_Community_Technical_College_014","Minneapolis_Community_Technical_College_017","Fond_du_Lac_Tribal_Community_College_022","Ridgewater_College_051"]
[null,null,"South_Central_College_005","Minnesota_West_Community_Technical_College_004",null,null,"Minnesota_North_College_047","Ridgewater_College_053",null,null,"Rochester_Community_Technical_College_033",null,null,null,"Minnesota_North_College_077","Inver_Hills_Community_College_031","Lake_Superior_College_048","Minneapolis_Community_Technical_College_059","Minnesota_State_College_Southeast_079",null,null,null,"Inver_Hills_Community_College_001",null,"Northland_Community_Technical_College_045","Saint_Paul_College_043",null,null,"Northland_Community_Technical_College_057","Inver_Hills_Community_College_003",null,"Saint_Paul_College_010","Northwest_Technical_College_Bemidji_030","Fond_du_Lac_Tribal_Community_College_025",null,null,"South_Central_College_064",null,"Lake_Superior_College_021",null,null,null,"Institution Not on List (See Narrrative)",null,null,"Inver_Hills_Community_College_011","Minneapolis_Community_Technical_College_015","Northland_Community_Technical_College_040","Lake_Superior_College_056","Hennepin_Technical_College_041","Minnesota_State_College_Southeast_039",null,null,null,"Inver_Hills_Community_College_019",null,"Inver_Hills_Community_College_008","Minnesota_State_College_Southeast_016","Hennepin_Technical_College_070","Minnesota_State_Community_Technical_College_027","Fond_du_Lac_Tribal_Community_College_073",null,null,"Hennepin_Technical_College_071",null,null,null,null,null,null,null,"Institution Not on List (See Narrrative)","Minnesota_North_College_018","Lake_Superior_College_034","North_Hennepin_Community_College_035",null,null,"Minnesota_North_College_014","Minnesota_North_College_017","Hennepin_Technical_College_022","Riverland_Community_College_051"]
[null,null,"Institution Not on List (See Narrrative)","Northland_Community_Technical_College_004",null,null,"Minnesota_State_Community_Technical_College_047","Riverland_Community_College_053",null,null,"Institution Not on List (See Narrrative)",null,null,null,"Minnesota_State_Community_Technical_College_077","Lake_Superior_College_031","Minneapolis_Community_Technical_College_048","Minnesota_State_College_Southeast_059","Minnesota_State_Community_Technical_College_079",null,null,null,"Lake_Superior_College_001",null,"Northwest_Technical_College_Bemidji_045","South_Central_College_043",null,null,"Northwest_Technical_College_Bemidji_057","Lake_Superior_College_003",null,"Institution Not on List (See Narrrative)","Riverland_Community_College_030","Hennepin_Technical_College_025",null,null,"StCloud_Technical_Community_College_064",null,"Minneapolis_Community_Technical_College_021",null,null,null,null,null,null,"Lake_Superior_College_011","Minnesota_State_Community_Technical_College_015","Northwest_Technical_College_Bemidji_040","Minneapolis_Community_Technical_College_056","Lake_Superior_College_041","Minnesota_West_Community_Technical_College_039",null,null,null,"Minnesota_North_College_019",null,"Lake_Superior_College_008","Minnesota_State_Community_Technical_College_016","Lake_Superior_College_070","Minnesota_West_Community_Technical_College_027","Hennepin_Technical_College_073",null,null,"Inver_Hills_Community_College_071",null,null,null,null,null,null,null,null,"Minnesota_State_Community_Technical_College_018","Minneapolis_Community_Technical_College_034","Ridgewater_College_035",null,null,"Minnesota_West_Community_Technical_College_014","Minnesota_State_College_Southeast_017","Inver_Hills_Community_College_022","Saint_Paul_College_051"]
[null,null,null,"Ridgewater_College_004",null,null,"North_Hennepin_Community_College_047","South_Central_College_053",null,null,null,null,null,null,"North_Hennepin_Community_College_077","Minneapolis_Community_Technical_College_031","Minnesota_North_College_048","Minnesota_State_Community_Technical_College_059","Minnesota_West_Community_Technical_College_079",null,null,null,"Minneapolis_Community_Technical_College_001",null,"Ridgewater_College_045","StCloud_Technical_Community_College_043",null,null,"Institution Not on List (See Narrrative)","Minnesota_North_College_003",null,null,"Rochester_Community_Technical_College_030","Inver_Hills_Community_College_025",null,null,"Institution Not on List (See Narrrative)",null,"Minnesota_North_College_021",null,null,null,null,null,null,"Minnesota_North_College_011","Northland_Community_Technical_College_015","South_Central_College_040","Minnesota_North_College_056","Minneapolis_Community_Technical_College_041","Pine_Technical_Community_College_039",null,null,null,"Minnesota_State_College_Southeast_019",null,"Minneapolis_Community_Technical_College_008","Minnesota_West_Community_Technical_College_016","Minneapolis_Community_Technical_College_070","Northland_Community_Technical_College_027","Inver_Hills_Community_College_073",null,null,"Minneapolis_Community_Technical_College_071",null,null,null,null,null,null,null,null,"Minnesota_West_Community_Technical_College_018","Minnesota_North_College_034","Institution Not on List (See Narrrative)",null,null,"Normandale_Community_College_014","Minnesota_State_Community_Technical_College_017","Minneapolis_Community_Technical_College_022","Institution Not on List (See Narrrative)"]
[null,null,null,"Riverland_Community_College_004",null,null,"Rochester_Community_Technical_College_047","Institution Not on List (See Narrrative)",null,null,null,null,null,null,"Ridgewater_College_077","Minnesota_North_College_031","Minnesota_State_Community_Technical_College_048","Minnesota_West_Community_Technical_College_059","North_Hennepin_Community_College_079",null,null,null,"Minnesota_North_College_001",null,"StCloud_Technical_Community_College_045","Institution Not on List (See Narrrative)",null,null,null,"Minnesota_State_College_Southeast_003",null,null,"Saint_Paul_College_030","Lake_Superior_College_025",null,null,null,null,"Minnesota_State_College_Southeast_021",null,null,null,null,null,null,"Minnesota_State_College_Southeast_011","South_Central_College_015","StCloud_Technical_Community_College_040","Minnesota_State_College_Southeast_056","Minnesota_North_College_041","Riverland_Community_College_039",null,null,null,"Minnesota_State_Community_Technical_College_019",null,"Minnesota_North_College_008","North_Hennepin_Community_College_016","Minnesota_State_College_Southeast_070","Northwest_Technical_College_Bemidji_027","Lake_Superior_College_073",null,null,"Minnesota_North_College_071",null,null,null,null,null,null,null,null,"Northland_Community_Technical_College_018","Minnesota_State_College_Southeast_034",null,null,null,"Northwest_Technical_College_Bemidji_014","Minnesota_West_Community_Technical_College_017","Minnesota_North_College_022"]
[null,null,null,"South_Central_College_004",null,null,"StCloud_Technical_Community_College_047",null,null,null,null,null,null,null,"Rochester_Community_Technical_College_077","Minnesota_State_College_Southeast_031","Minnesota_West_Community_Technical_College_048","North_Hennepin_Community_College_059","Ridgewater_College_079",null,null,null,"Minnesota_State_College_Southeast_001",null,"Institution Not on List (See Narrrative)",null,null,null,null,"Minnesota_State_Community_Technical_College_003",null,null,"Institution Not on List (See Narrrative)","Minneapolis_Community_Technical_College_025",null,null,null,null,"Minnesota_State_Community_Technical_College_021",null,null,null,null,null,null,"Minnesota_State_Community_Technical_College_011","StCloud_Technical_Community_College_015","Institution Not on List (See Narrrative)","Minnesota_State_Community_Technical_College_056","Minnesota_State_College_Southeast_041","Saint_Paul_College_039",null,null,null,"Normandale_Community_College_019",null,"Minnesota_State_College_Southeast_008","Northland_Community_Technical_College_016","Minnesota_State_Community_Technical_College_070","Ridgewater_College_027","Minneapolis_Community_Technical_College_073",null,null,"Minnesota_State_College_Southeast_071",null,null,null,null,null,null,null,null,"Northwest_Technical_College_Bemidji_018","Minnesota_State_Community_Technical_College_034",null,null,null,"Ridgewater_College_014","Northwest_Technical_College_Bemidji_017","Minnesota_State_College_Southeast_022"]
[null,null,null,"StCloud_Technical_Community_College_004",null,null,"Institution Not on List (See Narrrative)",null,null,null,null,null,null,null,"Saint_Paul_College_077","Minnesota_State_Community_Technical_College_031","Normandale_Community_College_048","Pine_Technical_Community_College_059","Riverland_Community_College_079",null,null,null,"Minnesota_State_Community_Technical_College_001",null,null,null,null,null,null,"Minnesota_West_Community_Technical_College_003",null,null,null,"Minnesota_North_College_025",null,null,null,null,"Minnesota_West_Community_Technical_College_021",null,null,null,null,null,null,"Minnesota_West_Community_Technical_College_011","Institution Not on List (See Narrrative)",null,"Minnesota_West_Community_Technical_College_056","Minnesota_State_Community_Technical_College_041","StCloud_Technical_Community_College_039",null,null,null,"North_Hennepin_Community_College_019",null,"Minnesota_State_Community_Technical_College_008","Ridgewater_College_016","Minnesota_West_Community_Technical_College_070","Rochester_Community_Technical_College_027","Minnesota_North_College_073",null,null,"Minnesota_State_Community_Technical_College_071",null,null,null,null,null,null,null,null,"Pine_Technical_Community_College_018","Minnesota_West_Community_Technical_College_034",null,null,null,"Rochester_Community_Technical_College_014","Pine_Technical_Community_College_017","Normandale_Community_College_022"]
[null,null,null,"Institution Not on List (See Narrrative)",null,null,null,null,null,null,null,null,null,null,"South_Central_College_077","Minnesota_West_Community_Technical_College_031","North_Hennepin_Community_College_048","Ridgewater_College_059","Saint_Paul_College_079",null,null,null,"Minnesota_West_Community_Technical_College_001",null,null,null,null,null,null,"Normandale_Community_College_003",null,null,null,"Minnesota_State_College_Southeast_025",null,null,null,null,"Northland_Community_Technical_College_021",null,null,null,null,null,null,"North_Hennepin_Community_College_011",null,null,"Northland_Community_Technical_College_056","Minnesota_West_Community_Technical_College_041","Institution Not on List (See Narrrative)",null,null,null,"Riverland_Community_College_019",null,"Minnesota_West_Community_Technical_College_008","Riverland_Community_College_016","Normandale_Community_College_070","Saint_Paul_College_027","Minnesota_State_College_Southeast_073",null,null,"Minnesota_West_Community_Technical_College_071",null,null,null,null,null,null,null,null,"Ridgewater_College_018","Normandale_Community_College_034",null,null,null,"South_Central_College_014","Rochester_Community_Technical_College_017","North_Hennepin_Community_College_022"]
[null,null,null,null,null,null,null,null,null,null,null,null,null,null,"Institution Not on List (See Narrrative)","Normandale_Community_College_031","Northland_Community_Technical_College_048","Riverland_Community_College_059","South_Central_College_079",null,null,null,"Normandale_Community_College_001",null,null,null,null,null,null,"North_Hennepin_Community_College_003",null,null,null,"Minnesota_State_Community_Technical_College_025",null,null,null,null,"Northwest_Technical_College_Bemidji_021",null,null,null,null,null,null,"Northland_Community_Technical_College_011",null,null,"Northwest_Technical_College_Bemidji_056","Normandale_Community_College_041",null,null,null,null,"Rochester_Community_Technical_College_019",null,"Normandale_Community_College_008","Rochester_Community_Technical_College_016","Northland_Community_Technical_College_070","StCloud_Technical_Community_College_027","Minnesota_State_Community_Technical_College_073",null,null,"Normandale_Community_College_071",null,null,null,null,null,null,null,null,"Riverland_Community_College_018","North_Hennepin_Community_College_034",null,null,null,"StCloud_Technical_Community_College_014","Saint_Paul_College_017","Pine_Technical_Community_College_022"]
[null,null,null,null,null,null,null,null,null,null,null,null,null,null,null,"North_Hennepin_Community_College_031","Northwest_Technical_College_Bemidji_048","Rochester_Community_Technical_College_059","Institution Not on List (See Narrrative)",null,null,null,"North_Hennepin_Community_College_001",null,null,null,null,null,null,"Northland_Community_Technical_College_003",null,null,null,"Minnesota_West_Community_Technical_College_025",null,null,null,null,"Pine_Technical_Community_College_021",null,null,null,null,null,null,"Northwest_Technical_College_Bemidji_011",null,null,"Pine_Technical_Community_College_056","Northland_Community_Technical_College_041",null,null,null,null,"Saint_Paul_College_019",null,"North_Hennepin_Community_College_008","Saint_Paul_College_016","Northwest_Technical_College_Bemidji_070","Institution Not on List (See Narrrative)","Minnesota_West_Community_Technical_College_073",null,null,"North_Hennepin_Community_College_071",null,null,null,null,null,null,null,null,"Rochester_Community_Technical_College_018","Northland_Community_Technical_College_034",null,null,null,"Institution Not on List (See Narrrative)","South_Central_College_017","Riverland_Community_College_022"]
[null,null,null,null,null,null,null,null,null,null,null,null,null,null,null,"Northwest_Technical_College_Bemidji_031","Pine_Technical_Community_College_048","Saint_Paul_College_059",null,null,null,null,"Northland_Community_Technical_College_001",null,null,null,null,null,null,"Northwest_Technical_College_Bemidji_003",null,null,null,"Normandale_Community_College_025",null,null,null,null,"Ridgewater_College_021",null,null,null,null,null,null,"Pine_Technical_Community_College_011",null,null,"Ridgewater_College_056","Northwest_Technical_College_Bemidji_041",null,null,null,null,"South_Central_College_019",null,"Northland_Community_Technical_College_008","South_Central_College_016","Ridgewater_College_070",null,"Normandale_Community_College_073",null,null,"Northland_Community_Technical_College_071",null,null,null,null,null,null,null,null,"South_Central_College_018","Ridgewater_College_034",null,null,null,null,"Institution Not on List (See Narrrative)","Rochester_Community_Technical_College_022"]
[null,null,null,null,null,null,null,null,null,null,null,null,null,null,null,"Pine_Technical_Community_College_031","Riverland_Community_College_048","StCloud_Technical_Community_College_059",null,null,null,null,"Northwest_Technical_College_Bemidji_001",null,null,null,null,null,null,"Ridgewater_College_003",null,null,null,"North_Hennepin_Community_College_025",null,null,null,null,"Riverland_Community_College_021",null,null,null,null,null,null,"Ridgewater_College_011",null,null,"Riverland_Community_College_056","Pine_Technical_Community_College_041",null,null,null,null,"StCloud_Technical_Community_College_019",null,"Northwest_Technical_College_Bemidji_008","StCloud_Technical_Community_College_016","Riverland_Community_College_070",null,"North_Hennepin_Community_College_073",null,null,"Northwest_Technical_College_Bemidji_071",null,null,null,null,null,null,null,null,"StCloud_Technical_Community_College_018","Riverland_Community_College_034",null,null,null,null,null,"South_Central_College_022"]
[null,null,null,null,null,null,null,null,null,null,null,null,null,null,null,"Ridgewater_College_031","Rochester_Community_Technical_College_048","Institution Not on List (See Narrrative)",null,null,null,null,"Pine_Technical_Community_College_001",null,null,null,null,null,null,"Riverland_Community_College_003",null,null,null,"Northland_Community_Technical_College_025",null,null,null,null,"Rochester_Community_Technical_College_021",null,null,null,null,null,null,"Riverland_Community_College_011",null,null,"Rochester_Community_Technical_College_056","Ridgewater_College_041",null,null,null,null,"Institution Not on List (See Narrrative)",null,"Pine_Technical_Community_College_008","Institution Not on List (See Narrrative)","Rochester_Community_Technical_College_070",null,"Northland_Community_Technical_College_073",null,null,"Ridgewater_College_071",null,null,null,null,null,null,null,null,"Institution Not on List (See Narrrative)","Rochester_Community_Technical_College_034",null,null,null,null,null,"StCloud_Technical_Community_College_022"]
[null,null,null,null,null,null,null,null,null,null,null,null,null,null,null,"Riverland_Community_College_031","Saint_Paul_College_048",null,null,null,null,null,"Ridgewater_College_001",null,null,null,null,null,null,"Rochester_Community_Technical_College_003",null,null,null,"Northwest_Technical_College_Bemidji_025",null,null,null,null,"Saint_Paul_College_021",null,null,null,null,null,null,"Rochester_Community_Technical_College_011",null,null,"Saint_Paul_College_056","Riverland_Community_College_041",null,null,null,null,null,null,"Ridgewater_College_008",null,"Saint_Paul_College_070",null,"Northwest_Technical_College_Bemidji_073",null,null,"Riverland_Community_College_071",null,null,null,null,null,null,null,null,null,"Saint_Paul_College_034",null,null,null,null,null,"Institution Not on List (See Narrrative)"]
[null,null,null,null,null,null,null,null,null,null,null,null,null,null,null,"Rochester_Community_Technical_College_031","South_Central_College_048",null,null,null,null,null,"Riverland_Community_College_001",null,null,null,null,null,null,"Saint_Paul_College_003",null,null,null,"Pine_Technical_Community_College_025",null,null,null,null,"South_Central_College_021",null,null,null,null,null,null,"Saint_Paul_College_011",null,null,"South_Central_College_056","Rochester_Community_Technical_College_041",null,null,null,null,null,null,"Riverland_Community_College_008",null,"South_Central_College_070",null,"Pine_Technical_Community_College_073",null,null,"Rochester_Community_Technical_College_071",null,null,null,null,null,null,null,null,null,"Institution Not on List (See Narrrative)"]
[null,null,null,null,null,null,null,null,null,null,null,null,null,null,null,"Saint_Paul_College_031","Institution Not on List (See Narrrative)",null,null,null,null,null,"Rochester_Community_Technical_College_001",null,null,null,null,null,null,"South_Central_College_003",null,null,null,"Ridgewater_College_025",null,null,null,null,"StCloud_Technical_Community_College_021",null,null,null,null,null,null,"South_Central_College_011",null,null,"StCloud_Technical_Community_College_056","Saint_Paul_College_041",null,null,null,null,null,null,"Rochester_Community_Technical_College_008",null,"Institution Not on List (See Narrrative)",null,"Ridgewater_College_073",null,null,"Saint_Paul_College_071"]
[null,null,null,null,null,null,null,null,null,null,null,null,null,null,null,"South_Central_College_031",null,null,null,null,null,null,"Saint_Paul_College_001",null,null,null,null,null,null,"StCloud_Technical_Community_College_003",null,null,null,"Riverland_Community_College_025",null,null,null,null,"Institution Not on List (See Narrrative)",null,null,null,null,null,null,"StCloud_Technical_Community_College_011",null,null,"Institution Not on List (See Narrrative)","South_Central_College_041",null,null,null,null,null,null,"Saint_Paul_College_008",null,null,null,"Riverland_Community_College_073",null,null,"South_Central_College_071"]
[null,null,null,null,null,null,null,null,null,null,null,null,null,null,null,"StCloud_Technical_Community_College_031",null,null,null,null,null,null,"South_Central_College_001",null,null,null,null,null,null,"Institution Not on List (See Narrrative)",null,null,null,"Rochester_Community_Technical_College_025",null,null,null,null,null,null,null,null,null,null,null,"Institution Not on List (See Narrrative)",null,null,null,"StCloud_Technical_Community_College_041",null,null,null,null,null,null,"South_Central_College_008",null,null,null,"Rochester_Community_Technical_College_073",null,null,"StCloud_Technical_Community_College_071"]
[null,null,null,null,null,null,null,null,null,null,null,null,null,null,null,"Institution Not on List (See Narrrative)",null,null,null,null,null,null,"StCloud_Technical_Community_College_001",null,null,null,null,null,null,null,null,null,null,"Saint_Paul_College_025",null,null,null,null,null,null,null,null,null,null,null,null,null,null,null,"Institution Not on List (See Narrrative)",null,null,null,null,null,null,"StCloud_Technical_Community_College_008",null,null,null,"Saint_Paul_College_073",null,null,"Institution Not on List (See Narrrative)"]
[null,null,null,null,null,null,null,null,null,null,null,null,null,null,null,null,null,null,null,null,null,null,"Institution Not on List (See Narrrative)",null,null,null,null,null,null,null,null,null,null,"South_Central_College_025",null,null,null,null,null,null,null,null,null,null,null,null,null,null,null,null,null,null,null,null,null,null,"Institution Not on List (See Narrrative)",null,null,null,"South_Central_College_073"]
[null,null,null,null,null,null,null,null,null,null,null,null,null,null,null,null,null,null,null,null,null,null,null,null,null,null,null,null,null,null,null,null,null,"StCloud_Technical_Community_College_025",null,null,null,null,null,null,null,null,null,null,null,null,null,null,null,null,null,null,null,null,null,null,null,null,null,null,"StCloud_Technical_Community_College_073"]
[null,null,null,null,null,null,null,null,null,null,null,null,null,null,null,null,null,null,null,null,null,null,null,null,null,null,null,null,null,null,null,null,null,"Institution Not on List (See Narrrative)",null,null,null,null,null,null,null,null,null,null,null,null,null,null,null,null,null,null,null,null,null,null,null,null,null,null,"Institution Not on List (See Narrrative)"]
[]
[]
[]
[]
[]
[]
[]
["These are College Name (PW#) from above",null,"Dakota_County_Technical_College_005","Minnesota_North_College_005","Minnesota_West_Community_Technical_College_005","Northland_Community_Technical_College_005","Ridgewater_College_005","Rochester_Community_Technical_College_005","South_Central_College_005","Alexandria_Technical_Community_College_004","Central_Lakes_College_004","Century_College_004","Hennepin_Technical_College_004","Minneapolis_Community_Technical_College_004","Minnesota_State_Community_Technical_College_004","Minnesota_West_Community_Technical_College_004","Northland_Community_Technical_College_004","Ridgewater_College_004","Riverland_Community_College_004","South_Central_College_004","StCloud_Technical_Community_College_004","Hennepin_Technical_College_020","Minnesota_North_College_020","StCloud_Technical_Community_College_020","Dakota_County_Technical_College_023","Minnesota_West_Community_Technical_College_023","Riverland_Community_College_023","Anoka_Ramsey_Community_College_047","Central_Lakes_College_047","Fond_du_Lac_Tribal_Community_College_047","Hennepin_Technical_College_047","Inver_Hills_Community_College_047","Minneapolis_Community_Technical_College_047","Minnesota_North_College_047","Minnesota_State_Community_Technical_College_047","North_Hennepin_Community_College_047","Rochester_Community_Technical_College_047","StCloud_Technical_Community_College_047","Anoka_Technical_College_053","Central_Lakes_College_053","Century_College_053","Hennepin_Technical_College_053","Minnesota_West_Community_Technical_College_053","Northland_Community_Technical_College_053","Ridgewater_College_053","Riverland_Community_College_053","South_Central_College_053","Northland_Community_Technical_College_054","Ridgewater_College_054","South_Central_College_054","Century_College_006","Hennepin_Technical_College_006","Minneapolis_Community_Technical_College_006","Fond_du_Lac_Tribal_Community_College_033","Hennepin_Technical_College_033","Inver_Hills_Community_College_033","Lake_Superior_College_033","Minneapolis_Community_Technical_College_033","Ridgewater_College_033","Rochester_Community_Technical_College_033","Central_Lakes_College_050","Rochester_Community_Technical_College_050","Hennepin_Technical_College_055","North_Hennepin_Community_College_055","South_Central_College_055","Alexandria_Technical_Community_College_077","Central_Lakes_College_077","Century_College_077","Dakota_County_Technical_College_077","Hennepin_Technical_College_077","Minneapolis_Community_Technical_College_077","Minnesota_North_College_077","Minnesota_State_Community_Technical_College_077","North_Hennepin_Community_College_077","Ridgewater_College_077","Rochester_Community_Technical_College_077","Saint_Paul_College_077","South_Central_College_077","Alexandria_Technical_Community_College_031","Anoka_Technical_College_031","Anoka_Ramsey_Community_College_031","Century_College_031","Dakota_County_Technical_College_031","Hennepin_Technical_College_031","Inver_Hills_Community_College_031","Lake_Superior_College_031","Minneapolis_Community_Technical_College_031","Minnesota_North_College_031","Minnesota_State_College_Southeast_031","Minnesota_State_Community_Technical_College_031","Minnesota_West_Community_Technical_College_031","Normandale_Community_College_031","North_Hennepin_Community_College_031","Northwest_Technical_College_Bemidji_031","Pine_Technical_Community_College_031","Ridgewater_College_031","Riverland_Community_College_031","Rochester_Community_Technical_College_031","Saint_Paul_College_031","South_Central_College_031","StCloud_Technical_Community_College_031","Alexandria_Technical_Community_College_048","Anoka_Ramsey_Community_College_048","Central_Lakes_College_048","Century_College_048","Hennepin_Technical_College_048","Inver_Hills_Community_College_048","Lake_Superior_College_048","Minneapolis_Community_Technical_College_048","Minnesota_North_College_048","Minnesota_State_Community_Technical_College_048","Minnesota_West_Community_Technical_College_048","Normandale_Community_College_048","North_Hennepin_Community_College_048","Northland_Community_Technical_College_048","Northwest_Technical_College_Bemidji_048","Pine_Technical_Community_College_048","Riverland_Community_College_048","Rochester_Community_Technical_College_048","Saint_Paul_College_048","South_Central_College_048","Anoka_Technical_College_059","Anoka_Ramsey_Community_College_059","Century_College_059","Dakota_County_Technical_College_059","Hennepin_Technical_College_059","Inver_Hills_Community_College_059","Minneapolis_Community_Technical_College_059","Minnesota_State_College_Southeast_059","Minnesota_State_Community_Technical_College_059","Minnesota_West_Community_Technical_College_059","North_Hennepin_Community_College_059","Pine_Technical_Community_College_059","Ridgewater_College_059","Riverland_Community_College_059","Rochester_Community_Technical_College_059","Saint_Paul_College_059","StCloud_Technical_Community_College_059","Anoka_Technical_College_079","Century_College_079","Dakota_County_Technical_College_079","Hennepin_Technical_College_079","Lake_Superior_College_079","Minneapolis_Community_Technical_College_079","Minnesota_State_College_Southeast_079","Minnesota_State_Community_Technical_College_079","Minnesota_West_Community_Technical_College_079","North_Hennepin_Community_College_079","Ridgewater_College_079","Riverland_Community_College_079","Saint_Paul_College_079","South_Central_College_079","North_Hennepin_Community_College_007","StCloud_Technical_Community_College_007","Fond_du_Lac_Tribal_Community_College_068","North_Hennepin_Community_College_068","Saint_Paul_College_068","Alexandria_Technical_Community_College_001","Anoka_Ramsey_Community_College_001","Central_Lakes_College_001","Century_College_001","Dakota_County_Technical_College_001","Hennepin_Technical_College_001","Inver_Hills_Community_College_001","Lake_Superior_College_001","Minneapolis_Community_Technical_College_001","Minnesota_North_College_001","Minnesota_State_College_Southeast_001","Minnesota_State_Community_Technical_College_001","Minnesota_West_Community_Technical_College_001","Normandale_Community_College_001","North_Hennepin_Community_College_001","Northland_Community_Technical_College_001","Northwest_Technical_College_Bemidji_001","Pine_Technical_Community_College_001","Ridgewater_College_001","Riverland_Community_College_001","Rochester_Community_Technical_College_001","Saint_Paul_College_001","South_Central_College_001","StCloud_Technical_Community_College_001","Alexandria_Technical_Community_College_045","Anoka_Ramsey_Community_College_045","Inver_Hills_Community_College_045","Minnesota_State_College_Southeast_045","Minnesota_State_Community_Technical_College_045","North_Hennepin_Community_College_045","Northland_Community_Technical_College_045","Northwest_Technical_College_Bemidji_045","Ridgewater_College_045","StCloud_Technical_Community_College_045","Century_College_043","Dakota_County_Technical_College_043","Normandale_Community_College_043","North_Hennepin_Community_College_043","Ridgewater_College_043","Riverland_Community_College_043","Saint_Paul_College_043","South_Central_College_043","StCloud_Technical_Community_College_043","Anoka_Ramsey_Community_College_042","Minnesota_State_Community_Technical_College_042","North_Hennepin_Community_College_042","Century_College_057","Dakota_County_Technical_College_057","Hennepin_Technical_College_057","Lake_Superior_College_057","Minnesota_State_College_Southeast_057","North_Hennepin_Community_College_057","Northland_Community_Technical_College_057","Northwest_Technical_College_Bemidji_057","Anoka_Technical_College_003","Anoka_Ramsey_Community_College_003","Central_Lakes_College_003","Century_College_003","Dakota_County_Technical_College_003","Hennepin_Technical_College_003","Inver_Hills_Community_College_003","Lake_Superior_College_003","Minnesota_North_College_003","Minnesota_State_College_Southeast_003","Minnesota_State_Community_Technical_College_003","Minnesota_West_Community_Technical_College_003","Normandale_Community_College_003","North_Hennepin_Community_College_003","Northland_Community_Technical_College_003","Northwest_Technical_College_Bemidji_003","Ridgewater_College_003","Riverland_Community_College_003","Rochester_Community_Technical_College_003","Saint_Paul_College_003","South_Central_College_003","StCloud_Technical_Community_College_003","Dakota_County_Technical_College_049","Northland_Community_Technical_College_049","Dakota_County_Technical_College_010","Lake_Superior_College_010","North_Hennepin_Community_College_010","Pine_Technical_Community_College_010","Riverland_Community_College_010","Rochester_Community_Technical_College_010","Saint_Paul_College_010","Anoka_Technical_College_030","Anoka_Ramsey_Community_College_030","Dakota_County_Technical_College_030","Inver_Hills_Community_College_030","Minnesota_State_Community_Technical_College_030","Normandale_Community_College_030","Northwest_Technical_College_Bemidji_030","Riverland_Community_College_030","Rochester_Community_Technical_College_030","Saint_Paul_College_030","Alexandria_Technical_Community_College_025","Anoka_Technical_College_025","Anoka_Ramsey_Community_College_025","Central_Lakes_College_025","Century_College_025","Dakota_County_Technical_College_025","Fond_du_Lac_Tribal_Community_College_025","Hennepin_Technical_College_025","Inver_Hills_Community_College_025","Lake_Superior_College_025","Minneapolis_Community_Technical_College_025","Minnesota_North_College_025","Minnesota_State_College_Southeast_025","Minnesota_State_Community_Technical_College_025","Minnesota_West_Community_Technical_College_025","Normandale_Community_College_025","North_Hennepin_Community_College_025","Northland_Community_Technical_College_025","Northwest_Technical_College_Bemidji_025","Pine_Technical_Community_College_025","Ridgewater_College_025","Riverland_Community_College_025","Rochester_Community_Technical_College_025","Saint_Paul_College_025","South_Central_College_025","StCloud_Technical_Community_College_025","Central_Lakes_College_064","Hennepin_Technical_College_064","Minnesota_North_College_064","Minnesota_State_Community_Technical_College_064","Ridgewater_College_064","Saint_Paul_College_064","South_Central_College_064","StCloud_Technical_Community_College_064","Normandale_Community_College_076","Saint_Paul_College_076","Alexandria_Technical_Community_College_021","Anoka_Technical_College_021","Central_Lakes_College_021","Century_College_021","Dakota_County_Technical_College_021","Hennepin_Technical_College_021","Lake_Superior_College_021","Minneapolis_Community_Technical_College_021","Minnesota_North_College_021","Minnesota_State_College_Southeast_021","Minnesota_State_Community_Technical_College_021","Minnesota_West_Community_Technical_College_021","Northland_Community_Technical_College_021","Northwest_Technical_College_Bemidji_021","Pine_Technical_Community_College_021","Ridgewater_College_021","Riverland_Community_College_021","Rochester_Community_Technical_College_021","Saint_Paul_College_021","South_Central_College_021","StCloud_Technical_Community_College_021","Hennepin_Technical_College_028","Minnesota_State_Community_Technical_College_028","Dakota_County_Technical_College_038","Lake_Superior_College_038","Minnesota_State_College_Southeast_038","Northland_Community_Technical_College_038","Saint_Paul_College_038","Alexandria_Technical_Community_College_074","Hibbing_Community_College_074","Lake_Superior_College_074","Minnesota_State_College_Southeast_074","Riverland_Community_College_074","Rochester_Community_Technical_College_074","Alexandria_Technical_Community_College_011","Anoka_Technical_College_011","Century_College_011","Dakota_County_Technical_College_011","Fond_du_Lac_Tribal_Community_College_011","Hennepin_Technical_College_011","Inver_Hills_Community_College_011","Lake_Superior_College_011","Minnesota_North_College_011","Minnesota_State_College_Southeast_011","Minnesota_State_Community_Technical_College_011","Minnesota_West_Community_Technical_College_011","North_Hennepin_Community_College_011","Northland_Community_Technical_College_011","Northwest_Technical_College_Bemidji_011","Pine_Technical_Community_College_011","Ridgewater_College_011","Riverland_Community_College_011","Rochester_Community_Technical_College_011","Saint_Paul_College_011","South_Central_College_011","StCloud_Technical_Community_College_011","Alexandria_Technical_Community_College_015","Anoka_Technical_College_015","Century_College_015","Dakota_County_Technical_College_015","Hennepin_Technical_College_015","Lake_Superior_College_015","Minneapolis_Community_Technical_College_015","Minnesota_State_Community_Technical_College_015","Northland_Community_Technical_College_015","South_Central_College_015","StCloud_Technical_Community_College_015","Century_College_040","Dakota_County_Technical_College_040","Hennepin_Technical_College_040","Minneapolis_Community_Technical_College_040","Minnesota_North_College_040","Minnesota_State_Community_Technical_College_040","Northland_Community_Technical_College_040","Northwest_Technical_College_Bemidji_040","South_Central_College_040","StCloud_Technical_Community_College_040","Alexandria_Technical_Community_College_056","Anoka_Technical_College_056","Central_Lakes_College_056","Century_College_056","Dakota_County_Technical_College_056","Hennepin_Technical_College_056","Lake_Superior_College_056","Minneapolis_Community_Technical_College_056","Minnesota_North_College_056","Minnesota_State_College_Southeast_056","Minnesota_State_Community_Technical_College_056","Minnesota_West_Community_Technical_College_056","Northland_Community_Technical_College_056","Northwest_Technical_College_Bemidji_056","Pine_Technical_Community_College_056","Ridgewater_College_056","Riverland_Community_College_056","Rochester_Community_Technical_College_056","Saint_Paul_College_056","South_Central_College_056","StCloud_Technical_Community_College_056","Alexandria_Technical_Community_College_041","Anoka_Technical_College_041","Central_Lakes_College_041","Century_College_041","Dakota_County_Technical_College_041","Fond_du_Lac_Tribal_Community_College_041","Hennepin_Technical_College_041","Lake_Superior_College_041","Minneapolis_Community_Technical_College_041","Minnesota_North_College_041","Minnesota_State_College_Southeast_041","Minnesota_State_Community_Technical_College_041","Minnesota_West_Community_Technical_College_041","Normandale_Community_College_041","Northland_Community_Technical_College_041","Northwest_Technical_College_Bemidji_041","Pine_Technical_Community_College_041","Ridgewater_College_041","Riverland_Community_College_041","Rochester_Community_Technical_College_041","Saint_Paul_College_041","South_Central_College_041","StCloud_Technical_Community_College_041","Anoka_Technical_College_039","Anoka_Ramsey_Community_College_039","Dakota_County_Technical_College_039","Hennepin_Technical_College_039","Lake_Superior_College_039","Minnesota_North_College_039","Minnesota_State_College_Southeast_039","Minnesota_West_Community_Technical_College_039","Pine_Technical_Community_College_039","Riverland_Community_College_039","Saint_Paul_College_039","StCloud_Technical_Community_College_039","Anoka_Technical_College_061","Hennepin_Technical_College_061","Lake_Superior_College_061","Alexandria_Technical_Community_College_019","Anoka_Ramsey_Community_College_019","Central_Lakes_College_019","Century_College_019","Dakota_County_Technical_College_019","Hennepin_Technical_College_019","Inver_Hills_Community_College_019","Minnesota_North_College_019","Minnesota_State_College_Southeast_019","Minnesota_State_Community_Technical_College_019","Normandale_Community_College_019","North_Hennepin_Community_College_019","Riverland_Community_College_019","Rochester_Community_Technical_College_019","Saint_Paul_College_019","South_Central_College_019","StCloud_Technical_Community_College_019","Fond_du_Lac_Tribal_Community_College_067","Minnesota_North_College_067","Saint_Paul_College_067","South_Central_College_067","Alexandria_Technical_Community_College_008","Anoka_Ramsey_Community_College_008","Central_Lakes_College_008","Century_College_008","Fond_du_Lac_Tribal_Community_College_008","Hennepin_Technical_College_008","Inver_Hills_Community_College_008","Lake_Superior_College_008","Minneapolis_Community_Technical_College_008","Minnesota_North_College_008","Minnesota_State_College_Southeast_008","Minnesota_State_Community_Technical_College_008","Minnesota_West_Community_Technical_College_008","Normandale_Community_College_008","North_Hennepin_Community_College_008","Northland_Community_Technical_College_008","Northwest_Technical_College_Bemidji_008","Pine_Technical_Community_College_008","Ridgewater_College_008","Riverland_Community_College_008","Rochester_Community_Technical_College_008","Saint_Paul_College_008","South_Central_College_008","StCloud_Technical_Community_College_008","Alexandria_Technical_Community_College_016","Central_Lakes_College_016","Century_College_016","Lake_Superior_College_016","Minneapolis_Community_Technical_College_016","Minnesota_North_College_016","Minnesota_State_College_Southeast_016","Minnesota_State_Community_Technical_College_016","Minnesota_West_Community_Technical_College_016","North_Hennepin_Community_College_016","Northland_Community_Technical_College_016","Ridgewater_College_016","Riverland_Community_College_016","Rochester_Community_Technical_College_016","Saint_Paul_College_016","South_Central_College_016","StCloud_Technical_Community_College_016","Alexandria_Technical_Community_College_070","Anoka_Technical_College_070","Anoka_Ramsey_Community_College_070","Central_Lakes_College_070","Century_College_070","Dakota_County_Technical_College_070","Hennepin_Technical_College_070","Lake_Superior_College_070","Minneapolis_Community_Technical_College_070","Minnesota_State_College_Southeast_070","Minnesota_State_Community_Technical_College_070","Minnesota_West_Community_Technical_College_070","Normandale_Community_College_070","Northland_Community_Technical_College_070","Northwest_Technical_College_Bemidji_070","Ridgewater_College_070","Riverland_Community_College_070","Rochester_Community_Technical_College_070","Saint_Paul_College_070","South_Central_College_070","Alexandria_Technical_Community_College_027","Anoka_Technical_College_027","Dakota_County_Technical_College_027","Minneapolis_Community_Technical_College_027","Minnesota_North_College_027","Minnesota_State_College_Southeast_027","Minnesota_State_Community_Technical_College_027","Minnesota_West_Community_Technical_College_027","Northland_Community_Technical_College_027","Northwest_Technical_College_Bemidji_027","Ridgewater_College_027","Rochester_Community_Technical_College_027","Saint_Paul_College_027","StCloud_Technical_Community_College_027","Alexandria_Technical_Community_College_073","Anoka_Technical_College_073","Anoka_Ramsey_Community_College_073","Central_Lakes_College_073","Century_College_073","Dakota_County_Technical_College_073","Fond_du_Lac_Tribal_Community_College_073","Hennepin_Technical_College_073","Inver_Hills_Community_College_073","Lake_Superior_College_073","Minneapolis_Community_Technical_College_073","Minnesota_North_College_073","Minnesota_State_College_Southeast_073","Minnesota_State_Community_Technical_College_073","Minnesota_West_Community_Technical_College_073","Normandale_Community_College_073","North_Hennepin_Community_College_073","Northland_Community_Technical_College_073","Northwest_Technical_College_Bemidji_073","Pine_Technical_Community_College_073","Ridgewater_College_073","Riverland_Community_College_073","Rochester_Community_Technical_College_073","Saint_Paul_College_073","South_Central_College_073","StCloud_Technical_Community_College_073","Century_College_058","Minneapolis_Community_Technical_College_058","Minnesota_State_Community_Technical_College_058","Saint_Paul_College_058","Alexandria_Technical_Community_College_071","Anoka_Ramsey_Community_College_071","Central_Lakes_College_071","Century_College_071","Dakota_County_Technical_College_071","Fond_du_Lac_Tribal_Community_College_071","Hennepin_Technical_College_071","Inver_Hills_Community_College_071","Minneapolis_Community_Technical_College_071","Minnesota_North_College_071","Minnesota_State_College_Southeast_071","Minnesota_State_Community_Technical_College_071","Minnesota_West_Community_Technical_College_071","Normandale_Community_College_071","North_Hennepin_Community_College_071","Northland_Community_Technical_College_071","Northwest_Technical_College_Bemidji_071","Ridgewater_College_071","Riverland_Community_College_071","Rochester_Community_Technical_College_071","Saint_Paul_College_071","South_Central_College_071","StCloud_Technical_Community_College_071","North_Hennepin_Community_College_046","Dakota_County_Technical_College_060","North_Hennepin_Community_College_060","Century_College_013","Fond_du_Lac_Tribal_Community_College_013","Inver_Hills_Community_College_013","Minnesota_State_Community_Technical_College_013","North_Hennepin_Community_College_013","Riverland_Community_College_013","Anoka_Technical_College_018","Central_Lakes_College_018","Century_College_018","Hennepin_Technical_College_018","Inver_Hills_Community_College_018","Minnesota_North_College_018","Lake_Superior_College_018","Minnesota_State_Community_Technical_College_018","Minnesota_West_Community_Technical_College_018","Northland_Community_Technical_College_018","Northwest_Technical_College_Bemidji_018","Pine_Technical_Community_College_018","Ridgewater_College_018","Riverland_Community_College_018","Rochester_Community_Technical_College_018","South_Central_College_018","StCloud_Technical_Community_College_018","Alexandria_Technical_Community_College_034","Central_Lakes_College_034","Century_College_034","Fond_du_Lac_Tribal_Community_College_034","Hennepin_Technical_College_034","Inver_Hills_Community_College_034","Lake_Superior_College_034","Minneapolis_Community_Technical_College_034","Minnesota_North_College_034","Minnesota_State_College_Southeast_034","Minnesota_State_Community_Technical_College_034","Minnesota_West_Community_Technical_College_034","Normandale_Community_College_034","North_Hennepin_Community_College_034","Northland_Community_Technical_College_034","Ridgewater_College_034","Riverland_Community_College_034","Rochester_Community_Technical_College_034","Saint_Paul_College_034","Alexandria_Technical_Community_College_035","Anoka_Technical_College_035","Dakota_County_Technical_College_035","Inver_Hills_Community_College_035","Lake_Superior_College_035","Minnesota_State_Community_Technical_College_035","North_Hennepin_Community_College_035","Ridgewater_College_035","Century_College_069","Riverland_Community_College_069","Alexandria_Technical_Community_College_012","Anoka_Ramsey_Community_College_014","Century_College_014","Fond_du_Lac_Tribal_Community_College_014","Hennepin_Technical_College_014","Inver_Hills_Community_College_014","Minneapolis_Community_Technical_College_014","Minnesota_North_College_014","Minnesota_West_Community_Technical_College_014","Normandale_Community_College_014","Northwest_Technical_College_Bemidji_014","Ridgewater_College_014","Rochester_Community_Technical_College_014","South_Central_College_014","StCloud_Technical_Community_College_014","Central_Lakes_College_017","Dakota_County_Technical_College_017","Fond_du_Lac_Tribal_Community_College_017","Hennepin_Technical_College_017","Inver_Hills_Community_College_017","Minneapolis_Community_Technical_College_017","Minnesota_North_College_017","Minnesota_State_College_Southeast_017","Minnesota_State_Community_Technical_College_017","Minnesota_West_Community_Technical_College_017","Northwest_Technical_College_Bemidji_017","Pine_Technical_Community_College_017","Rochester_Community_Technical_College_017","Saint_Paul_College_017","South_Central_College_017","Alexandria_Technical_Community_College_022","Anoka_Technical_College_022","Anoka_Ramsey_Community_College_022","Central_Lakes_College_022","Century_College_022","Fond_du_Lac_Tribal_Community_College_022","Hennepin_Technical_College_022","Inver_Hills_Community_College_022","Minneapolis_Community_Technical_College_022","Minnesota_North_College_022","Minnesota_State_College_Southeast_022","Normandale_Community_College_022","North_Hennepin_Community_College_022","Pine_Technical_Community_College_022","Riverland_Community_College_022","Rochester_Community_Technical_College_022","South_Central_College_022","StCloud_Technical_Community_College_022","Century_College_051","Minnesota_State_College_Southeast_051","Minnesota_State_Community_Technical_College_051","Minnesota_West_Community_Technical_College_051","Northwest_Technical_College_Bemidji_051","Ridgewater_College_051","Riverland_Community_College_051","Saint_Paul_College_051"]
[null,null,"Veterinary Technician","Veterinary Technician","Lamb and Wool Management","Animal Science","Poultry Management","Veterinary Technician","Professional Swine Manager","Advanced Farm Business Management","Advanced Farm Business Management","Horticulture Technology","Greenhouse Management Technician","Cannibus Studies","Agribusiness","Advanced Farm Business Management","Advanced Agricultural Commodity Marketing","Agri Business","Advanced Farm Business Management","Advanced Farm Business Management","Advanced Farm Business Management","Hazardous Materials Technology","Water Operations","Water Environment Technologies","Applied Brewing Science and Production","Biofuels Technology Biodiesel","Food Science","Environmental Science","Environmental Studies","Environmental Science","Urban Forestry Technician","Environmental Science","Environmental Science","Environmental Science","Environmental Science","Environmental Science","Environmental Science","Environmental Science","Turf and Golf Course Management","Agricultural Crop Production and Management","[none]","Arboriculture","Agriculture","General Agriculture","Agricultural Science and Technology","Agribusiness","Agriculture Education Technology Partnership","Advanced Agriculture Diesel Equipment Technician","Agriculture Automation","Advanced Agriculture Technician","Narrative Video Production","Audio Video Systems Technician","Cinema","Multimedia Production","Audio Production Specialist","Workplace Writing","Media Studies and Production","Sound Arts","Multimedia Design Technology","Mass Communication","Music Technology","Music Technology","Graphic Design: Production","Desktop Publishing Essentials","Graphic Arts","Communication Design","Graphic Design","3D Modeling and Animation","Graphic Design Technology","Animation and Motion Graphic Artist","Graphic Design: Digital and Print Media","Graphic Design and Visual Communications","Graphic Design","Graphic Design","Photography and Design","Graphic Design","Computer Animation","Photography","Computer Information Systems","Business Data Analyst","IT Support Specialist","Advanced Enterprise Computing","Networking Administration","Data Analyst","Information Technology Support","Computer Technology","Computer Support and Network Administrator","IT Networking and Security","IT Support","Information Technology","Computer and Networking Technology","Computer Technology","Data Science","Computer Support","Network Administration","Computer Support Technician","Computer Support Specialist","Computer Information Systems","Data Science","Computer Assistant","Network Administration","Cybersecurity, Virtualization, and Networking","Computer Networking","Computer Comp TIA","Cloud Computing","Linux Networking","Computer Science Transfer Pathway","CISCO Network Associate","Cisco Network","Cisco Network Technician","Cisco Networking","CISCO Networking","Computer Science Transfer Pathway","Computer Science Transfer Pathway","Cisco Networking","E-Merging Computer Technology","Computer Science Transfer Pathway","Cisco Network Associate","Computer Science Transfer Pathway","Computer Network Engineering","Cloud Computing & Virtualization Administration","Network Management and Security","Computer Programming","Cybersecurity Analysis and Techniques","Desktop Programming","Cyber Defense","Advanced Cybersecurity Infrastructure",".Net Developer","Cyber and Information Security","Computer Programming","Computerizing Small Business",".NET Programming","Cyber Security","Computer Programmer","Cyber Security","Cybersecurity","Computer Programming","Computer Programming","Web Design and Development","Web Design","Web Design","Basic Web Technologies","Computer and Web Programming","Web Design and Front-End Development","Software & Web Development","Web Design","Web Development","Game Programming","Web Developer","Web Developer","Computer Graphics and Visualization","Web Programmer","Finance and Investments","Finance","Business/Financial Services","Finance Management","Finance","Accounting","Accounting Practitioner","Accountant","Accountant","Accountant","Accounting","Accounting Transfer Pathway","Accountant","Accounting","Accounting Transfer Pathway","Accounting","Accounting","Accounting","Accounting","Accounting Skills","Accounting","Accounting","Accounting","Accountant","Accounting","Accounting Clerk","Accounting","Accountant","Accounting","Fashion Management","Sales Management","Marketing and Sales","Sales Management","Business: Management, Marketing and Sales","Marketing and Sales","Digital Marketing","Sales and Marketing","Marketing and Sales Management","Marketing Sales Management","Marketing","Digital Marketing Specialist","Marketing","E-Commerce Essentials","Marketing and Design","Social Media Marketing","Global Trade Professional","Marketing Management","Marketing and Design","Business Communication","Social Media Management","Business Communications and Technology Essentials","Home Furnishing Sales","Sales Specialist","Marketing and Sales","Professional Sales Representative","Retail Merchandising Sales Associate","Sales","Electronic Technology Marketing","Sales and Marketing","Administrative Office Specialist","Administrative Specialist","Business Assistant","Administrative Assistant","Administrative Assistant","Microsoft Applications","Office Technology","Administrative Office","Business Operations & Management","Administrative Assistant","Administrative Office Assistant - Finance","Administrative Assistant","Business Software and Administrative Management","Accounting Management and Computer Info Systems","Administrative Office Specialist","Administrative Business Specialist","Administrative Assistant","Administrative Assistant","Administrative Office Professional","Office Management Professional","Admin Office Specialist-Client Relations Spec","Office Administration","Multi-Cultural Leadership","Lean Manufacturing/Continuous Improvement","Information Systems Management","Business and Technology","Business Computer Systems and Management","Management Information Systems","Management Information Systems Transfer Pathway","Bioinformatics Foundations","Management Information Systems Transfer Pathway","Human Resources","Human Resource Management","Human Resource Management","Human Resource Management","Administrative Office Assistant - Human Resources","Human Resource Management","Human Resources","Human Resource Development","Employee Development","Human Resources","Business Management","Leadership","Business","Business Management","Business Management","Business Administration","Athletic Coaching","Business  ","Business Transfer Pathway","Business and Entrepreneurship","Applied Professional Skills","Business Transfer Pathway","Business Administration","Business","Business Management","Business Management","Business Principles","Business Transfer Pathway","Business","Business Administration","Business Transfer Pathway","Business","Business Administration","Business","Administrative Office Management","Business Management","Culinary Arts","Baking and Pastry Entrepreneur","Culinary Arts","Culinary Arts","Advanced Meat Cutting","Culinary Arts","Culinary Arts","Culinary Arts","Food and Beverage Management","Event and Meeting Management","Diesel Mechanics","Automotive Electronic Diagnostic Specialist","Automotive Technology","Auto Body Technician","Auto Body Collision Technology","Advanced Vehicle Specialist","Auto Body Technology","Aircraft Maintenance Technician","Automotive Technician","Auto Body Collision Technology","Automotive Service Technology","Advanced Diesel","Auto Body Collision Technology","Automotive Service and Performance","Automotive Technology","Auto Body Collision Technology","Automotive General Service Technician","Automotive Technician","Automotive Service Technician","Auto Body and Collision Technology","Auto Body Collision Technician","Safety Coordinator","Safety Practitioner","Transportation Management","Aviation Management","Transportation Management","Production and Inventory Management","Supply Chain Logistics","Professional Truck Driver","Professional Truck Driver","Professional Pilot","Truck Driving","Truck Driving","Aviation Pilot","Carpentry","Construction Electrician","Advanced Solar Photovoltaic Energy Systems","Construction Codes and Permitting Specialist","Electric Utility Technology","Apprenticeship Technology","Construction Management","Building Construction Technology","Construction Management and Supervision","Construction Technology","Construction Management","Carpentry","Building Inspection","Carpentry-Residential","Construction Foundations","Construction Technology","Electrician","Carpentry - Commercial","Accessory Dwelling Unit","Cabinetmaking","Carpentry","Carpentry","Interior Design","Architectural 2D CAD","Interior Design","Architectural Drafting","Architectural Technology","Civil Engineering Technology","Architectural Technology","Architectural Drafting","Architectural Technology and Design","Architectural Drafting and Design","Architectural Construction Technology","Cooling","Commercial HVAC/R","Commercial Heating and Air Conditioning Equipment","Heating, Ventilation, Air Cond.& Refrig Generalist","Heating and Cooling Technician","Advanced HVAC R","Heating, Ventilation and Air Conditioning","Commercial Refrigeration/HVAC","Heating, Ventilation, Air Conditioning/Refrig","Heating Air Conditioning Refrigeration - Commercial","Basic Welding","Basic Welding","CNC Technologies","Welding","Welding Technology","GMAW Production Welder (MIG)","Gas Tungsten Arc Welding Production Welder","Welding and Metal Fabrication","Advanced Welding","CNC and Engineering","Industrial Workplace Readiness","Manufacturing Production Technician","Welding Manufacturing Technology","Welding Technology","Precision Machining Technology","Entry Level Welder","Machine Technologist","Welding Technology","Robotic Welding","Advanced Welding","Machine Operator","Mechanical Drafting, Design Engineering Technology","Advanced CNC Machine Technology","Mechatronics","Additive and Digital Manufacturing","Industrial Engineering Technology","Clean Energy Systems Technician","3D Printing System Maintenance","Engineering CAD Technician","Advanced Apparel Technologies","Electrical Controls and Maintenance","Automation Electronics","Design and Engineering Technology","Energy Technical Specialist","Vacuum and Thin Film Technology","Certified Production Technician","Engineering Technology","Applied Engineering Design Technologist","CAD Technician","Automation Technologies","CAD (Computer Aided Drafting) Technology","CNC Toolmaking","Energy Technical Specialist","Automation Technology","Biomedical Equipment Technician","Biomedical Core","Biomedical Equipment Technology","Electronics Engineering Technology","Basic Electronics","Industrial Mechanical Technology","Band Instrument Repair","Fluid Power Technology","Armorer Certificate","Industrial Maintenance","Electromechanical Systems - Mechanical","Biomedical Equipment Technician","Quality Inspector","Quality Assurance","Production Technologist","Engineering Broad Field","Applied Engineering Technology","Engineering","Engineering Broad Field","[none]","Lean Manufacturing","Engineering Fundamentals","Engineering","Automation Foundations","Engineering","Engineering Broad Field","Engineering Broad Field","Automation and Robotics Foundations","Engineering Broad Field","Engineering Broad Field","Engineering Foundations","Engineering Broad Field","Geographic Information Systems","Geographic Information Systems (GIS) Professional","Geographic Information Science","Geographic Information Systems","Health Sciences Broad Field","Clinical Research Professional","Health Sciences Broad Field","Health Sciences Broad Field","Health Sciences Broad Field","Health Sciences Broad Field","Health Sciences Broad Field","Health Sciences Broad Field","Health Sciences Broad Field","Health Care Careers","Health Sciences Broad Field","Health Sciences Broad Field - AS","Biotechnology Lab Technician","Health Sciences Broad Field","Health","Health Sciences Broad Field","Health Sciences Broad Field","Health Sciences Broad Field","Health Sciences Broad Field","Biotechnology","Health Sciences Broad Field","Health Sciences Broad Field","Health Sciences Broad Field","Health Sciences Broad Field","Medical Laboratory Technician","Phlebotomy Technician","Radiologic Technology","Limited X-Ray Machine Operator (LXMO)","Sleep Technology Polysomnography","Medical Laboratory Technician","Radiography","Cardiovascular Technology - Invasive","Medical Laboratory Technician","Medical Lab Technology","Phlebotomy","Phlebotomist","Computed Tomography","Cardiovascular Invasive Specialist","Medical Laboratory Technician","Medical Laboratory Technician","Cardiovascular Technology","Healthcare Administrative Specialist","Health Unit Coordinator","Public and Community Health","Healthcare Administrative Specialist","Dental Practice Management","Medical Administrative Specialist","Health Unit Coordinator","Medical Office Specialist","Medical Office Administration","Medical Administrative Specialist","Medical Administrative Assistant","Healthcare Administrative Assistant","Public Health","Medical Administrative Assistant","Healthcare Administrative Leadership","Healthcare Administrative Assistant","Medical Receptionist","Healthcare Office Professional","Healthcare Administration","Health Unit Coordinator","Medical Coding Specialist","Health Information Technology","Medical Coding Specialist","Medical Scribe Specialist","Medical Coding and Scribing","Health Unit Coordinator","Health Information Technology/Coding","Health Information Technician Assistant","Medical Coding Specialist","Medical Coding","Health Information Technician","Cancer Registry Management","Health Information Technology","Health Information Technology","Exercise Science","Health Technology","Exercise Science Transfer Pathway","Dental Assisting","Dental Assistant","Dental Assistant","Fitness and Health","Dental Assistant","Exercise Science Transfer Pathway","Dental Hygiene","Dental Assistant","Dental Assistant","Exercise Science Transfer Pathway","Child and Adolescent Therapeutic Behavioral Health","Dental Assistant","Dental Hygiene","Exercise Science Transfer Pathway","Exercise Science Transfer Pathway","Dental Assisting","Nursing","Activity Director","Advanced Nursing Assistant","Advanced Hospital Nursing Assistant","Clinical Massage Therapy","Basic Nursing","Dental Assistant","Translation and Interpreting","Library Information Technology","American Sign Language Pre-Interpreting","Sign Language Interpreter/Transliterator","Early Childhood Education","Athletic Coaching","Athletic Coaching","Education","Early Childhood Education Transfer Pathway","Anishinaabe and American Elementary Education","Early Childhood Education Transfer Pathway","Education Foundations","Early Childhood Education Transfer Pathway","Backcountry Guide","Early Childhood and Early Elementary Support/Tutor","Autism Spectrum Disorder","Early Childhood Education Transfer Pathway","Elementary Education Foundations Transfer Pathway","Education","Agriculture Education","Early Childhood Education Transfer Pathway","Early Childhood Education","Coaching","Coaching","Early Childhood Education Transfer Pathway","Early Childhood Education Transfer Pathway","Coaching","Cybersecurity","Public Administration","Public Administration","Corrections","Corrections","Corrections","Correctional Officer","Corrections","Criminal Justice - Corrections","Emergency Medical Services","Emergency Medical Response Technician","Emergency Medical Services","Company Officer","Emergency Medical Services","Emergency Medical Services","Emergency Medical Technician","Fire Service Preparation","Emergency Medical Services","Fire Technology","Emergency Medical Technician","Emergency Medical Services Professional","Paramedic","Emergency Medical Care Services","Emergency Medical Technology","Intensive Care Paramedic Technician","Paramedicine","Peace Officer/Public Safety Transfer Pathway","Conservation Officer Preparation","Criminal Justice","Criminal Justice","Peace Officer","Criminal Justice Transfer Pathway","Criminal Justice Transfer Pathway","Criminal Justice Transfer Pathway","Criminal Justice - Police Science","Criminal Justice","Criminal Justice","Law Enforcement","Criminal Justice Transfer Pathway","Criminal Justice","Criminal Justice - Law Enforcement","Criminal Justice Transfer Pathway","Criminal Justice Transfer Pathway","Criminal Justice Transfer Pathway","Criminal Justice Transfer Pathway","Legal Administrative Assistant","CART and Broadcast Captioning","Legal Administrative Assistant","Paralegal","Administrative Support-Legal Secretary","Administrative Office Assistant - Legal","Paralegal","Legal Assistant","Private Security","Public Safety Dispatch","Retail Management","Alcohol and Drug Counseling","Addiction Counseling","Chemical Dependency","Community Paramedic Clinician","Community Health Worker","Addiction Counseling","Addiction Studies","Community Health Worker","Community Health Worker and Navigator","Community Health Worker","Chemical Dependency Counselor","Alcohol and Drug Counseling","Community Paramedic","Community Paramedic","Early Childhood Education","Child and Family Studies","Early Childhood Development","Child Development","Child Care Teacher","Early Childhood Education","Child Development","Child Care Assistant","Early Childhood","Early Childhood","Child Care and Education - Level I","Early Childhood Development","Child Development","Child Development Careers","Early Childhood Education","Behavioral Health and Human Services","Behavioral Health and Human Services","Pre-Social Work Transfer Pathway","Human Services Technician","Human Services","Human Services","Pre-Social Work Transfer Pathway","Human Services Assistant","Community Development","Human Services Generalist","Pre-Social Work Transfer Pathway","Family Studies","Human Services","Human Services Eligibility Worker","Human Services","Pre-Social Work Transfer Pathway","Family Services","Child and Adult Care and Education","Cosmetology","Advanced Esthetician","Advanced Practice Esthiology","Cosmetology","Cosmetology","Advanced Esthetics","Advanced Practice Esthetician","Advanced Practice Esthetics"]
["These are the COLLEGE PROGRAM NAMES",null,null,null,null,null,"Veterinary Technology",null,null,"Applications in Farm Business Management","Agricultural Commodities Marketing",null,"Greenhouse Technician",null,null,"Agricultural Commodities Marketing","Advanced Farm Business Management","Agriculture Marketing and Communications","Agricultural Commodities Marketing","Agribusiness","Agricultural Commodities Marketing",null,"Water Quality Science",null,"Brewing and Beer Steward Technology","Biofuels Technology Ethanol","Food Science Technology","Sustainability","Natural Resources Conservation Services",null,null,null,null,"Environmental Studies",null,null,null,"Green Energy","Turf and Golf Course Technician","Agricultural Science",null,"Landscape Computer Design","Plant Science/Precision Agriculture","Precision Agriculture","Agronomy Applicator Technician","Agricultural Sciences",null,"Agriculture Diesel Equipment Technician","Agriculture Equipment Mechanic","Ag Chemical Applicator Technician","Online Video Content Creator",null,null,null,"Interactive Designer",null,null,null,null,"Web Design",null,null,"Production Technician for Digital Publishing",null,"Graphic Communications",null,"Graphic Design - Media Technologies","Graphic Design and Production","Photography","Graphic Design: Creative","Graphic Design: Digital and Print Media Core",null,null,"Video Game Studies","Professional Photography","Photography","Visualization Technology",null,"Cybersecurity","Information Technology Management","Network Support and Administration","Applied Big Data Analytics","PC Technician","Data Center Administration","IT Helpdesk and Cybersecurity Operations","Cyber Defense","Database Administrator",null,"IT Support Technician","Information Technology - Database Administration","Computer Support Technician","Data Analytics",null,null,null,"Network Administration and Security","Computer Technology",null,"Healthcare Informatics","Information Systems","PC Specialist",null,"Computer Science Transfer Pathway","Computer IT Security and Networking","Cloud Security & Virtualization Forensics","Network Administration","Enterprise Networking",null,null,null,"Cybersecurity",null,null,null,"Computer and Network Technology",null,"Network Technician",null,"Information Technology","Computer Science","Networking Services","Software Development","Cybersecurity","Cybersecurity, Forensics, and Information Assurance","Software Development","Cybersecurity","Advanced Network Technology","Android Mobile Application Developer","Cybersecurity and Network Administration","Cybersecurity",null,"Application Programming",null,null,"Fundamentals of Network Security",null,"CyberSecurity","Cyber Security",null,null,null,"Webmaster",null,"Web Developer",null,null,"Webpage Design Assistant","Web Graphic Design, Programming and e-Commerce",null,"Web Developer: Game Design","Web Based 2D Game Development",null,null,null,"Small Business Entrepreneurship",null,null,"Accounting Transfer Pathway","Accounting Transfer Pathway","Bookkeeping","Accounting Clerk","Accounting Clerk","Accounting Technician",null,"Bookkeeper","Accounting Transfer Pathway",null,"Accounting and Networking Specialist","Accounting Clerk","Accounting Clerk","Accounting Transfer Pathway","Accounting Technology","Accounting Clerk","Accounting Clerk",null,"Accounting Clerk","Accounting Clerk","Accounting Transfer Pathway","Accounting Technician","Accounting Assistant","Accounting Clerk","Marketing and Sales Management",null,null,null,"Business: Marketing and Sales",null,"Marketing and Management","Sales, Marketing, and Management","Sales and Management Associate","Marketing Sales Management Associate","Marketing Communications Technology","Marketing",null,"Marketing",null,null,"Global Trade Specialist",null,null,"Social Media Marketing",null,null,"Marketing Specialty",null,"Professional Sales (Business to Business)",null,"Sales Representative",null,"Electronic Technology Marketing I",null,"Office Communications Specialist","Business Computer Applications","Computer Microsoft Office Professional","Computer Skills","Executive Administrative Specialist","Microsoft Generalist",null,"Administrative Office Specialist",null,"Business Software","Administrative Support","Office Management",null,"Communication and Computer Skills","Administrative Professional",null,"Office Assistant","Advanced Office Specialist","Executive Office Professional",null,"Administrative Office Specialist",null,"Multi-Cultural Quality Management",null,null,null,null,null,null,null,null,"Quality Management",null,"Multi-Cultural Human Resource Management",null,"Human Resources",null,null,"Supervising & Managing",null,null,"Business Transfer Pathway","Supervisory Management","Business Crisis and Emergency Management","Business Transfer Pathway","Business Transfer Pathway","Business Management","Small Business/Entrepreneurship","Business Transfer Pathway","Contemporary Business","Business Transfer Pathway","Business Essentials","Entrepreneurship","Business Management","Business Administration","Business Transfer Pathway","Business Transfer Pathway","Business Transfer Pathway","Customer Service","Business Foundations","Business Essentials","Entrepreneurship","Business Transfer Pathway","Business Analysis","Business Transfer Pathway","Business Management","Business Transfer Pathway","Meat Cutting and Butchery","Culinarian","Culinary Arts/Food Service Management",null,"Beginning Meat Cutting","Pastry and Baking",null,null,"Hospitality and Tourism Management","Hospitality Management","Marine, Motorcycle, and Powersports Technician","Automotive Technician","Diesel Equipment Technician","Auto Body Technology","Automotive Chassis","Auto Body Technician","Auto Maintenance and Light Repair","Bicycle Assembly and Repair Technician","Diesel Mechanics and Heavy Equipment Maintenance","Auto Body Refinishing","Diesel Equipment Technology","Automotive Technician","Automotive Electronics and Drivability","Automotive Service Technician",null,"Automotive Service Technology","Automotive Service Technology",null,"Medium and Heavy Duty Truck Technician","Automotive Service","Automotive Service Technician",null,null,null,null,null,null,null,"Professional Truck Driver - B-CDL",null,"Truck Driving",null,null,null,"Construction","Construction Estimating","Advanced Solar Thermal Energy Systems","Construction Codes and Inspection",null,"Cabinetmaking",null,"Carpentry","Electrical Maintenance and Construction",null,"Electrical Line Worker Technology","Electric Utility Substation Technician","Construction Management","Construction Electricity","Construction Technology",null,"Plumbing Technician","Carpentry - Residential","Carpentry","Carpentry",null,"Electrical Construction Technology",null,"Architectural and Construction Technician","Interior Design Associate","Architectural Technology",null,null,"Architectural Virtual Reality and Rendering","Architectural Drafting and Design","Intro Architectural Technology & Design","Architectural Technology","Land Surveying/Civil Engineering Technology","Heating","Heating, Ventilation, Air Conditioning, and Refrig","Commercial Heating, Ventilation, AC, Refrigeration","Heating, Ventilation, Air Conditioning & Refrig",null,"Heating Ventilation Air Conditioning Refrigeration","Heating, Ventilation and Air Conditioning/Construc","Heating, Air, and Refrigeration Technology","HVAC/R - Advanced","Heating Air Conditioning Refrigeration - Residential","Machine Tool Technology","Machine Technology 1","Machine Operations",null,null,"GTAW Production Welder (TIG)","Integrated Manufacturing Tech - Manual Machinist",null,"Entry Level Welding","Machining Basics","Production Welding","Welding","Welding Process Technology",null,"Welding Technology","Industrial Welding","Machining",null,"Sheet Metal & HVAC Ducts & Fittings","Welding","Welding Technology","Mechatronics","CNC Design and  Manufacturing Technology","Robotic Human Machine Interface Advanced","Digital Fabrication Technology",null,null,"Additive Manufacturing Designer","Engineering Technology","Apparel Technologies",null,"Basic Drafting Technologies","Project Design Technician","Industrial Technology","Vacuum Maintenance Technician","Computer Aided Design","Industrial Maintenance","Applied Engineering Design Technology","CNC Precision Manufacturing Technician","Production Technologies","Manufacturing Technical Specialist - CAD",null,"Intermediate Mechatronics Engineering Technology","CNC and Advanced Machining","Electronic Technology","Biomedical Technology",null,"Electronics Technician","Electronic Technology",null,"Basic Electronics","Information Technology","Automated Systems Technology","Industrial Maintenance Foundations","Electromechanical Systems - Electrical",null,"Quality Technician",null,null,"Engineering Requisites","Engineering",null,null,null,null,null,"Land Surveying","Computer Engineering Technology","Technological Studies I",null,"Pre-Engineering","Automation Robotics Engineering Technology",null,"Science and Engineering Technology",null,null,"Geospatial Technologies","Geography/Geographic Information System (GIS)",null,null,null,"Health Sciences Broad Field",null,null,null,null,null,null,null,"Health Sciences Broad Field",null,"Pre-professional Health",null,null,"Health Sciences Broad Field",null,null,null,null,"Health Sciences Broad Field",null,null,null,null,"Phlebotomy Technician",null,null,"Medical Laboratory Assistant",null,null,null,"Electroneurodiagnostic Technology","Phlebotomy Technician","Phlebotomy Technician","Radiologic Technology","Radiologic Technologist","Magnetic Resonance Imaging","Clinical Neurophysiology Technology",null,"Phlebotomy","Diagnostic Medical Sonography - Generalist","Patient Access Specialist","Medical Office Specialist",null,null,"Medical Administrative Support",null,"Medical Office Specialist","Medical Receptionist","Medical Office Professional",null,"Medical Office Assistant","Healthcare Supervision and Leadership",null,"Medical Office Specialist","Healthcare Administrative Support","Patient Access Representative",null,null,"Medical Office",null,null,"Medical Coding Specialist",null,null,null,"Healthcare Documentation Specialist","Medical Coding  ","Health Information Technology",null,null,"Medical Coding Specialist","Coding Specialist","Healthcare Documentation Specialist","Medical Coding","Exercise Science Transfer Pathway","Medical Assistant","Fitness Specialist","Dental Hygiene AAS","Dental Hygiene","Exercise and Sport Science","Nursing","Foundations of Dental Assisting","Nursing","Exercise Science Transfer Pathway","Dental Assistant Core","Exercise Science Transfer Pathway","Nursing","Dental Assisting","Massage Therapy","Exercise Science Transfer Pathway","Nursing ","Nursing","Nursing","Nursing Assistant","Massage Therapy","Exercise Science Transfer Pathway","Dental Assistant","Clinical Sports Massage","Dental Assisting","Dental Hygiene",null,"Public Information Services",null,null,"Early Childhood Education Transfer Pathway","Elementary Education Foundations Transfer Pathway","Early Childhood Education Transfer Pathway","Elementary Education Foundations Transfer Pathway",null,"Culturally Responsive Leadership",null,"Elementary Education Foundations Transfer Pathway","Education","Class Act Pre-Education","Early Childhood Development","Early Childhood Education Transfer Pathway","Education Paraprofessional","Exercise Specialist","Elementary Education Foundations Transfer Pathway","Early Childhood",null,"Early Childhood Education Transfer Pathway","Personal Trainer / Athletic Coaching","Early Childhood Education Transfer Pathway","Registered Yoga Teacher",null,"Early Childhood Education",null,null,null,null,null,"Corrections Certificate",null,null,null,"Emergency Medical Technician",null,"Emergency Medical Technician","Dispatching Concepts","Emergency Medical Technician","Emergency Medical Technician","Fire Fighter",null,"Emergency Medical Technician","Paramedic",null,null,null,"Fire Services","Emergency Medicine Paramedic",null,null,"Police Training and Education","Criminal Justice","Intelligence and Crime Analysis","Criminal Justice Transfer Pathway","Peace Officer and Public Safety","Culturally Responsive Professional Peace Officer",null,null,"Park Ranger Law Enforcement Academy","Criminal Justice Transfer Pathway",null,"Peace Officer","Peace Officer","Criminal Justice Transfer Pathway",null,"Peace Officer","Natural Resources Conservation","Peace Officer",null,"Paralegal","Judicial Reporting",null,null,"Legal Secretary","Paralegal",null,null,null,null,null,"Alcohol and Drug Counseling Studies","Community Paramedic",null,"Community Paramedic Technician","Community Paramedic","Community Health Worker",null,null,null,null,null,"Community Health Worker",null,null,null,null,"Infant and Toddler Child Development",null,null,null,null,null,null,null,"Early Childhood Education Careers",null,null,"Child Development Careers ASL",null,"Pre-Social Work Transfer Pathway",null,null,"Pre-Social Work Transfer Pathway","Human Services Technician",null,null,"Pre-Social Work Transfer Pathway","Human Services",null,null,null,"Pre-Social Work Transfer Pathway",null,null,null,"Pre-Social Work Transfer Pathway","Early Childhood Education","Nail Care Technician","Cosmetology","Cosmetology","Cosmetology-Other States",null,"Cosmetology","Advanced Practice Esthetics","Cosmetology"]
[null,null,null,null,null,null,null,null,null,"Commodity Marketing in Farm Business Management","Applications in Farm Business Management",null,null,null,null,"Agriculture Business","Agricultural Commodities Marketing","Dairy Management","Applications of FBM","Agri-Business Office Specialist/Manager","Applications of Farm Business Management",null,null,null,null,null,null,null,"Natural Resources Technology",null,null,null,null,"Fisheries and Wildlife Management",null,null,null,null,null,"Sustainable Landscaping",null,"Landscape Construction","Precision Agriculture Application Technician",null,"Agronomy Technology","Precision Agriculture",null,"Precision Agriculture Equipment Technician",null,"Agriculture and Diesel Service Technician",null,null,null,null,"Live Sound Production Specialist",null,null,null,null,null,null,null,null,null,null,null,null,"Photographic Careers","Professional Photography","Graphic Design: Web Design","Photography and Motion",null,null,null,"Professional Photography Technology",null,null,null,null,"IT Support",null,"Computer Information Systems",null,"Data Center Operations","IT System Administrator","Cyber Security","Database Specialist",null,"Network and System Administration",null,null,"Healthcare Systems Technology",null,null,null,null,"Microsoft Systems Engineer",null,"Network Administration","Network Administration",null,null,"System Administration",null,"Computer Science Transfer Pathway","Network Support","Network Technology and Security",null,null,null,null,null,null,null,"IT Cybersecurity",null,null,null,null,"Computer Science Transfer Pathway",null,null,"Network Security","Digital Forensics Analysis and Techniques","Web Programming","IT Security","Computer Programmer","Apple Mobile Application Developer","Software & Web Development",null,null,"Internet Programming",null,null,"Mobile Apps and Virtual Reality",null,"Java Programming",null,null,null,null,null,null,null,null,null,null,null,null,"Web Page Design","Web Design",null,null,null,null,null,null,null,"Small Business Accounting","Healthcare Accounting","Accounting Technician","Small Business Accounting","Accounting Transfer Pathway",null,null,"Accounts Payable/Receivable",null,"Accounting Assistant","Accounting Transfer Pathway","Business Accounting",null,"Accounting Transfer Pathway","Accounting Transfer Pathway",null,null,"Accounting Technician","Accounting Transfer Pathway",null,"Finance","Accounting Technician",null,"Retail Management",null,null,null,"Digital Marketing",null,null,null,null,null,"Marketing Management",null,null,"Marketing Specialist",null,null,"Marketing",null,null,null,null,null,null,null,null,null,null,null,"Electronic Technology Marketing II",null,"Office Software Specialist",null,null,"Office Assistant","Microsoft Office Applications Management","Microsoft Specialist",null,null,null,"Office Assistant",null,"Receptionist",null,"Digital Knowledge Analysis",null,null,null,"Document Specialist",null,null,"Administrative Office Specialist-Business Software",null,"Multi-Cultural Supervision",null,null,null,null,null,null,null,null,null,null,"Quality Improvement",null,null,null,null,null,null,null,null,null,"Business Generalist","Entrepreneurship","Entrepreneurial","Small Business Entrepreneur",null,"Digital Marketing","Contemporary Business Practice","Leadership","Business Management",null,"Business Transfer Pathway","Business Transfer Pathway","Management","Management","Entrepreneurship","Supervisory Leadership","Business Transfer Pathway","Business Transfer Pathway",null,"Entrepreneurship","Business Management","Entrepreneurship","Business Transfer Pathway",null,null,"Culinary and Food Truck Entrepreneur","Pastry Artist",null,null,null,null,null,"Hotel Operations Management",null,null,"CNC Service Technician","Heavy Equipment Operation and Maintenance","Automotive Services Technician","Automotive Electronics","Autobody Estimator","Auto Service Technology",null,null,"Auto Body Sheet Metal Repair and Replacement","PowerSports Technology","Basic Diesel","Automotive Engine Repair, Suspension and Brakes",null,null,null,"Autonomous Vehicle Technician Certificate",null,null,null,"Medium/Heavy Truck Technician",null,null,null,null,null,null,null,null,null,"Truck Driving-Advanced",null,null,null,null,"Construction Estimating Technician","Facilities Maintenance Engineer","Construction Management",null,"Carpentry",null,"Commercial and Residential Wiring",null,null,"Electrical Technology","Electric Utility Substation Technology","Construction Management and Supervision","Construction Plumbing","Electrical Construction and Maintenance",null,null,"Construction Management","Facility and Service Technology","Electrical Technology",null,"Plumbing",null,"Architectural Technology","Kitchen and Bath Design","Civil Engineering and Land Survey Technology",null,null,null,"Civil Engineering Technology",null,"Civil Engineering Technology",null,"Heating, Vent, Air Condition and Refrig Technician","HVAC/R","Commercial Refrigeration","Residential and Commercial HVAC-R",null,"Refrigeration and Air Conditioning",null,"Mechanical Construction","HVAC/R - Foundation",null,"Welding Technology","Machine Technology 2","Robotic Welding",null,null,"Robotic Arc Welding","Integrated Manufacturing Technology - Welding",null,"Welding","Machining Right Skills Now",null,"Welding GMAW","Welding Process Technology  GMAW",null,null,"Machining Technician","Welding",null,"Welding Technology","Welding and Machining Technology","Welding/Fabrication","Robotics","Machine Technology 3","Robotic Manufacturing","Energy Technical Specialist",null,null,"Auto CAD Operator","Integrated Manufacturing - Engineering CAD Tech","CNC Machinist",null,"Bicycle Design and Fabrication",null,"Industrial Technology II","Vacuum Technology","Electronics Technology/Automated Systems","Production Technologies","Applied Engineering Technology","CNC Technician",null,null,null,"Machine Tool Technology","Energy Technical Specialist","Robotic and Electronic Engineering Technology",null,null,"Fluid Power Engineering Technician","Electronic Technology - Industrial Controls",null,"Biomedical Equipment Technology","Mechatronics Fluid Power Specialist","Gunsmithing & Firearms Technology","Manufacturing Skills Standards",null,null,null,null,null,"Engineering Sciences",null,null,null,null,null,null,null,"Electromechanical Technology","Technological Studies II",null,null,"Automation Robotics Occupational Technology",null,"Scientific Research",null,null,null,"Watershed Science",null,null,null,null,null,null,null,null,null,null,null,null,null,null,null,null,null,null,null,null,null,null,null,null,null,null,null,null,null,"Medical Laboratory Technician",null,null,null,"Limited Scope Radiography","Radiologic Technology",null,null,null,"Phlebotomy Technician","Histology Technician",null,null,null,null,"Medical Receptionist",null,null,"Medical Office Assistant",null,"Nursing Station Technician",null,"Medical Receptionist",null,"Medical Receptionist","Management and Supervision in Healthcare",null,"Patient Access Specialist",null,null,null,null,"Medical Office Professional",null,null,null,null,null,null,null,"Medical Coding and Insurance","Medical Coding Specialist",null,null,null,"Health Information Technology","Medical Coding",null,"Nursing","Nursing Assistant/Home Health Aide","Integrative Health and Healing","Exercise Science Transfer Pathway","Exercise Science Transfer Pathway","Exercise Science Transfer Pathway","Nursing Assistant","Medical Assistant","Nursing Assistant","Massage Therapist","Herbal Studies","Fitness Specialist","Practical Nursing","Dental Hygiene","Medical Assistant","Nursing Assistant","Nursing (MANE)","Nursing Assistant","Nursing Assistant","Nursing Assistant and Medication Aide","Medical Assistant","Home Health Aide","Dental Assistant Expanded Functions","Massage Therapy","Medical Assistant","Nursing",null,"Technical Information Services",null,null,null,"Special Education Transfer Pathway",null,"Paraeducation",null,"Early Childhood Education Transfer Pathway",null,"Special Education Transfer Pathway","Education Foundations","Coaching","Early Childhood Education","Elementary Education Transfer Pathway","Elementary Education Foundations Transfer Pathway","Special Education Transfer Pathway","Personal Training","Early Childhood and Paraprofessional Education",null,"Early Childhood Special Education",null,null,null,null,"Elementary Education Foundations Transfer Pathway",null,null,null,null,null,null,null,null,null,"Paramedic",null,"Fire Services","Emergency Management","Paramedic","Fireline Emergency Medical Technician","Fire Medic",null,null,null,null,null,null,null,null,null,null,"Police Training and Education - SKILLS","MN Peace Officer Skills","Investigation","Law Enforcement",null,null,null,null,"Peace Officer Education",null,null,"Peace Officer Skills","Peace Officer/Public Safety Transfer Pathway","Law Enforcement",null,"Peace Officer/Public Safety Transfer Pathway","Peace Officer/Public Safety Non-POST","Peace Officer - Skills",null,null,"Legal Office Assistant",null,null,"Paralegal Studies",null,null,null,null,null,null,null,null,null,"Primary Care Technician",null,null,null,null,null,null,null,null,null,null,null,null,"Preschool Child Development",null,null,null,null,null,null,null,null,null,null,null,null,null,null,null,null,"Human Services Volunteer",null,null,null,"Pre-Social Work Transfer Pathway",null,null,null,null,null,null,null,null,null,null,"Esthiology","Cosmetology (North Dakota)","Esthetician",null,"Estheology","Cosmetology","Esthetician"]
[null,null,null,null,null,null,null,null,null,"Current Issues in Farm Business Management","Current Issues in Farm Business Management",null,null,null,null,"Agriculture Business Management and Marketing","Applications in Farm Business Management","Farm Operation and Management","Current Issues in FBM","Agribusiness Sales, Service, and Management","Essentials of Farm Business Management",null,null,null,null,null,null,null,"Wildlife Tourism",null,null,null,null,"Natural Resources",null,null,null,null,null,null,null,"Landscape Design and Construction",null,null,"Precision Agriculture",null,null,null,null,"Agriculture Service Technician",null,null,null,null,"Media Producer",null,null,null,null,null,null,null,null,null,null,null,null,null,null,"Motion Graphics",null,null,null,null,null,null,null,null,null,"SQL",null,"Enterprise Computing Technician",null,"Database Specialist",null,"Microsoft Server Administrator","Information Technology Fundamentals",null,null,null,null,null,null,null,null,null,null,null,null,null,null,null,null,null,"Information and Telecommunications Technology","Windows Networking",null,null,null,null,null,null,null,null,null,null,null,null,null,null,null,null,null,"Information Security/Assurance",null,"Software Developer","Network and Cybersecurity Operations","Computer Forensics",null,null,null,"Object-Oriented Programming",null,null,null,null,null,null,null,null,null,null,null,null,null,null,null,null,null,null,"Web Development",null,null,null,null,null,null,null,null,null,"Accounting Transfer Pathway",null,"Accounting/Management Information Systems",null,null,null,null,"Accounting Transfer Pathway","Payroll Specialist",null,null,null,null,null,null,null,"Bookkeeper",null,null,"Payroll Clerk",null,null,null,null,null,"Professional Sales Skills",null,null,null,null,null,"Social Media Marketing",null,null,"Marketing Specialist AAS",null,null,null,null,null,null,null,null,null,null,null,null,null,null,null,null,null,null,null,"Office Support",null,"Office Support",null,null,null,"Office Specialist",null,null,null,"Microsoft Office Essentials",null,null,null,"Office Information Specialist",null,null,null,null,null,null,null,null,null,null,null,null,null,null,null,null,null,null,null,null,null,null,null,null,null,"Business Transfer Pathway","Management",null,"Sport Management",null,"Entrepreneurship","Customer Service","Supervisory Management","Business Transfer Pathway",null,"Leadership and Supervision","Entrepreneurship Certificate","Small Business Management","Small Business Management","Management",null,"Management and Entrepreneurship",null,null,"Leadership","Business Transfer Pathway","Management",null,null,null,"Culinary Arts",null,null,null,null,null,null,"Sustainable Tourism Management",null,null,null,"Marine and Powersports","Basic Automotive Service","Automotive Engine Performance","Automotive Technician","Aviation Maintenance Technology",null,null,"Automotive Maintenance and General Repairs",null,"Diesel Mechanics (Ag and Truck)","Automotive Service Technology",null,null,null,"Diesel Technology",null,null,null,"Non-Structural Auto Body",null,null,null,null,null,null,null,null,null,null,null,null,null,null,"Plumbing Technology","Solar Assessor","Electrical Construction and Maintenance Technology",null,"CNC Machining for Woodworking",null,"General Construction Worker",null,null,"Gas Utility Construction and Service","Electrician","Construction Quality Assurance and Quality Control",null,"Electrical Instrumentation",null,null,"Electrical Maintenance Technician","Trade Readiness","Electromechanical Systems",null,"Plumbing - Shop Management",null,null,null,"Interior Design",null,null,null,"Survey Technician",null,null,null,null,null,"Heating, Ventilation, AC and Refrigeration","Residential HVAC",null,null,null,null,"Refrigeration Technology",null,null,"Pipe Welder","Welding and Fabrication",null,null,"Structural Iron Fabrication and Repair","Sheet Metal Technology",null,null,"Welding Technology",null,null,"Welding Process Technology  GTAW",null,null,"Welding","Welding Technology",null,null,"Welding Fabrication",null,null,"Mechanical CAD Drafter","Robotic Offline Programming Advanced","Engineering CAD Technology",null,null,"Automated Machinery Repair Technician","Integrated Manufacturing - Engineering CAD Technology",null,null,"Bicycle Fabrication",null,"Mechatronics",null,"Manufacturing Technology",null,"Automated Systems Technology","Computer Aided Drafting and Design",null,null,null,"Machine Tool Technology Foundations","Energy Technical Specialist - Nuclear",null,null,null,"Fluid Power Mechanic",null,null,"Electric Guitar Building",null,null,null,null,null,null,null,null,"Engineering Technology",null,null,null,null,null,null,null,"Industrial Maintenance",null,null,null,"Automation Robotics Technician",null,null,null,null,null,null,null,null,null,null,null,null,null,null,null,null,null,null,null,null,null,null,null,null,null,null,null,null,null,null,null,null,null,null,null,"Phlebotomy",null,null,null,"Medical Laboratory Technology",null,null,null,null,"Radiography","Magnetic Resonance Imaging (MRI)",null,null,null,null,"Sterile Processing",null,null,"Medical Office Support",null,null,null,"Sterile Processing and Distribution Technician",null,null,null,null,null,null,null,null,null,"Sterile Processing",null,null,null,null,null,null,null,null,null,null,null,null,"Healthcare Informatics",null,null,"Nursing Assistant","Occupational Therapy Assistant","Integrative Health and Wellness Coaching","Nursing","Health Support Specialist","Medical Assistant","Practical Nursing","Nursing Assistant/Home Health Aide",null,"Medical Assisting","Music Therapy","Nursing",null,"Dialysis Technician","Nursing","Professional Nursing","Nutrition","Occupational Therapy Assistant","Practical Nursing","Practical Nursing","Nursing","Massage Therapy","Dental Hygiene","Nursing Assistant/Home Health Aide","Nursing","Practical Nursing",null,null,null,null,null,null,null,"Special Education Transfer Pathway",null,null,null,null,"Elementary Education Foundations Transfer Pathway","Early Childhood Education Transfer Pathway","Early Childhood Education Trainer/Coach",null,null,null,"Special Education Transfer Pathway",null,null,"Education Foundations",null,null,null,null,"Special Education Transfer Pathway",null,null,null,null,null,null,null,null,null,null,null,"Paramedic","Emergency Management Principles",null,"Paramedic","Fire Science and Administration",null,null,null,null,null,null,null,null,null,null,"Police Training and Education: Career Transition",null,"Law Enforcement","Law Enforcement Skills",null,null,null,null,"Peace Officer Skills",null,null,"Peace Officer/Public Safety Transfer Pathway",null,"Law Enforcement Transfer Pathway",null,null,"Peace Officer/Public Safety Transfer Pathway","Peace Officer/Public Safety Transfer Pathway",null,null,"Scoping/Proofreading",null,null,null,null,null,null,null,null,null,null,null,null,null,null,null,null,null,null,null,null,null,null,null,null,null,"School Age Child Development",null,null,null,null,null,null,null,null,null,null,null,null,null,null,null,null,"Pre-Social Work Transfer Pathway",null,null,null,null,null,null,null,null,null,null,null,null,null,null,"Nail Care Technology","Esthetician","Hair Technician",null,null,"Esthetics","Esthetician International"]
[null,null,null,null,null,null,null,null,null,"Essentials in Farm Business Management","Enology",null,null,null,null,"Agriculture Production","Current Issues in Farm Business Management",null,"Essentials of FBM","Agricultural Commodities Marketing","Farm Business Management",null,null,null,null,null,null,null,null,null,null,null,null,"Natural Resources Technology - Forestry/Wildlife",null,null,null,null,null,null,null,"Landscape/Horticulture",null,null,"Precision Farming",null,null,null,null,"Agriculture Technician",null,null,null,null,null,null,null,null,null,null,null,null,null,null,null,null,null,null,null,"Video Production Specialist",null,null,null,null,null,null,null,null,null,null,null,"Enterprise Computing Technology",null,"IT Service Desk Technician",null,"Network Administration and Cyber Security","Linux Network Administrator",null,null,null,null,null,null,null,null,null,null,null,null,null,null,null,null,null,"Networking Fundamentals",null,null,null,null,null,null,null,null,null,null,null,null,null,null,null,null,null,null,"Internet Programming",null,"Visual Basic Programmer",null,"Computer Security Specialist",null,null,null,null,null,null,null,null,null,null,null,null,null,null,null,null,null,null,null,null,null,null,null,null,null,null,null,null,null,null,null,null,null,null,null,null,null,null,null,"Bookkeeper",null,null,null,null,null,null,null,null,"Tax Preparer",null,null,null,null,null,null,null,null,null,null,null,null,null,null,null,null,null,null,null,null,null,null,null,null,null,null,null,null,null,null,null,null,null,null,null,null,null,"Software Applications",null,"Organizational Assistant",null,null,null,null,null,null,null,"Microsoft Office Principles",null,null,null,"Office Specialist",null,null,null,null,null,null,null,null,null,null,null,null,null,null,null,null,null,null,null,null,null,null,null,null,null,"Entrepreneurship",null,null,"Supervisory Leadership",null,"Management","Project Management",null,"Entrepreneurship",null,"Project Management","Sport Management","Supervisory Leadership in Management",null,"Project Management Essentials",null,null,null,null,"Supervisory Management","Digital Marketing Specialist","Project Management",null,null,null,"Culinary Assistant",null,null,null,null,null,null,null,null,null,null,null,null,"Automotive Powertrain","Automotive Technology (Ford ASSET)","Brake and Suspension Technician",null,null,"Automotive Technology",null,"Diesel Technology","Aviation Maintenance Technician Plus",null,null,null,null,null,null,null,"Refinish Assistant",null,null,null,null,null,null,null,null,null,null,null,null,null,null,null,"Solar Sales and Marketing","Electrical Lineworker",null,"Furniture Design and Fabrication",null,"Power Limited Technician",null,null,"Plumbing Technology","Heating Technology","Construction Technology",null,"Facility Maintenance and Management",null,null,"Electrician - Construction",null,"Electromechanical Systems: Industrial Programming",null,null,null,null,null,"Interior Design: NCIDQ Pathway",null,null,null,null,null,null,null,null,null,"Residential Heating, Ventilation, Air Conditioning",null,null,null,null,null,null,null,null,"Robotic and Laser Welding",null,null,null,"Tool and Die/Moldmaking","Welding",null,null,null,null,null,"Welding Process Technology  SMAW",null,null,null,null,null,null,null,null,null,"Mechanical CAD Operator","Robotic Vision Advanced",null,null,null,"Automated Machinery Systems","Integrated Manufacturing Technology - Automated Ma",null,null,"CNC Machine Tool",null,null,null,"Mechanical",null,"Manufacturing Foundations","Computer Numerical Control Technician",null,null,null,"Machine Tool Technology Right Skills Now","Instrumentation and Process Control Technology",null,null,null,"Hydraulic Engineering Technician",null,null,"Electrical Engineering Technology",null,null,null,null,null,null,null,null,"General Engineering",null,null,null,null,null,null,null,"Mechatronics Technology",null,null,null,null,null,null,null,null,null,null,null,null,null,null,null,null,null,null,null,null,null,null,null,null,null,null,null,null,null,null,null,null,null,null,null,null,null,null,null,"Radiologic Technology",null,null,null,"Phlebotomy Technician",null,null,null,null,null,"Radiography",null,null,null,null,null,null,null,null,null,null,null,null,null,null,null,null,null,null,null,null,null,null,null,null,null,null,null,null,null,null,null,null,null,null,"Healthcare Office Professional",null,null,"Ophthalmic Medical Technician","Practical Nursing","Pharmacy Technician","Nursing Assistant","Medical Assistant","Nursing Assistant",null,"Practical Nursing",null,"Nursing","Nursing","Nursing Assistant",null,"Massage Therapy","Nursing Assistant",null,null,"Pharmacy Technology",null,null,"Practical Nursing","Medical Assistant","Group Fitness Instructor","Pharmacy Technician","Practical Nursing","Surgical Technology",null,null,null,null,null,null,null,null,null,null,null,null,"Special Education Transfer Pathway","Early Childhood/Early Childhood Special Education","Early Childhood Education Transfer Pathway",null,null,null,null,null,null,"Elementary Education Foundations Transfer Pathway",null,null,null,null,null,null,null,null,null,null,null,null,null,null,null,null,"Paramedic Fire Science","Emergency Medical Services Specialist",null,"Wilderness Emergency Medical Services","Fire Technology",null,null,null,null,null,null,null,null,null,null,null,null,"Law Enforcement Transfer Pathway","Law Enforcement Skills Training",null,null,null,null,"Peace Officer Training",null,null,null,null,"Peace Officer/Public Safety Transfer Pathway",null,null,null,null,null,null,null,null,null,null,null,null,null,null,null,null,null,null,null,null,null,null,null,null,null,null,null,null,null,null,null,null,null,null,null,null,null,null,null,null,null,null,null,null,null,null,null,null,null,null,null,null,null,null,null,null,null,null,null,null,null,null,null,null,null,"Eyelash Extension Technician","Nail Technician",null,null,"Hair Technician","Hair Technician"]
[null,null,null,null,null,null,null,null,null,"Farm Business Management","Essentials of Farm Business Management",null,null,null,null,"Agriculture Production Management","Essentials of Farm Business Management",null,"Farm Business Management","Agronomy",null,null,null,null,null,null,null,null,null,null,null,null,null,"Wilderness and Park Management",null,null,null,null,null,null,null,"Professional Gardening",null,null,null,null,null,null,null,"Agriculture Technician's Aide",null,null,null,null,null,null,null,null,null,null,null,null,null,null,null,null,null,null,null,null,null,null,null,null,null,null,null,null,null,null,null,"Enterprise Technical Support Specialist",null,"IT Support",null,"Network Administration and Security","Microsoft Network Administrator",null,null,null,null,null,null,null,null,null,null,null,null,null,null,null,null,null,"Storage Area Networking",null,null,null,null,null,null,null,null,null,null,null,null,null,null,null,null,null,null,"Intrusion Detection and Incident Handling",null,null,null,"Cyber Security and Defense",null,null,null,null,null,null,null,null,null,null,null,null,null,null,null,null,null,null,null,null,null,null,null,null,null,null,null,null,null,null,null,null,null,null,null,null,null,null,null,"Business Systems",null,null,null,null,null,null,null,null,null,null,null,null,null,null,null,null,null,null,null,null,null,null,null,null,null,null,null,null,null,null,null,null,null,null,null,null,null,null,null,null,null,null,null,null,null,null,null,null,"Organizational Business Support Specialist",null,null,null,null,null,null,null,"Microsoft Office Specialist",null,null,null,null,null,null,null,null,null,null,null,null,null,null,null,null,null,null,null,null,null,null,null,null,null,null,null,null,null,"International Business",null,null,"Technical Management",null,"Project Management","Small Business Development",null,null,null,"Quality Improvement",null,null,null,null,null,null,null,null,null,"Hospitality Management",null,null,null,null,"Culinary Entrepreneur",null,null,null,null,null,null,null,null,null,null,null,null,"Automotive Service (ASEP)","Custom Fabrication and Finishing",null,null,null,null,null,null,"Aviation Maintenance Technology",null,null,null,null,null,null,null,null,null,null,null,null,null,null,null,null,null,null,null,null,null,null,null,null,null,null,"General Construction Laborer",null,null,null,null,"Woodcraft Technician","Plumbing Technology",null,null,"Plumbing Technology",null,null,"Solar Installer",null,"Pipefitting",null,null,null,null,null,null,null,null,null,null,null,null,null,null,null,null,null,null,null,null,null,null,null,null,"Welding",null,null,null,"Welding","Welding Technologist",null,null,null,null,null,"Welding Technology",null,null,null,null,null,null,null,null,null,"Mechanical Drafting and Design - CAD Drafter","Robotic Welding Advanced",null,null,null,"Automation Robotics Engineering Technology","Integrated Manufacturing Technology - CNC Machine",null,null,"Computer Aided Design (CAD) Drafting Technologies",null,null,null,"Mechanical Design",null,"Precision Machining Essentials","Nondestructive Testing Technology",null,null,null,"Manufacturing Foundations","Manufacturing Foundations",null,null,null,"Industrial Maintenance Mechanic",null,null,"Electronics Lab Assistant",null,null,null,null,null,null,null,null,"General Engineering Requisites",null,null,null,null,null,null,null,null,null,null,null,null,null,null,null,null,null,null,null,null,null,null,null,null,null,null,null,null,null,null,null,null,null,null,null,null,null,null,null,null,null,null,null,null,null,null,null,null,null,null,null,"Radiologic Technology",null,null,null,null,null,null,null,null,null,null,null,null,null,null,null,null,null,null,null,null,null,null,null,null,null,null,null,null,null,null,null,null,null,null,null,null,null,null,null,null,null,null,null,"Practical Nursing","Surgical Technology","Physical Therapist Assistant","Practical Nursing","Mental and Behavioral Health Worker","Personal Training",null,null,null,"Nursing Assistant","Nursing Assistant","Outdoor Recreation Therapy",null,"Nursing","Occupational Therapy Assistant",null,null,"Physical Therapist Assistant",null,null,null,"Nursing","Nursing","Practical Nursing","Surgical Technology",null,null,null,null,null,null,null,null,null,null,null,null,null,"Yoga Teacher Training","Outdoor Leadership",null,null,null,null,null,null,null,"Physical Education Teaching and Coaching",null,null,null,null,null,null,null,null,null,null,null,null,null,null,null,null,"Paramedic for Experienced EMT","Emergency Medical Technician",null,"Wildland Firefighting","Wildland Firefighting",null,null,null,null,null,null,null,null,null,null,null,null,null,"Peace Officer/Public Safety Skills Training",null,null,null,null,"Peace Officer/Public Safety Transfer Pathway",null,null,null,null,null,null,null,null,null,null,null,null,null,null,null,null,null,null,null,null,null,null,null,null,null,null,null,null,null,null,null,null,null,null,null,null,null,null,null,null,null,null,null,null,null,null,null,null,null,null,null,null,null,null,null,null,null,null,null,null,null,null,null,null,null,null,null,null,null,null,"Hair Technician",null,null,null,null,"Nail Care and Eyelash Extensions Technician"]
[null,null,null,null,null,null,null,null,null,null,"Horticulture",null,null,null,null,"Applications in Farm Business Management","Farm Operations and Management",null,null,"Applications in Farm Business Management",null,null,null,null,null,null,null,null,null,null,null,null,null,"Wildlife Ecology",null,null,null,null,null,null,null,null,null,null,null,null,null,null,null,null,null,null,null,null,null,null,null,null,null,null,null,null,null,null,null,null,null,null,null,null,null,null,null,null,null,null,null,null,null,null,null,"Identity Security and Access Management",null,"IT Support Specialist",null,"PC Support Technician",null,null,null,null,null,null,null,null,null,null,null,null,null,null,null,null,null,null,null,null,null,null,null,null,null,null,null,null,null,null,null,null,null,null,null,null,null,"Offensive Security",null,null,null,"Information Assurance Professional",null,null,null,null,null,null,null,null,null,null,null,null,null,null,null,null,null,null,null,null,null,null,null,null,null,null,null,null,null,null,null,null,null,null,null,null,null,null,null,null,null,null,null,null,null,null,null,null,null,null,null,null,null,null,null,null,null,null,null,null,null,null,null,null,null,null,null,null,null,null,null,null,null,null,null,null,null,null,null,null,null,null,null,null,null,null,null,null,"Organizational Coordinator",null,null,null,null,null,null,null,"Written Communication Technologies",null,null,null,null,null,null,null,null,null,null,null,null,null,null,null,null,null,null,null,null,null,null,null,null,null,null,null,null,null,"Retail Management",null,null,null,null,"Sales","Supervision",null,null,null,null,null,null,null,null,null,null,null,null,null,"Sport Management",null,null,null,null,"Culinary Manager",null,null,null,null,null,null,null,null,null,null,null,null,"Automotive Service Technology","General Maintenance Technician",null,null,null,null,null,null,"Collision and Refinishing Technician",null,null,null,null,null,null,null,null,null,null,null,null,null,null,null,null,null,null,null,null,null,null,null,null,null,null,"Industrial Building Engineering and Maintenance",null,null,null,null,null,"Powerline",null,null,"Residential Plumbing Technology",null,null,"Wind Technology Operation & Maintenance",null,"Plumbing",null,null,null,null,null,null,null,null,null,null,null,null,null,null,null,null,null,null,null,null,null,null,null,null,"Welding Fabricator",null,null,null,null,"Welding Technology",null,null,null,null,null,null,null,null,null,null,null,null,null,null,null,"Robotic and Laser Welding","Robotics/Automated Systems Technology",null,null,null,"Automation Technologies","Production Technologies",null,null,"Computer Aided Drafting (CAD) Technologies",null,null,null,"Mechatronics",null,"Precision Machining Technology",null,null,null,null,"Manufacturing Production Technology","Mechanical Design and Manufacturing Technology",null,null,null,"Light Rail Train Technician",null,null,"Electronics Technology",null,null,null,null,null,null,null,null,"General Engineering Sciences",null,null,null,null,null,null,null,null,null,null,null,null,null,null,null,null,null,null,null,null,null,null,null,null,null,null,null,null,null,null,null,null,null,null,null,null,null,null,null,null,null,null,null,null,null,null,null,null,null,null,null,"Sonography - Echocardiography Technology",null,null,null,null,null,null,null,null,null,null,null,null,null,null,null,null,null,null,null,null,null,null,null,null,null,null,null,null,null,null,null,null,null,null,null,null,null,null,null,null,null,null,null,"Speech-Language Pathology Assistant",null,"Professional Nursing","Trained Medication Aid","Nursing","Practical Nursing",null,null,null,"Personal Training","Personal Trainer-Group Exercise Instructor","Practical Nursing",null,"Practical Nursing","Pharmacy Technician",null,null,"Practical Nursing",null,null,null,"Nursing (MANE)","Personal Trainer","Respiratory Care Practitioner/Therapist",null,null,null,null,null,null,null,null,null,null,null,null,null,null,null,"Outdoor Leadership Professional",null,null,null,null,null,null,null,"Special Education Transfer Pathway",null,null,null,null,null,null,null,null,null,null,null,null,null,null,null,null,"Paramedic Science","Emergency Room Technician",null,null,null,null,null,null,null,null,null,null,null,null,null,null,null,null,"Peace Officer/Public Safety Transfer Pathway",null,null,null,null,"Wildland/Wildlife Law Enforcement",null,null,null,null,null,null,null,null,null,null,null,null,null,null,null,null,null,null,null,null,null,null,null,null,null,null,null,null,null,null,null,null,null,null,null,null,null,null,null,null,null,null,null,null,null,null,null,null,null,null,null,null,null,null,null,null,null,null,null,null,null,null,null,null,null,null,null,null,null,null,"Nail Technician",null,null,null,null,"Nail Care Technician"]
[null,null,null,null,null,null,null,null,null,null,"Specialty Crops Management",null,null,null,null,"Current Issues in Farm Business Management",null,null,null,"Essentials of Farm Business Management",null,null,null,null,null,null,null,null,null,null,null,null,null,null,null,null,null,null,null,null,null,null,null,null,null,null,null,null,null,null,null,null,null,null,null,null,null,null,null,null,null,null,null,null,null,null,null,null,null,null,null,null,null,null,null,null,null,null,null,null,null,"Linux System Administrator",null,"Network Administrator/Analyst",null,null,null,null,null,null,null,null,null,null,null,null,null,null,null,null,null,null,null,null,null,null,null,null,null,null,null,null,null,null,null,null,null,null,null,null,null,null,null,"Reverse Engineering Malware Analysis and Technique",null,null,null,"JAVA",null,null,null,null,null,null,null,null,null,null,null,null,null,null,null,null,null,null,null,null,null,null,null,null,null,null,null,null,null,null,null,null,null,null,null,null,null,null,null,null,null,null,null,null,null,null,null,null,null,null,null,null,null,null,null,null,null,null,null,null,null,null,null,null,null,null,null,null,null,null,null,null,null,null,null,null,null,null,null,null,null,null,null,null,null,null,null,null,null,null,null,null,null,null,null,null,null,null,null,null,null,null,null,null,null,null,null,null,null,null,null,null,null,null,null,null,null,null,null,null,null,null,null,null,null,null,null,null,null,null,null,"Supervisory Management",null,null,null,null,null,null,null,null,null,null,null,null,null,null,"Supervisory Leadership",null,null,null,null,"Food and Beverage Specialties",null,null,null,null,null,null,null,null,null,null,null,null,"Body Technician","Maintenance Light Repair",null,null,null,null,null,null,"Sheet Metal Technician",null,null,null,null,null,null,null,null,null,null,null,null,null,null,null,null,null,null,null,null,null,null,null,null,null,null,"Plumbing Pre-Apprenticeship",null,null,null,null,null,"Powerline Technology",null,null,"Residential Plumbing/HVAC",null,null,null,null,null,null,null,null,null,null,null,null,null,null,null,null,null,null,null,null,null,null,null,null,null,null,null,null,null,"Welding Technology",null,null,null,null,null,null,null,null,null,null,null,null,null,null,null,null,null,null,null,null,null,null,null,null,null,"CNC Operator","Rapid Prototyping and Design",null,null,"Precision Machining",null,null,null,"Production Technologies",null,"Production Technologies",null,null,null,null,"Mechatronics Engineering Technology","Mechanical Design Engineering Technology",null,null,null,"Manufacturing Support Technician Level I",null,null,"Guitar Development and Production",null,null,null,null,null,null,null,null,"General Engineering Technology",null,null,null,null,null,null,null,null,null,null,null,null,null,null,null,null,null,null,null,null,null,null,null,null,null,null,null,null,null,null,null,null,null,null,null,null,null,null,null,null,null,null,null,null,null,null,null,null,null,null,null,null,null,null,null,null,null,null,null,null,null,null,null,null,null,null,null,null,null,null,null,null,null,null,null,null,null,null,null,null,null,null,null,null,null,null,null,null,null,null,null,null,null,null,null,null,null,"Therapeutic Massage",null,"Nursing Assistant",null,null,null,null,"Physical Therapist Assistant","Pharmacy Technician",null,null,"Surgical Technology","Pharmacy Technology",null,null,"Respiratory Therapy",null,null,null,"Nursing Assistant","Practical Nursing","Sport and Exercise Sciences",null,null,null,null,null,null,null,null,null,null,null,null,null,null,null,null,null,null,null,null,null,null,null,null,null,null,null,null,null,null,null,null,null,null,null,null,null,null,null,null,"Public Safety","Emergency Services Training Officer"]
[null,null,null,null,null,null,null,null,null,null,"Sustainable Greenhouse Production",null,null,null,null,"Essentials of Farm Business Management",null,null,null,"Farm Business Management",null,null,null,null,null,null,null,null,null,null,null,null,null,null,null,null,null,null,null,null,null,null,null,null,null,null,null,null,null,null,null,null,null,null,null,null,null,null,null,null,null,null,null,null,null,null,null,null,null,null,null,null,null,null,null,null,null,null,null,null,null,"Mobile Application Development",null,"Oracle Database Specialist",null,null,null,null,null,null,null,null,null,null,null,null,null,null,null,null,null,null,null,null,null,null,null,null,null,null,null,null,null,null,null,null,null,null,null,null,null,null,null,null,null,null,null,"Open Source Developer",null,null,null,null,null,null,null,null,null,null,null,null,null,null,null,null,null,null,null,null,null,null,null,null,null,null,null,null,null,null,null,null,null,null,null,null,null,null,null,null,null,null,null,null,null,null,null,null,null,null,null,null,null,null,null,null,null,null,null,null,null,null,null,null,null,null,null,null,null,null,null,null,null,null,null,null,null,null,null,null,null,null,null,null,null,null,null,null,null,null,null,null,null,null,null,null,null,null,null,null,null,null,null,null,null,null,null,null,null,null,null,null,null,null,null,null,null,null,null,null,null,null,null,null,null,null,null,null,null,null,null,null,null,null,null,null,null,null,null,null,null,null,null,null,null,null,null,null,null,null,null,"Pastry Entrepreneur",null,null,null,null,null,null,null,null,null,null,null,null,"Estimator","Marine, Motorsport  & Outdoor Power Equipment Tech",null,null,null,null,null,null,"Small Unmanned Aircraft Systems Field Service Tech",null,null,null,null,null,null,null,null,null,null,null,null,null,null,null,null,null,null,null,null,null,null,null,null,null,null,"Product Fabrication",null,null,null,null,null,"Solar Photovoltaic Technician",null,null,"Residential Wiring",null,null,null,null,null,null,null,null,null,null,null,null,null,null,null,null,null,null,null,null,null,null,null,null,null,null,null,null,null,null,null,null,null,null,null,null,null,null,null,null,null,null,null,null,null,null,null,null,null,null,null,null,null,null,null,"CNC Swiss Turning Center Technician","Renewable and Sustainable Energy Technologies",null,null,null,null,null,null,null,null,null,null,null,null,null,"Mechatronics Industrial Maintenance","Mechatronics Technology",null,null,null,"Manufacturing Support Technician Level II",null,null,"Guitar Repair and Building",null,null,null,null,null,null,null,null,"Naval Nuclear Engineering Technology",null,null,null,null,null,null,null,null,null,null,null,null,null,null,null,null,null,null,null,null,null,null,null,null,null,null,null,null,null,null,null,null,null,null,null,null,null,null,null,null,null,null,null,null,null,null,null,null,null,null,null,null,null,null,null,null,null,null,null,null,null,null,null,null,null,null,null,null,null,null,null,null,null,null,null,null,null,null,null,null,null,null,null,null,null,null,null,null,null,null,null,null,null,null,null,null,null,null,null,"Orthotic and Prosthetic Clinical Applications",null,null,null,null,"Practical Nursing",null,null,null,null,"Practical Nursing",null,null,"Surgical Technology",null,null,null,"Practical Nursing","Surgical Technology","Surgical Technologist",null,null,null,null,null,null,null,null,null,null,null,null,null,null,null,null,null,null,null,null,null,null,null,null,null,null,null,null,null,null,null,null,null,null,null,null,null,null,null,null,"Public Safety Leadership","Fire Investigation"]
[null,null,null,null,null,null,null,null,null,null,"Sustainable Local Food",null,null,null,null,"Farm Business Management",null,null,null,"Farm Business Management AgSpark",null,null,null,null,null,null,null,null,null,null,null,null,null,null,null,null,null,null,null,null,null,null,null,null,null,null,null,null,null,null,null,null,null,null,null,null,null,null,null,null,null,null,null,null,null,null,null,null,null,null,null,null,null,null,null,null,null,null,null,null,null,null,null,null,null,null,null,null,null,null,null,null,null,null,null,null,null,null,null,null,null,null,null,null,null,null,null,null,null,null,null,null,null,null,null,null,null,null,null,null,null,null,null,null,null,null,null,"Software Developer",null,null,null,null,null,null,null,null,null,null,null,null,null,null,null,null,null,null,null,null,null,null,null,null,null,null,null,null,null,null,null,null,null,null,null,null,null,null,null,null,null,null,null,null,null,null,null,null,null,null,null,null,null,null,null,null,null,null,null,null,null,null,null,null,null,null,null,null,null,null,null,null,null,null,null,null,null,null,null,null,null,null,null,null,null,null,null,null,null,null,null,null,null,null,null,null,null,null,null,null,null,null,null,null,null,null,null,null,null,null,null,null,null,null,null,null,null,null,null,null,null,null,null,null,null,null,null,null,null,null,null,null,null,null,null,null,null,null,null,null,null,null,null,null,null,null,null,null,null,null,null,null,null,null,null,null,null,null,null,null,null,null,null,null,"Heavy Construction Equipment Maintenance","Medium Heavy Truck Drivetrain Technician",null,null,null,null,null,null,"Small Unmanned Aircraft Systems Technician",null,null,null,null,null,null,null,null,null,null,null,null,null,null,null,null,null,null,null,null,null,null,null,null,null,null,"Residential Cabinetry Design and Fabrication",null,null,null,null,null,"Wind Energy Mechanic",null,null,null,null,null,null,null,null,null,null,null,null,null,null,null,null,null,null,null,null,null,null,null,null,null,null,null,null,null,null,null,null,null,null,null,null,null,null,null,null,null,null,null,null,null,null,null,null,null,null,null,null,null,null,null,null,null,null,"Computer Numerical Control (CNC) Setup Technician","Robotic & Manufacturing Automation Technology",null,null,null,null,null,null,null,null,null,null,null,null,null,null,"Production Technologies",null,null,null,"National Certified Fluid Power Specialist",null,null,"Violin Repair",null,null,null,null,null,null,null,null,"Nuclear Engineering Fundamentals",null,null,null,null,null,null,null,null,null,null,null,null,null,null,null,null,null,null,null,null,null,null,null,null,null,null,null,null,null,null,null,null,null,null,null,null,null,null,null,null,null,null,null,null,null,null,null,null,null,null,null,null,null,null,null,null,null,null,null,null,null,null,null,null,null,null,null,null,null,null,null,null,null,null,null,null,null,null,null,null,null,null,null,null,null,null,null,null,null,null,null,null,null,null,null,null,null,null,null,"Orthotic and Prosthetic Fitter",null,null,null,null,"Respiratory Therapy",null,null,null,null,"Surgical Technology",null,null,null,null,null,null,null,null,null,null,null,null,null,null,null,null,null,null,null,null,null,null,null,null,null,null,null,null,null,null,null,null,null,null,null,null,null,null,null,null,null,null,null,null,null,null,null,null,null,null,"Fire Prevention and Inspection"]
[null,null,null,null,null,null,null,null,null,null,"Viticulture",null,null,null,null,"Production Agriculture",null,null,null,"Farm Production, Management, and Operations",null,null,null,null,null,null,null,null,null,null,null,null,null,null,null,null,null,null,null,null,null,null,null,null,null,null,null,null,null,null,null,null,null,null,null,null,null,null,null,null,null,null,null,null,null,null,null,null,null,null,null,null,null,null,null,null,null,null,null,null,null,null,null,null,null,null,null,null,null,null,null,null,null,null,null,null,null,null,null,null,null,null,null,null,null,null,null,null,null,null,null,null,null,null,null,null,null,null,null,null,null,null,null,null,null,null,null,"Software Development",null,null,null,null,null,null,null,null,null,null,null,null,null,null,null,null,null,null,null,null,null,null,null,null,null,null,null,null,null,null,null,null,null,null,null,null,null,null,null,null,null,null,null,null,null,null,null,null,null,null,null,null,null,null,null,null,null,null,null,null,null,null,null,null,null,null,null,null,null,null,null,null,null,null,null,null,null,null,null,null,null,null,null,null,null,null,null,null,null,null,null,null,null,null,null,null,null,null,null,null,null,null,null,null,null,null,null,null,null,null,null,null,null,null,null,null,null,null,null,null,null,null,null,null,null,null,null,null,null,null,null,null,null,null,null,null,null,null,null,null,null,null,null,null,null,null,null,null,null,null,null,null,null,null,null,null,null,null,null,null,null,null,null,null,"Heavy Construction Equipment Mechanic","Medium Heavy Truck Maintenance Technician",null,null,null,null,null,null,"UAS & Geospatial Applications",null,null,null,null,null,null,null,null,null,null,null,null,null,null,null,null,null,null,null,null,null,null,null,null,null,null,"Residential Remodeling and Design",null,null,null,null,null,"Wind Energy Technology",null,null,null,null,null,null,null,null,null,null,null,null,null,null,null,null,null,null,null,null,null,null,null,null,null,null,null,null,null,null,null,null,null,null,null,null,null,null,null,null,null,null,null,null,null,null,null,null,null,null,null,null,null,null,null,null,null,null,"Computer Numerical Control (CNC) Technician","Solidworks (CAD)",null,null,null,null,null,null,null,null,null,null,null,null,null,null,"Robotics and Automation Technology",null,null,null,"Pneumatic Engineering Technician",null,null,null,null,null,null,null,null,null,null,null,"Nuclear Engineering Technology",null,null,null,null,null,null,null,null,null,null,null,null,null,null,null,null,null,null,null,null,null,null,null,null,null,null,null,null,null,null,null,null,null,null,null,null,null,null,null,null,null,null,null,null,null,null,null,null,null,null,null,null,null,null,null,null,null,null,null,null,null,null,null,null,null,null,null,null,null,null,null,null,null,null,null,null,null,null,null,null,null,null,null,null,null,null,null,null,null,null,null,null,null,null,null,null,null,null,null,"Orthotics Technician",null,null,null,null,"Surgical Technology",null,null,null,null,null,null,null,null,null,null,null,null,null,null,null,null,null,null,null,null,null,null,null,null,null,null,null,null,null,null,null,null,null,null,null,null,null,null,null,null,null,null,null,null,null,null,null,null,null,null,null,null,null,null,null,"Fire Protection Technician"]
[null,null,null,null,null,null,null,null,null,null,null,null,null,null,null,null,null,null,null,"FBM Current Issues in Farm Business Management",null,null,null,null,null,null,null,null,null,null,null,null,null,null,null,null,null,null,null,null,null,null,null,null,null,null,null,null,null,null,null,null,null,null,null,null,null,null,null,null,null,null,null,null,null,null,null,null,null,null,null,null,null,null,null,null,null,null,null,null,null,null,null,null,null,null,null,null,null,null,null,null,null,null,null,null,null,null,null,null,null,null,null,null,null,null,null,null,null,null,null,null,null,null,null,null,null,null,null,null,null,null,null,null,null,null,null,"Visual C# Developer",null,null,null,null,null,null,null,null,null,null,null,null,null,null,null,null,null,null,null,null,null,null,null,null,null,null,null,null,null,null,null,null,null,null,null,null,null,null,null,null,null,null,null,null,null,null,null,null,null,null,null,null,null,null,null,null,null,null,null,null,null,null,null,null,null,null,null,null,null,null,null,null,null,null,null,null,null,null,null,null,null,null,null,null,null,null,null,null,null,null,null,null,null,null,null,null,null,null,null,null,null,null,null,null,null,null,null,null,null,null,null,null,null,null,null,null,null,null,null,null,null,null,null,null,null,null,null,null,null,null,null,null,null,null,null,null,null,null,null,null,null,null,null,null,null,null,null,null,null,null,null,null,null,null,null,null,null,null,null,null,null,null,null,null,"Heavy Construction Equipment Technology","Medium Heavy Truck Technology",null,null,null,null,null,null,"Uncrewed Aircraft Systems",null,null,null,null,null,null,null,null,null,null,null,null,null,null,null,null,null,null,null,null,null,null,null,null,null,null,"Street, Utility and Park Maintenance Technician",null,null,null,null,null,"Windsmith",null,null,null,null,null,null,null,null,null,null,null,null,null,null,null,null,null,null,null,null,null,null,null,null,null,null,null,null,null,null,null,null,null,null,null,null,null,null,null,null,null,null,null,null,null,null,null,null,null,null,null,null,null,null,null,null,null,null,"Controls Engineering Technician",null,null,null,null,null,null,null,null,null,null,null,null,null,null,null,null,null,null,null,null,null,null,null,null,null,null,null,null,null,null,null,null,null,null,null,null,null,null,null,null,null,null,null,null,null,null,null,null,null,null,null,null,null,null,null,null,null,null,null,null,null,null,null,null,null,null,null,null,null,null,null,null,null,null,null,null,null,null,null,null,null,null,null,null,null,null,null,null,null,null,null,null,null,null,null,null,null,null,null,null,null,null,null,null,null,null,null,null,null,null,null,null,null,null,null,null,null,null,null,null,null,null,null,null,null,null,null,null,null,null,null,"Pedorthic",null,null,null,null,null,null,null,null,null,null,null,null,null,null,null,null,null,null,null,null,null,null,null,null,null,null,null,null,null,null,null,null,null,null,null,null,null,null,null,null,null,null,null,null,null,null,null,null,null,null,null,null,null,null,null,null,null,null,null,null,"Fire Rescue"]
[null,null,null,null,null,null,null,null,null,null,null,null,null,null,null,null,null,null,null,"Production Agriculture",null,null,null,null,null,null,null,null,null,null,null,null,null,null,null,null,null,null,null,null,null,null,null,null,null,null,null,null,null,null,null,null,null,null,null,null,null,null,null,null,null,null,null,null,null,null,null,null,null,null,null,null,null,null,null,null,null,null,null,null,null,null,null,null,null,null,null,null,null,null,null,null,null,null,null,null,null,null,null,null,null,null,null,null,null,null,null,null,null,null,null,null,null,null,null,null,null,null,null,null,null,null,null,null,null,null,null,"Web Developer",null,null,null,null,null,null,null,null,null,null,null,null,null,null,null,null,null,null,null,null,null,null,null,null,null,null,null,null,null,null,null,null,null,null,null,null,null,null,null,null,null,null,null,null,null,null,null,null,null,null,null,null,null,null,null,null,null,null,null,null,null,null,null,null,null,null,null,null,null,null,null,null,null,null,null,null,null,null,null,null,null,null,null,null,null,null,null,null,null,null,null,null,null,null,null,null,null,null,null,null,null,null,null,null,null,null,null,null,null,null,null,null,null,null,null,null,null,null,null,null,null,null,null,null,null,null,null,null,null,null,null,null,null,null,null,null,null,null,null,null,null,null,null,null,null,null,null,null,null,null,null,null,null,null,null,null,null,null,null,null,null,null,null,null,"Heavy Duty Truck Technology","Motorcycle Technician",null,null,null,null,null,null,null,null,null,null,null,null,null,null,null,null,null,null,null,null,null,null,null,null,null,null,null,null,null,null,null,null,null,"Sustainable Construction",null,null,null,null,null,null,null,null,null,null,null,null,null,null,null,null,null,null,null,null,null,null,null,null,null,null,null,null,null,null,null,null,null,null,null,null,null,null,null,null,null,null,null,null,null,null,null,null,null,null,null,null,null,null,null,null,null,null,null,null,null,null,null,null,"Creo Parametric Operator",null,null,null,null,null,null,null,null,null,null,null,null,null,null,null,null,null,null,null,null,null,null,null,null,null,null,null,null,null,null,null,null,null,null,null,null,null,null,null,null,null,null,null,null,null,null,null,null,null,null,null,null,null,null,null,null,null,null,null,null,null,null,null,null,null,null,null,null,null,null,null,null,null,null,null,null,null,null,null,null,null,null,null,null,null,null,null,null,null,null,null,null,null,null,null,null,null,null,null,null,null,null,null,null,null,null,null,null,null,null,null,null,null,null,null,null,null,null,null,null,null,null,null,null,null,null,null,null,null,null,null,"Prosthetic Technology",null,null,null,null,null,null,null,null,null,null,null,null,null,null,null,null,null,null,null,null,null,null,null,null,null,null,null,null,null,null,null,null,null,null,null,null,null,null,null,null,null,null,null,null,null,null,null,null,null,null,null,null,null,null,null,null,null,null,null,null,"Fire Science"]
[null,null,null,null,null,null,null,null,null,null,null,null,null,null,null,null,null,null,null,"Sustainable Microfarming",null,null,null,null,null,null,null,null,null,null,null,null,null,null,null,null,null,null,null,null,null,null,null,null,null,null,null,null,null,null,null,null,null,null,null,null,null,null,null,null,null,null,null,null,null,null,null,null,null,null,null,null,null,null,null,null,null,null,null,null,null,null,null,null,null,null,null,null,null,null,null,null,null,null,null,null,null,null,null,null,null,null,null,null,null,null,null,null,null,null,null,null,null,null,null,null,null,null,null,null,null,null,null,null,null,null,null,null,null,null,null,null,null,null,null,null,null,null,null,null,null,null,null,null,null,null,null,null,null,null,null,null,null,null,null,null,null,null,null,null,null,null,null,null,null,null,null,null,null,null,null,null,null,null,null,null,null,null,null,null,null,null,null,null,null,null,null,null,null,null,null,null,null,null,null,null,null,null,null,null,null,null,null,null,null,null,null,null,null,null,null,null,null,null,null,null,null,null,null,null,null,null,null,null,null,null,null,null,null,null,null,null,null,null,null,null,null,null,null,null,null,null,null,null,null,null,null,null,null,null,null,null,null,null,null,null,null,null,null,null,null,null,null,null,null,null,null,null,null,null,null,null,null,null,null,null,null,null,null,null,null,null,null,null,null,null,null,null,null,null,null,null,"Mopar Career Automotive Program (MCAP)","Non-Structural Repair Technician Assistant",null,null,null,null,null,null,null,null,null,null,null,null,null,null,null,null,null,null,null,null,null,null,null,null,null,null,null,null,null,null,null,null,null,"Wood Machining Fabrication",null,null,null,null,null,null,null,null,null,null,null,null,null,null,null,null,null,null,null,null,null,null,null,null,null,null,null,null,null,null,null,null,null,null,null,null,null,null,null,null,null,null,null,null,null,null,null,null,null,null,null,null,null,null,null,null,null,null,null,null,null,null,null,null,"Engineering CAD Technology",null,null,null,null,null,null,null,null,null,null,null,null,null,null,null,null,null,null,null,null,null,null,null,null,null,null,null,null,null,null,null,null,null,null,null,null,null,null,null,null,null,null,null,null,null,null,null,null,null,null,null,null,null,null,null,null,null,null,null,null,null,null,null,null,null,null,null,null,null,null,null,null,null,null,null,null,null,null,null,null,null,null,null,null,null,null,null,null,null,null,null,null,null,null,null,null,null,null,null,null,null,null,null,null,null,null,null,null,null,null,null,null,null,null,null,null,null,null,null,null,null,null,null,null,null,null,null,null,null,null,null,"Prosthetics Technician",null,null,null,null,null,null,null,null,null,null,null,null,null,null,null,null,null,null,null,null,null,null,null,null,null,null,null,null,null,null,null,null,null,null,null,null,null,null,null,null,null,null,null,null,null,null,null,null,null,null,null,null,null,null,null,null,null,null,null,null,"Fire Science Technology"]
[null,null,null,null,null,null,null,null,null,null,null,null,null,null,null,null,null,null,null,null,null,null,null,null,null,null,null,null,null,null,null,null,null,null,null,null,null,null,null,null,null,null,null,null,null,null,null,null,null,null,null,null,null,null,null,null,null,null,null,null,null,null,null,null,null,null,null,null,null,null,null,null,null,null,null,null,null,null,null,null,null,null,null,null,null,null,null,null,null,null,null,null,null,null,null,null,null,null,null,null,null,null,null,null,null,null,null,null,null,null,null,null,null,null,null,null,null,null,null,null,null,null,null,null,null,null,null,null,null,null,null,null,null,null,null,null,null,null,null,null,null,null,null,null,null,null,null,null,null,null,null,null,null,null,null,null,null,null,null,null,null,null,null,null,null,null,null,null,null,null,null,null,null,null,null,null,null,null,null,null,null,null,null,null,null,null,null,null,null,null,null,null,null,null,null,null,null,null,null,null,null,null,null,null,null,null,null,null,null,null,null,null,null,null,null,null,null,null,null,null,null,null,null,null,null,null,null,null,null,null,null,null,null,null,null,null,null,null,null,null,null,null,null,null,null,null,null,null,null,null,null,null,null,null,null,null,null,null,null,null,null,null,null,null,null,null,null,null,null,null,null,null,null,null,null,null,null,null,null,null,null,null,null,null,null,null,null,null,null,null,null,null,"Paint Preparation","Outboard Technician",null,null,null,null,null,null,null,null,null,null,null,null,null,null,null,null,null,null,null,null,null,null,null,null,null,null,null,null,null,null,null,null,null,null,null,null,null,null,null,null,null,null,null,null,null,null,null,null,null,null,null,null,null,null,null,null,null,null,null,null,null,null,null,null,null,null,null,null,null,null,null,null,null,null,null,null,null,null,null,null,null,null,null,null,null,null,null,null,null,null,null,null,null,null,null,null,null,null,"Extrusion",null,null,null,null,null,null,null,null,null,null,null,null,null,null,null,null,null,null,null,null,null,null,null,null,null,null,null,null,null,null,null,null,null,null,null,null,null,null,null,null,null,null,null,null,null,null,null,null,null,null,null,null,null,null,null,null,null,null,null,null,null,null,null,null,null,null,null,null,null,null,null,null,null,null,null,null,null,null,null,null,null,null,null,null,null,null,null,null,null,null,null,null,null,null,null,null,null,null,null,null,null,null,null,null,null,null,null,null,null,null,null,null,null,null,null,null,null,null,null,null,null,null,null,null,null,null,null,null,null,null,null,null,null,null,null,null,null,null,null,null,null,null,null,null,null,null,null,null,null,null,null,null,null,null,null,null,null,null,null,null,null,null,null,null,null,null,null,null,null,null,null,null,null,null,null,null,null,null,null,null,null,null,null,null,null,null,null,null,null,null,null,null,"Fire Suppression Technician"]
[null,null,null,null,null,null,null,null,null,null,null,null,null,null,null,null,null,null,null,null,null,null,null,null,null,null,null,null,null,null,null,null,null,null,null,null,null,null,null,null,null,null,null,null,null,null,null,null,null,null,null,null,null,null,null,null,null,null,null,null,null,null,null,null,null,null,null,null,null,null,null,null,null,null,null,null,null,null,null,null,null,null,null,null,null,null,null,null,null,null,null,null,null,null,null,null,null,null,null,null,null,null,null,null,null,null,null,null,null,null,null,null,null,null,null,null,null,null,null,null,null,null,null,null,null,null,null,null,null,null,null,null,null,null,null,null,null,null,null,null,null,null,null,null,null,null,null,null,null,null,null,null,null,null,null,null,null,null,null,null,null,null,null,null,null,null,null,null,null,null,null,null,null,null,null,null,null,null,null,null,null,null,null,null,null,null,null,null,null,null,null,null,null,null,null,null,null,null,null,null,null,null,null,null,null,null,null,null,null,null,null,null,null,null,null,null,null,null,null,null,null,null,null,null,null,null,null,null,null,null,null,null,null,null,null,null,null,null,null,null,null,null,null,null,null,null,null,null,null,null,null,null,null,null,null,null,null,null,null,null,null,null,null,null,null,null,null,null,null,null,null,null,null,null,null,null,null,null,null,null,null,null,null,null,null,null,null,null,null,null,null,null,"Truck Fleet Maintenance","Power Equipment",null,null,null,null,null,null,null,null,null,null,null,null,null,null,null,null,null,null,null,null,null,null,null,null,null,null,null,null,null,null,null,null,null,null,null,null,null,null,null,null,null,null,null,null,null,null,null,null,null,null,null,null,null,null,null,null,null,null,null,null,null,null,null,null,null,null,null,null,null,null,null,null,null,null,null,null,null,null,null,null,null,null,null,null,null,null,null,null,null,null,null,null,null,null,null,null,null,null,"Injection Molding",null,null,null,null,null,null,null,null,null,null,null,null,null,null,null,null,null,null,null,null,null,null,null,null,null,null,null,null,null,null,null,null,null,null,null,null,null,null,null,null,null,null,null,null,null,null,null,null,null,null,null,null,null,null,null,null,null,null,null,null,null,null,null,null,null,null,null,null,null,null,null,null,null,null,null,null,null,null,null,null,null,null,null,null,null,null,null,null,null,null,null,null,null,null,null,null,null,null,null,null,null,null,null,null,null,null,null,null,null,null,null,null,null,null,null,null,null,null,null,null,null,null,null,null,null,null,null,null,null,null,null,null,null,null,null,null,null,null,null,null,null,null,null,null,null,null,null,null,null,null,null,null,null,null,null,null,null,null,null,null,null,null,null,null,null,null,null,null,null,null,null,null,null,null,null,null,null,null,null,null,null,null,null,null,null,null,null,null,null,null,null,null,"Firefighting (NFPA 1001)"]
[null,null,null,null,null,null,null,null,null,null,null,null,null,null,null,null,null,null,null,null,null,null,null,null,null,null,null,null,null,null,null,null,null,null,null,null,null,null,null,null,null,null,null,null,null,null,null,null,null,null,null,null,null,null,null,null,null,null,null,null,null,null,null,null,null,null,null,null,null,null,null,null,null,null,null,null,null,null,null,null,null,null,null,null,null,null,null,null,null,null,null,null,null,null,null,null,null,null,null,null,null,null,null,null,null,null,null,null,null,null,null,null,null,null,null,null,null,null,null,null,null,null,null,null,null,null,null,null,null,null,null,null,null,null,null,null,null,null,null,null,null,null,null,null,null,null,null,null,null,null,null,null,null,null,null,null,null,null,null,null,null,null,null,null,null,null,null,null,null,null,null,null,null,null,null,null,null,null,null,null,null,null,null,null,null,null,null,null,null,null,null,null,null,null,null,null,null,null,null,null,null,null,null,null,null,null,null,null,null,null,null,null,null,null,null,null,null,null,null,null,null,null,null,null,null,null,null,null,null,null,null,null,null,null,null,null,null,null,null,null,null,null,null,null,null,null,null,null,null,null,null,null,null,null,null,null,null,null,null,null,null,null,null,null,null,null,null,null,null,null,null,null,null,null,null,null,null,null,null,null,null,null,null,null,null,null,null,null,null,null,null,null,null,"Refinishing Technicial Assistant",null,null,null,null,null,null,null,null,null,null,null,null,null,null,null,null,null,null,null,null,null,null,null,null,null,null,null,null,null,null,null,null,null,null,null,null,null,null,null,null,null,null,null,null,null,null,null,null,null,null,null,null,null,null,null,null,null,null,null,null,null,null,null,null,null,null,null,null,null,null,null,null,null,null,null,null,null,null,null,null,null,null,null,null,null,null,null,null,null,null,null,null,null,null,null,null,null,null,"Manufacturing Engineering Technology",null,null,null,null,null,null,null,null,null,null,null,null,null,null,null,null,null,null,null,null,null,null,null,null,null,null,null,null,null,null,null,null,null,null,null,null,null,null,null,null,null,null,null,null,null,null,null,null,null,null,null,null,null,null,null,null,null,null,null,null,null,null,null,null,null,null,null,null,null,null,null,null,null,null,null,null,null,null,null,null,null,null,null,null,null,null,null,null,null,null,null,null,null,null,null,null,null,null,null,null,null,null,null,null,null,null,null,null,null,null,null,null,null,null,null,null,null,null,null,null,null,null,null,null,null,null,null,null,null,null,null,null,null,null,null,null,null,null,null,null,null,null,null,null,null,null,null,null,null,null,null,null,null,null,null,null,null,null,null,null,null,null,null,null,null,null,null,null,null,null,null,null,null,null,null,null,null,null,null,null,null,null,null,null,null,null,null,null,null,null,null,null,"Hazardous Materials Management"]
[null,null,null,null,null,null,null,null,null,null,null,null,null,null,null,null,null,null,null,null,null,null,null,null,null,null,null,null,null,null,null,null,null,null,null,null,null,null,null,null,null,null,null,null,null,null,null,null,null,null,null,null,null,null,null,null,null,null,null,null,null,null,null,null,null,null,null,null,null,null,null,null,null,null,null,null,null,null,null,null,null,null,null,null,null,null,null,null,null,null,null,null,null,null,null,null,null,null,null,null,null,null,null,null,null,null,null,null,null,null,null,null,null,null,null,null,null,null,null,null,null,null,null,null,null,null,null,null,null,null,null,null,null,null,null,null,null,null,null,null,null,null,null,null,null,null,null,null,null,null,null,null,null,null,null,null,null,null,null,null,null,null,null,null,null,null,null,null,null,null,null,null,null,null,null,null,null,null,null,null,null,null,null,null,null,null,null,null,null,null,null,null,null,null,null,null,null,null,null,null,null,null,null,null,null,null,null,null,null,null,null,null,null,null,null,null,null,null,null,null,null,null,null,null,null,null,null,null,null,null,null,null,null,null,null,null,null,null,null,null,null,null,null,null,null,null,null,null,null,null,null,null,null,null,null,null,null,null,null,null,null,null,null,null,null,null,null,null,null,null,null,null,null,null,null,null,null,null,null,null,null,null,null,null,null,null,null,null,null,null,null,null,null,"Structural Repais Technician Assistant",null,null,null,null,null,null,null,null,null,null,null,null,null,null,null,null,null,null,null,null,null,null,null,null,null,null,null,null,null,null,null,null,null,null,null,null,null,null,null,null,null,null,null,null,null,null,null,null,null,null,null,null,null,null,null,null,null,null,null,null,null,null,null,null,null,null,null,null,null,null,null,null,null,null,null,null,null,null,null,null,null,null,null,null,null,null,null,null,null,null,null,null,null,null,null,null,null,null,"Manufacturing Fundamentals (M-Powered)",null,null,null,null,null,null,null,null,null,null,null,null,null,null,null,null,null,null,null,null,null,null,null,null,null,null,null,null,null,null,null,null,null,null,null,null,null,null,null,null,null,null,null,null,null,null,null,null,null,null,null,null,null,null,null,null,null,null,null,null,null,null,null,null,null,null,null,null,null,null,null,null,null,null,null,null,null,null,null,null,null,null,null,null,null,null,null,null,null,null,null,null,null,null,null,null,null,null,null,null,null,null,null,null,null,null,null,null,null,null,null,null,null,null,null,null,null,null,null,null,null,null,null,null,null,null,null,null,null,null,null,null,null,null,null,null,null,null,null,null,null,null,null,null,null,null,null,null,null,null,null,null,null,null,null,null,null,null,null,null,null,null,null,null,null,null,null,null,null,null,null,null,null,null,null,null,null,null,null,null,null,null,null,null,null,null,null,null,null,null,null,null,"Initial Firefighter"]
[null,null,null,null,null,null,null,null,null,null,null,null,null,null,null,null,null,null,null,null,null,null,null,null,null,null,null,null,null,null,null,null,null,null,null,null,null,null,null,null,null,null,null,null,null,null,null,null,null,null,null,null,null,null,null,null,null,null,null,null,null,null,null,null,null,null,null,null,null,null,null,null,null,null,null,null,null,null,null,null,null,null,null,null,null,null,null,null,null,null,null,null,null,null,null,null,null,null,null,null,null,null,null,null,null,null,null,null,null,null,null,null,null,null,null,null,null,null,null,null,null,null,null,null,null,null,null,null,null,null,null,null,null,null,null,null,null,null,null,null,null,null,null,null,null,null,null,null,null,null,null,null,null,null,null,null,null,null,null,null,null,null,null,null,null,null,null,null,null,null,null,null,null,null,null,null,null,null,null,null,null,null,null,null,null,null,null,null,null,null,null,null,null,null,null,null,null,null,null,null,null,null,null,null,null,null,null,null,null,null,null,null,null,null,null,null,null,null,null,null,null,null,null,null,null,null,null,null,null,null,null,null,null,null,null,null,null,null,null,null,null,null,null,null,null,null,null,null,null,null,null,null,null,null,null,null,null,null,null,null,null,null,null,null,null,null,null,null,null,null,null,null,null,null,null,null,null,null,null,null,null,null,null,null,null,null,null,null,null,null,null,null,null,null,null,null,null,null,null,null,null,null,null,null,null,null,null,null,null,null,null,null,null,null,null,null,null,null,null,null,null,null,null,null,null,null,null,null,null,null,null,null,null,null,null,null,null,null,null,null,null,null,null,null,null,null,null,null,null,null,null,null,null,null,null,null,null,null,null,null,null,null,null,null,null,null,null,null,null,null,null,null,null,null,null,null,null,null,null,null,null,null,null,null,null,null,null,null,null,null,null,null,"Manufacturing Technician",null,null,null,null,null,null,null,null,null,null,null,null,null,null,null,null,null,null,null,null,null,null,null,null,null,null,null,null,null,null,null,null,null,null,null,null,null,null,null,null,null,null,null,null,null,null,null,null,null,null,null,null,null,null,null,null,null,null,null,null,null,null,null,null,null,null,null,null,null,null,null,null,null,null,null,null,null,null,null,null,null,null,null,null,null,null,null,null,null,null,null,null,null,null,null,null,null,null,null,null,null,null,null,null,null,null,null,null,null,null,null,null,null,null,null,null,null,null,null,null,null,null,null,null,null,null,null,null,null,null,null,null,null,null,null,null,null,null,null,null,null,null,null,null,null,null,null,null,null,null,null,null,null,null,null,null,null,null,null,null,null,null,null,null,null,null,null,null,null,null,null,null,null,null,null,null,null,null,null,null,null,null,null,null,null,null,null,null,null,null,null,null,"Professional Emergency Manager"]
[null,null,null,null,null,null,null,null,null,null,null,null,null,null,null,null,null,null,null,null,null,null,null,null,null,null,null,null,null,null,null,null,null,null,null,null,null,null,null,null,null,null,null,null,null,null,null,null,null,null,null,null,null,null,null,null,null,null,null,null,null,null,null,null,null,null,null,null,null,null,null,null,null,null,null,null,null,null,null,null,null,null,null,null,null,null,null,null,null,null,null,null,null,null,null,null,null,null,null,null,null,null,null,null,null,null,null,null,null,null,null,null,null,null,null,null,null,null,null,null,null,null,null,null,null,null,null,null,null,null,null,null,null,null,null,null,null,null,null,null,null,null,null,null,null,null,null,null,null,null,null,null,null,null,null,null,null,null,null,null,null,null,null,null,null,null,null,null,null,null,null,null,null,null,null,null,null,null,null,null,null,null,null,null,null,null,null,null,null,null,null,null,null,null,null,null,null,null,null,null,null,null,null,null,null,null,null,null,null,null,null,null,null,null,null,null,null,null,null,null,null,null,null,null,null,null,null,null,null,null,null,null,null,null,null,null,null,null,null,null,null,null,null,null,null,null,null,null,null,null,null,null,null,null,null,null,null,null,null,null,null,null,null,null,null,null,null,null,null,null,null,null,null,null,null,null,null,null,null,null,null,null,null,null,null,null,null,null,null,null,null,null,null,null,null,null,null,null,null,null,null,null,null,null,null,null,null,null,null,null,null,null,null,null,null,null,null,null,null,null,null,null,null,null,null,null,null,null,null,null,null,null,null,null,null,null,null,null,null,null,null,null,null,null,null,null,null,null,null,null,null,null,null,null,null,null,null,null,null,null,null,null,null,null,null,null,null,null,null,null,null,null,null,null,null,null,null,null,null,null,null,null,null,null,null,null,null,null,null,null,null,null,"Mazak CNC Technician",null,null,null,null,null,null,null,null,null,null,null,null,null,null,null,null,null,null,null,null,null,null,null,null,null,null,null,null,null,null,null,null,null,null,null,null,null,null,null,null,null,null,null,null,null,null,null,null,null,null,null,null,null,null,null,null,null,null,null,null,null,null,null,null,null,null,null,null,null,null,null,null,null,null,null,null,null,null,null,null,null,null,null,null,null,null,null,null,null,null,null,null,null,null,null,null,null,null,null,null,null,null,null,null,null,null,null,null,null,null,null,null,null,null,null,null,null,null,null,null,null,null,null,null,null,null,null,null,null,null,null,null,null,null,null,null,null,null,null,null,null,null,null,null,null,null,null,null,null,null,null,null,null,null,null,null,null,null,null,null,null,null,null,null,null,null,null,null,null,null,null,null,null,null,null,null,null,null,null,null,null,null,null,null,null,null,null,null,null,null,null,null,"Professional Firefighter"]
[null,null,null,null,null,null,null,null,null,null,null,null,null,null,null,null,null,null,null,null,null,null,null,null,null,null,null,null,null,null,null,null,null,null,null,null,null,null,null,null,null,null,null,null,null,null,null,null,null,null,null,null,null,null,null,null,null,null,null,null,null,null,null,null,null,null,null,null,null,null,null,null,null,null,null,null,null,null,null,null,null,null,null,null,null,null,null,null,null,null,null,null,null,null,null,null,null,null,null,null,null,null,null,null,null,null,null,null,null,null,null,null,null,null,null,null,null,null,null,null,null,null,null,null,null,null,null,null,null,null,null,null,null,null,null,null,null,null,null,null,null,null,null,null,null,null,null,null,null,null,null,null,null,null,null,null,null,null,null,null,null,null,null,null,null,null,null,null,null,null,null,null,null,null,null,null,null,null,null,null,null,null,null,null,null,null,null,null,null,null,null,null,null,null,null,null,null,null,null,null,null,null,null,null,null,null,null,null,null,null,null,null,null,null,null,null,null,null,null,null,null,null,null,null,null,null,null,null,null,null,null,null,null,null,null,null,null,null,null,null,null,null,null,null,null,null,null,null,null,null,null,null,null,null,null,null,null,null,null,null,null,null,null,null,null,null,null,null,null,null,null,null,null,null,null,null,null,null,null,null,null,null,null,null,null,null,null,null,null,null,null,null,null,null,null,null,null,null,null,null,null,null,null,null,null,null,null,null,null,null,null,null,null,null,null,null,null,null,null,null,null,null,null,null,null,null,null,null,null,null,null,null,null,null,null,null,null,null,null,null,null,null,null,null,null,null,null,null,null,null,null,null,null,null,null,null,null,null,null,null,null,null,null,null,null,null,null,null,null,null,null,null,null,null,null,null,null,null,null,null,null,null,null,null,null,null,null,null,null,null,null,null,"Mechatronics"]
[null,null,null,null,null,null,null,null,null,null,null,null,null,null,null,null,null,null,null,null,null,null,null,null,null,null,null,null,null,null,null,null,null,null,null,null,null,null,null,null,null,null,null,null,null,null,null,null,null,null,null,null,null,null,null,null,null,null,null,null,null,null,null,null,null,null,null,null,null,null,null,null,null,null,null,null,null,null,null,null,null,null,null,null,null,null,null,null,null,null,null,null,null,null,null,null,null,null,null,null,null,null,null,null,null,null,null,null,null,null,null,null,null,null,null,null,null,null,null,null,null,null,null,null,null,null,null,null,null,null,null,null,null,null,null,null,null,null,null,null,null,null,null,null,null,null,null,null,null,null,null,null,null,null,null,null,null,null,null,null,null,null,null,null,null,null,null,null,null,null,null,null,null,null,null,null,null,null,null,null,null,null,null,null,null,null,null,null,null,null,null,null,null,null,null,null,null,null,null,null,null,null,null,null,null,null,null,null,null,null,null,null,null,null,null,null,null,null,null,null,null,null,null,null,null,null,null,null,null,null,null,null,null,null,null,null,null,null,null,null,null,null,null,null,null,null,null,null,null,null,null,null,null,null,null,null,null,null,null,null,null,null,null,null,null,null,null,null,null,null,null,null,null,null,null,null,null,null,null,null,null,null,null,null,null,null,null,null,null,null,null,null,null,null,null,null,null,null,null,null,null,null,null,null,null,null,null,null,null,null,null,null,null,null,null,null,null,null,null,null,null,null,null,null,null,null,null,null,null,null,null,null,null,null,null,null,null,null,null,null,null,null,null,null,null,null,null,null,null,null,null,null,null,null,null,null,null,null,null,null,null,null,null,null,null,null,null,null,null,null,null,null,null,null,null,null,null,null,null,null,null,null,null,null,null,null,null,null,null,null,null,null,"Mechatronics Electrical Specialist"]
[null,null,null,null,null,null,null,null,null,null,null,null,null,null,null,null,null,null,null,null,null,null,null,null,null,null,null,null,null,null,null,null,null,null,null,null,null,null,null,null,null,null,null,null,null,null,null,null,null,null,null,null,null,null,null,null,null,null,null,null,null,null,null,null,null,null,null,null,null,null,null,null,null,null,null,null,null,null,null,null,null,null,null,null,null,null,null,null,null,null,null,null,null,null,null,null,null,null,null,null,null,null,null,null,null,null,null,null,null,null,null,null,null,null,null,null,null,null,null,null,null,null,null,null,null,null,null,null,null,null,null,null,null,null,null,null,null,null,null,null,null,null,null,null,null,null,null,null,null,null,null,null,null,null,null,null,null,null,null,null,null,null,null,null,null,null,null,null,null,null,null,null,null,null,null,null,null,null,null,null,null,null,null,null,null,null,null,null,null,null,null,null,null,null,null,null,null,null,null,null,null,null,null,null,null,null,null,null,null,null,null,null,null,null,null,null,null,null,null,null,null,null,null,null,null,null,null,null,null,null,null,null,null,null,null,null,null,null,null,null,null,null,null,null,null,null,null,null,null,null,null,null,null,null,null,null,null,null,null,null,null,null,null,null,null,null,null,null,null,null,null,null,null,null,null,null,null,null,null,null,null,null,null,null,null,null,null,null,null,null,null,null,null,null,null,null,null,null,null,null,null,null,null,null,null,null,null,null,null,null,null,null,null,null,null,null,null,null,null,null,null,null,null,null,null,null,null,null,null,null,null,null,null,null,null,null,null,null,null,null,null,null,null,null,null,null,null,null,null,null,null,null,null,null,null,null,null,null,null,null,null,null,null,null,null,null,null,null,null,null,null,null,null,null,null,null,null,null,null,null,null,null,null,null,null,null,null,null,null,null,null,null,"Mechatronics Mechanical Specialist"]
[null,null,null,null,null,null,null,null,null,null,null,null,null,null,null,null,null,null,null,null,null,null,null,null,null,null,null,null,null,null,null,null,null,null,null,null,null,null,null,null,null,null,null,null,null,null,null,null,null,null,null,null,null,null,null,null,null,null,null,null,null,null,null,null,null,null,null,null,null,null,null,null,null,null,null,null,null,null,null,null,null,null,null,null,null,null,null,null,null,null,null,null,null,null,null,null,null,null,null,null,null,null,null,null,null,null,null,null,null,null,null,null,null,null,null,null,null,null,null,null,null,null,null,null,null,null,null,null,null,null,null,null,null,null,null,null,null,null,null,null,null,null,null,null,null,null,null,null,null,null,null,null,null,null,null,null,null,null,null,null,null,null,null,null,null,null,null,null,null,null,null,null,null,null,null,null,null,null,null,null,null,null,null,null,null,null,null,null,null,null,null,null,null,null,null,null,null,null,null,null,null,null,null,null,null,null,null,null,null,null,null,null,null,null,null,null,null,null,null,null,null,null,null,null,null,null,null,null,null,null,null,null,null,null,null,null,null,null,null,null,null,null,null,null,null,null,null,null,null,null,null,null,null,null,null,null,null,null,null,null,null,null,null,null,null,null,null,null,null,null,null,null,null,null,null,null,null,null,null,null,null,null,null,null,null,null,null,null,null,null,null,null,null,null,null,null,null,null,null,null,null,null,null,null,null,null,null,null,null,null,null,null,null,null,null,null,null,null,null,null,null,null,null,null,null,null,null,null,null,null,null,null,null,null,null,null,null,null,null,null,null,null,null,null,null,null,null,null,null,null,null,null,null,null,null,null,null,null,null,null,null,null,null,null,null,null,null,null,null,null,null,null,null,null,null,null,null,null,null,null,null,null,null,null,null,null,null,null,null,null,null,null,"Mechatronics Technician"]
[null,null,null,null,null,null,null,null,null,null,null,null,null,null,null,null,null,null,null,null,null,null,null,null,null,null,null,null,null,null,null,null,null,null,null,null,null,null,null,null,null,null,null,null,null,null,null,null,null,null,null,null,null,null,null,null,null,null,null,null,null,null,null,null,null,null,null,null,null,null,null,null,null,null,null,null,null,null,null,null,null,null,null,null,null,null,null,null,null,null,null,null,null,null,null,null,null,null,null,null,null,null,null,null,null,null,null,null,null,null,null,null,null,null,null,null,null,null,null,null,null,null,null,null,null,null,null,null,null,null,null,null,null,null,null,null,null,null,null,null,null,null,null,null,null,null,null,null,null,null,null,null,null,null,null,null,null,null,null,null,null,null,null,null,null,null,null,null,null,null,null,null,null,null,null,null,null,null,null,null,null,null,null,null,null,null,null,null,null,null,null,null,null,null,null,null,null,null,null,null,null,null,null,null,null,null,null,null,null,null,null,null,null,null,null,null,null,null,null,null,null,null,null,null,null,null,null,null,null,null,null,null,null,null,null,null,null,null,null,null,null,null,null,null,null,null,null,null,null,null,null,null,null,null,null,null,null,null,null,null,null,null,null,null,null,null,null,null,null,null,null,null,null,null,null,null,null,null,null,null,null,null,null,null,null,null,null,null,null,null,null,null,null,null,null,null,null,null,null,null,null,null,null,null,null,null,null,null,null,null,null,null,null,null,null,null,null,null,null,null,null,null,null,null,null,null,null,null,null,null,null,null,null,null,null,null,null,null,null,null,null,null,null,null,null,null,null,null,null,null,null,null,null,null,null,null,null,null,null,null,null,null,null,null,null,null,null,null,null,null,null,null,null,null,null,null,null,null,null,null,null,null,null,null,null,null,null,null,null,null,null,null,"Medical Device"]
[null,null,null,null,null,null,null,null,null,null,null,null,null,null,null,null,null,null,null,null,null,null,null,null,null,null,null,null,null,null,null,null,null,null,null,null,null,null,null,null,null,null,null,null,null,null,null,null,null,null,null,null,null,null,null,null,null,null,null,null,null,null,null,null,null,null,null,null,null,null,null,null,null,null,null,null,null,null,null,null,null,null,null,null,null,null,null,null,null,null,null,null,null,null,null,null,null,null,null,null,null,null,null,null,null,null,null,null,null,null,null,null,null,null,null,null,null,null,null,null,null,null,null,null,null,null,null,null,null,null,null,null,null,null,null,null,null,null,null,null,null,null,null,null,null,null,null,null,null,null,null,null,null,null,null,null,null,null,null,null,null,null,null,null,null,null,null,null,null,null,null,null,null,null,null,null,null,null,null,null,null,null,null,null,null,null,null,null,null,null,null,null,null,null,null,null,null,null,null,null,null,null,null,null,null,null,null,null,null,null,null,null,null,null,null,null,null,null,null,null,null,null,null,null,null,null,null,null,null,null,null,null,null,null,null,null,null,null,null,null,null,null,null,null,null,null,null,null,null,null,null,null,null,null,null,null,null,null,null,null,null,null,null,null,null,null,null,null,null,null,null,null,null,null,null,null,null,null,null,null,null,null,null,null,null,null,null,null,null,null,null,null,null,null,null,null,null,null,null,null,null,null,null,null,null,null,null,null,null,null,null,null,null,null,null,null,null,null,null,null,null,null,null,null,null,null,null,null,null,null,null,null,null,null,null,null,null,null,null,null,null,null,null,null,null,null,null,null,null,null,null,null,null,null,null,null,null,null,null,null,null,null,null,null,null,null,null,null,null,null,null,null,null,null,null,null,null,null,null,null,null,null,null,null,null,null,null,null,null,null,null,null,"Plastics Engineering Technology"]
[null,null,null,null,null,null,null,null,null,null,null,null,null,null,null,null,null,null,null,null,null,null,null,null,null,null,null,null,null,null,null,null,null,null,null,null,null,null,null,null,null,null,null,null,null,null,null,null,null,null,null,null,null,null,null,null,null,null,null,null,null,null,null,null,null,null,null,null,null,null,null,null,null,null,null,null,null,null,null,null,null,null,null,null,null,null,null,null,null,null,null,null,null,null,null,null,null,null,null,null,null,null,null,null,null,null,null,null,null,null,null,null,null,null,null,null,null,null,null,null,null,null,null,null,null,null,null,null,null,null,null,null,null,null,null,null,null,null,null,null,null,null,null,null,null,null,null,null,null,null,null,null,null,null,null,null,null,null,null,null,null,null,null,null,null,null,null,null,null,null,null,null,null,null,null,null,null,null,null,null,null,null,null,null,null,null,null,null,null,null,null,null,null,null,null,null,null,null,null,null,null,null,null,null,null,null,null,null,null,null,null,null,null,null,null,null,null,null,null,null,null,null,null,null,null,null,null,null,null,null,null,null,null,null,null,null,null,null,null,null,null,null,null,null,null,null,null,null,null,null,null,null,null,null,null,null,null,null,null,null,null,null,null,null,null,null,null,null,null,null,null,null,null,null,null,null,null,null,null,null,null,null,null,null,null,null,null,null,null,null,null,null,null,null,null,null,null,null,null,null,null,null,null,null,null,null,null,null,null,null,null,null,null,null,null,null,null,null,null,null,null,null,null,null,null,null,null,null,null,null,null,null,null,null,null,null,null,null,null,null,null,null,null,null,null,null,null,null,null,null,null,null,null,null,null,null,null,null,null,null,null,null,null,null,null,null,null,null,null,null,null,null,null,null,null,null,null,null,null,null,null,null,null,null,null,null,null,null,null,null,null,null,"Production Technologies"]
[null,null,null,null,null,null,null,null,null,null,null,null,null,null,null,null,null,null,null,null,null,null,null,null,null,null,null,null,null,null,null,null,null,null,null,null,null,null,null,null,null,null,null,null,null,null,null,null,null,null,null,null,null,null,null,null,null,null,null,null,null,null,null,null,null,null,null,null,null,null,null,null,null,null,null,null,null,null,null,null,null,null,null,null,null,null,null,null,null,null,null,null,null,null,null,null,null,null,null,null,null,null,null,null,null,null,null,null,null,null,null,null,null,null,null,null,null,null,null,null,null,null,null,null,null,null,null,null,null,null,null,null,null,null,null,null,null,null,null,null,null,null,null,null,null,null,null,null,null,null,null,null,null,null,null,null,null,null,null,null,null,null,null,null,null,null,null,null,null,null,null,null,null,null,null,null,null,null,null,null,null,null,null,null,null,null,null,null,null,null,null,null,null,null,null,null,null,null,null,null,null,null,null,null,null,null,null,null,null,null,null,null,null,null,null,null,null,null,null,null,null,null,null,null,null,null,null,null,null,null,null,null,null,null,null,null,null,null,null,null,null,null,null,null,null,null,null,null,null,null,null,null,null,null,null,null,null,null,null,null,null,null,null,null,null,null,null,null,null,null,null,null,null,null,null,null,null,null,null,null,null,null,null,null,null,null,null,null,null,null,null,null,null,null,null,null,null,null,null,null,null,null,null,null,null,null,null,null,null,null,null,null,null,null,null,null,null,null,null,null,null,null,null,null,null,null,null,null,null,null,null,null,null,null,null,null,null,null,null,null,null,null,null,null,null,null,null,null,null,null,null,null,null,null,null,null,null,null,null,null,null,null,null,null,null,null,null,null,null,null,null,null,null,null,null,null,null,null,null,null,null,null,null,null,null,null,null,null,null,null,"Scientific Injection Molding Specialist"]
[null,null,null,null,null,null,null,null,null,null,null,null,null,null,null,null,null,null,null,null,null,null,null,null,null,null,null,null,null,null,null,null,null,null,null,null,null,null,null,null,null,null,null,null,null,null,null,null,null,null,null,null,null,null,null,null,null,null,null,null,null,null,null,null,null,null,null,null,null,null,null,null,null,null,null,null,null,null,null,null,null,null,null,null,null,null,null,null,null,null,null,null,null,null,null,null,null,null,null,null,null,null,null,null,null,null,null,null,null,null,null,null,null,null,null,null,null,null,null,null,null,null,null,null,null,null,null,null,null,null,null,null,null,null,null,null,null,null,null,null,null,null,null,null,null,null,null,null,null,null,null,null,null,null,null,null,null,null,null,null,null,null,null,null,null,null,null,null,null,null,null,null,null,null,null,null,null,null,null,null,null,null,null,null,null,null,null,null,null,null,null,null,null,null,null,null,null,null,null,null,null,null,null,null,null,null,null,null,null,null,null,null,null,null,null,null,null,null,null,null,null,null,null,null,null,null,null,null,null,null,null,null,null,null,null,null,null,null,null,null,null,null,null,null,null,null,null,null,null,null,null,null,null,null,null,null,null,null,null,null,null,null,null,null,null,null,null,null,null,null,null,null,null,null,null,null,null,null,null,null,null,null,null,null,null,null,null,null,null,null,null,null,null,null,null,null,null,null,null,null,null,null,null,null,null,null,null,null,null,null,null,null,null,null,null,null,null,null,null,null,null,null,null,null,null,null,null,null,null,null,null,null,null,null,null,null,null,null,null,null,null,null,null,null,null,null,null,null,null,null,null,null,null,null,null,null,null,null,null,null,null,null,null,null,null,null,null,null,null,null,null,null,null,null,null,null,null,null,null,null,null,null,null,null,null,null,null,null,null,null,"SOLIDWORKS Operator"]
[null,null,null,null,null,null,null,null,null,null,null,null,null,null,null,null,null,null,null,null,null,null,null,null,null,null,null,null,null,null,null,null,null,null,null,null,null,null,null,null,null,null,null,null,null,null,null,null,null,null,null,null,null,null,null,null,null,null,null,null,null,null,null,null,null,null,null,null,null,null,null,null,null,null,null,null,null,null,null,null,null,null,null,null,null,null,null,null,null,null,null,null,null,null,null,null,null,null,null,null,null,null,null,null,null,null,null,null,null,null,null,null,null,null,null,null,null,null,null,null,null,null,null,null,null,null,null,null,null,null,null,null,null,null,null,null,null,null,null,null,null,null,null,null,null,null,null,null,null,null,null,null,null,null,null,null,null,null,null,null,null,null,null,null,null,null,null,null,null,null,null,null,null,null,null,null,null,null,null,null,null,null,null,null,null,null,null,null,null,null,null,null,null,null,null,null,null,null,null,null,null,null,null,null,null,null,null,null,null,null,null,null,null,null,null,null,null,null,null,null,null,null,null,null,null,null,null,null,null,null,null,null,null,null,null,null,null,null,null,null,null,null,null,null,null,null,null,null,null,null,null,null,null,null,null,null,null,null,null,null,null,null,null,null,null,null,null,null,null,null,null,null,null,null,null,null,null,null,null,null,null,null,null,null,null,null,null,null,null,null,null,null,null,null,null,null,null,null,null,null,null,null,null,null,null,null,null,null,null,null,null,null,null,null,null,null,null,null,null,null,null,null,null,null,null,null,null,null,null,null,null,null,null,null,null,null,null,null,null,null,null,null,null,null,null,null,null,null,null,null,null,null,null,null,null,null,null,null,null,null,null,null,null,null,null,null,null,null,null,null,null,null,null,null,null,null,null,null,null,null,null,null,null,null,null,null,null,null,null,null,"Supply Chain Technician"]